Workbook

Sheet Main
B10: 2018-11-02
B12: Sheet No. | C12: Template Name | D12: Summary
B13: 1 | C13: Future Intra | D13: For Intraday trading in F&O segment
B14: 2 | C14: Cash Intra | D14: For Intraday trading in cash market segment
B15: 3 | C15: Mid-cap Intra | D15: For Intraday trading in Mid-cap stocks
B16: 4 | C16: Bulk Deals | D16: Reveals Bulk Deals carried on NSE & BSE
B17: 5 | C17: Call Tracker

Sheet Future Intra
M5: Back to Main Page
A6: FOR INTRA DAY TRADING | L6: =Main!B10 -> 2018-11-02
A9: Sr.no | B9: Sector | C9: Scrip | D9: CLOSE RATE | E9: Pivot Point | F9: Supports | I9: Resistances
B10: Sector | D10: Point | E10: Point | F10: S1 | G10: S2 | H10: S3 | I10: R1 | J10: R2 | K10: R3 | L10: HIGH | M10: LOW | N10: OI | O10: % Change in OI
A11: 1 | B11: Index | C11: BANKNIFTY | D11: 25377.70 | E11: 25335.55 | F11: 25221.10 | G11: 25064.50 | H11: 24950.05 | I11: 25492.15 | J11: 25606.60 | K11: 25763.20 | L11: 25450 | M11: 25178.95 | N11: 1543380 | O11: -6.73%
A12: 2 | B12: Index | C12: NIFTY | D12: 10413.45 | E12: 10402.15 | F12: 10357.30 | G12: 10301.15 | H12: 10256.30 | I12: 10458.30 | J12: 10503.15 | K12: 10559.30 | L12: 10447 | M12: 10346 | N12: 23965350 | O12: -0.07%
A13: 5 | B13: Index | C13: NIFTYIT | D13: 14687.00 | E13: 14758.67 | F13: 14516.33 | G13: 14345.67 | H13: 14103.33 | I13: 14929.33 | J13: 15171.67 | K13: 15342.33 | L13: 15001 | M13: 14588 | N13: 26050 | O13: -1.70%
A14: 6 | B14: Index | C14: NIFTYMID50 | D14: 4783.20 | E14: 4783.20 | F14: 4783.20 | G14: 4783.20 | H14: 4783.20 | I14: 4783.20 | J14: 4783.20 | K14: 4783.20 | L14: 4783.2 | M14: 4783.2 | N14: 710380 | O14: -2.12%
A15: 8 | B15: Cement | C15: ACC | D15: 1408.65 | E15: 1402.70 | F15: 1388.75 | G15: 1368.85 | H15: 1354.90 | I15: 1422.60 | J15: 1436.55 | K15: 1456.45 | L15: 1416.65 | M15: 1382.8 | N15: 915600 | O15: -1.59%
A16: 9 | B16: Others | C16: ADANIENT | D16: 176.15 | E16: 174.95 | F16: 170.70 | G16: 165.25 | H16: 161.00 | I16: 180.40 | J16: 184.65 | K16: 190.10 | L16: 179.2 | M16: 169.5 | N16: 34104000 | O16: 0.55%
A17: 10 | B17: Others | C17: ADANIPORTS | D17: 320.15 | E17: 320.63 | F17: 314.47 | G17: 308.78 | H17: 302.62 | I17: 326.32 | J17: 332.48 | K17: 338.17 | L17: 326.8 | M17: 314.95 | N17: 16582500 | O17: 7.24%
A18: 11 | B18: Power | C18: ADANIPOWER | D18: 50.50 | E18: 49.33 | F18: 46.42 | G18: 42.33 | H18: 39.42 | I18: 53.42 | J18: 56.33 | K18: 60.42 | L18: 52.25 | M18: 45.25 | N18: 160680000 | O18: 4.64%
A19: 12 | B19: Pharma | C19: AJANTPHARM | D19: 1083.35 | E19: 1077.97 | F19: 1051.73 | G19: 1020.12 | H19: 993.88 | I19: 1109.58 | J19: 1135.82 | K19: 1167.43 | L19: 1104.2 | M19: 1046.35 | N19: 634500 | O19: 5.22%
A20: 13 | B20: Banking | C20: ALBK | D20: 43.45 | E20: 43.87 | F20: 42.23 | G20: 41.02 | H20: 39.38 | I20: 45.08 | J20: 46.72 | K20: 47.93 | L20: 45.5 | M20: 42.65 | N20: 14278000 | O20: -9.48%
A21: 14 | B21: Automobile | C21: AMARAJABAT | D21: 749.90 | E21: 747.67 | F21: 739.83 | G21: 729.77 | H21: 721.93 | I21: 757.73 | J21: 765.57 | K21: 775.63 | L21: 755.5 | M21: 737.6 | N21: 1096900 | O21: -6.17%
A22: 15 | B22: Cement | C22: AMBUJACEM | D22: 200.20 | E22: 199.60 | F22: 197.60 | G22: 195.00 | H22: 193.00 | I22: 202.20 | J22: 204.20 | K22: 206.80 | L22: 201.6 | M22: 197 | N22: 17527500 | O22: 0.98%
A23: 17 | B23: Others | C23: APOLLOHOSP | D23: 1175.80 | E23: 1168.45 | F23: 1152.00 | G23: 1128.20 | H23: 1111.75 | I23: 1192.25 | J23: 1208.70 | K23: 1232.50 | L23: 1184.9 | M23: 1144.65 | N23: 754500 | O23: -8.04%
A24: 18 | B24: Automobile | C24: APOLLOTYRE | D24: 219.15 | E24: 220.25 | F24: 216.25 | G24: 213.35 | H24: 209.35 | I24: 223.15 | J24: 227.15 | K24: 230.05 | L24: 224.25 | M24: 217.35 | N24: 7281000 | O24: -3.77%
A25: 19 | B25: Textile | C25: ARVIND | D25: 346.65 | E25: 346.75 | F25: 336.80 | G25: 326.95 | H25: 317.00 | I25: 356.60 | J25: 366.55 | K25: 376.40 | L25: 356.7 | M25: 336.9 | N25: 5404000 | O25: -2.07%
A26: 20 | B26: Automobile | C26: ASHOKLEY | D26: 113.80 | E26: 114.50 | F26: 111.60 | G26: 109.40 | H26: 106.50 | I26: 116.70 | J26: 119.60 | K26: 121.80 | L26: 117.4 | M26: 112.3 | N26: 50212000 | O26: -3.59%
A27: 21 | B27: FMCG | C27: ASIANPAINT | D27: 1222.40 | E27: 1227.33 | F27: 1210.27 | G27: 1198.13 | H27: 1181.07 | I27: 1239.47 | J27: 1256.53 | K27: 1268.67 | L27: 1244.4 | M27: 1215.2 | N27: 4897800 | O27: 5.49%
A28: 22 | B28: Pharma | C28: AUROPHARMA | D28: 792.40 | E28: 794.05 | F28: 783.45 | G28: 774.50 | H28: 763.90 | I28: 803.00 | J28: 813.60 | K28: 822.55 | L28: 804.65 | M28: 785.1 | N28: 18931000 | O28: 1.52%
A29: 23 | B29: Banking | C29: AXISBANK | D29: 603.45 | E29: 598.27 | F29: 587.83 | G29: 572.22 | H29: 561.78 | I29: 613.88 | J29: 624.32 | K29: 639.93 | L29: 608.7 | M29: 582.65 | N29: 37810800 | O29: 5.14%
A30: 24 | B30: Automobile | C30: BAJAJ-AUTO | D30: 2610.70 | E30: 2605.23 | F30: 2583.47 | G30: 2556.23 | H30: 2534.47 | I30: 2632.47 | J30: 2654.23 | K30: 2681.47 | L30: 2627 | M30: 2578 | N30: 2347250 | O30: 0.68%
A31: 25 | B31: Others | C31: BAJAJFINSV | D31: 5413.70 | E31: 5430.50 | F31: 5376.70 | G31: 5339.70 | H31: 5285.90 | I31: 5467.50 | J31: 5521.30 | K31: 5558.30 | L31: 5484.3 | M31: 5393.5 | N31: 698125 | O31: 1.14%
A32: 26 | B32: Finance | C32: BAJFINANCE | D32: 2429.35 | E32: 2416.15 | F32: 2385.50 | G32: 2341.65 | H32: 2311.00 | I32: 2460.00 | J32: 2490.65 | K32: 2534.50 | L32: 2446.8 | M32: 2372.3 | N32: 6462500 | O32: -4.68%
A33: 27 | B33: Others | C33: BALKRISIND | D33: 1130.15 | E33: 1126.57 | F33: 1100.28 | G33: 1070.42 | H33: 1044.13 | I33: 1156.43 | J33: 1182.72 | K33: 1212.58 | L33: 1152.85 | M33: 1096.7 | N33: 1571200 | O33: -0.20%
A34: 29 | B34: Banking | C34: BANKBARODA | D34: 107.95 | E34: 109.15 | F34: 106.20 | G34: 104.45 | H34: 101.50 | I34: 110.90 | J34: 113.85 | K34: 115.60 | L34: 112.1 | M34: 107.4 | N34: 79336000 | O34: 0.83%
A35: 30 | B35: Banking | C35: BANKINDIA | D35: 86.50 | E35: 86.57 | F35: 85.13 | G35: 83.77 | H35: 82.33 | I35: 87.93 | J35: 89.37 | K35: 90.73 | L35: 88 | M35: 85.2 | N35: 19368000 | O35: 1.00%
A36: 31 | B36: FMCG | C36: BATAINDIA | D36: 1014.15 | E36: 997.87 | F36: 977.13 | G36: 940.12 | H36: 919.38 | I36: 1034.88 | J36: 1055.62 | K36: 1092.63 | L36: 1018.6 | M36: 960.85 | N36: 1829850 | O36: 4.59%
A37: 32 | B37: Capital_Goods | C37: BEL | D37: 97.10 | E37: 96.13 | F37: 93.97 | G37: 90.83 | H37: 88.67 | I37: 99.27 | J37: 101.43 | K37: 104.57 | L37: 98.3 | M37: 93 | N37: 22382400 | O37: -9.45%
A38: 33 | B38: Infrastructure | C38: BEML | D38: 635.65 | E38: 622.35 | F38: 603.30 | G38: 570.95 | H38: 551.90 | I38: 654.70 | J38: 673.75 | K38: 706.10 | L38: 641.4 | M38: 590 | N38: 1716000 | O38: 2.11%
A39: 34 | B39: Others | C39: BERGEPAINT | D39: 293.10 | E39: 288.27 | F39: 281.63 | G39: 270.17 | H39: 263.53 | I39: 299.73 | J39: 306.37 | K39: 317.83 | L39: 294.9 | M39: 276.8 | N39: 2006400 | O39: -4.90%
A40: 35 | B40: Finance | C40: BHARATFIN | D40: 912.40 | E40: 899.90 | F40: 871.45 | G40: 830.50 | H40: 802.05 | I40: 940.85 | J40: 969.30 | K40: 1010.25 | L40: 928.35 | M40: 858.95 | N40: 7517000 | O40: -6.04%
A41: 36 | B41: Automobile | C41: BHARATFORG | D41: 581.05 | E41: 582.32 | F41: 574.98 | G41: 568.92 | H41: 561.58 | I41: 588.38 | J41: 595.72 | K41: 601.78 | L41: 589.65 | M41: 576.25 | N41: 6918000 | O41: -0.50%
A42: 37 | B42: Telecom | C42: BHARTIARTL | D42: 291.85 | E42: 291.05 | F42: 286.30 | G42: 280.75 | H42: 276.00 | I42: 296.60 | J42: 301.35 | K42: 306.90 | L42: 295.8 | M42: 285.5 | N42: 45252300 | O42: -1.21%
A43: 38 | B43: Capital_Goods | C43: BHEL | D43: 68.85 | E43: 68.80 | F43: 67.90 | G43: 66.95 | H43: 66.05 | I43: 69.75 | J43: 70.65 | K43: 71.60 | L43: 69.7 | M43: 67.85 | N43: 48915000 | O43: -0.67%
A44: 39 | B44: Pharma | C44: BIOCON | D44: 645.95 | E44: 651.85 | F44: 636.25 | G44: 626.55 | H44: 610.95 | I44: 661.55 | J44: 677.15 | K44: 686.85 | L44: 667.45 | M44: 642.15 | N44: 5533200 | O44: -5.17%
A45: 40 | B45: Automobile | C45: BOSCHLTD | D45: 19695.60 | E45: 19916.65 | F45: 19333.35 | G45: 18971.10 | H45: 18387.80 | I45: 20278.90 | J45: 20862.20 | K45: 21224.45 | L45: 20499.95 | M45: 19554.4 | N45: 138570 | O45: -0.73%
A46: 41 | B46: Oil_Gas | C46: BPCL | D46: 284.10 | E46: 282.15 | F46: 278.05 | G46: 272.00 | H46: 267.90 | I46: 288.20 | J46: 292.30 | K46: 298.35 | L46: 286.25 | M46: 276.1 | N46: 12481200 | O46: 2.02%
A47: 42 | B47: FMCG | C47: BRITANNIA | D47: 5606.10 | E47: 5643.70 | F47: 5557.40 | G47: 5508.70 | H47: 5422.40 | I47: 5692.40 | J47: 5778.70 | K47: 5827.40 | L47: 5730 | M47: 5595 | N47: 1397700 | O47: -0.82%
A48: 43 | B48: Pharma | C48: CADILAHC | D48: 360.80 | E48: 361.48 | F48: 357.37 | G48: 353.93 | H48: 349.82 | I48: 364.92 | J48: 369.03 | K48: 372.47 | L48: 365.6 | M48: 358.05 | N48: 8160000 | O48: -1.75%
A49: 44 | B49: Banking | C49: CANBK | D49: 252.35 | E49: 256.03 | F49: 246.82 | G49: 241.28 | H49: 232.07 | I49: 261.57 | J49: 270.78 | K49: 276.32 | L49: 265.25 | M49: 250.5 | N49: 8352000 | O49: -7.14%
A50: 45 | B50: Others | C50: CANFINHOME | D50: 277.20 | E50: 278.50 | F50: 274.00 | G50: 270.80 | H50: 266.30 | I50: 281.70 | J50: 286.20 | K50: 289.40 | L50: 283 | M50: 275.3 | N50: 3373600 | O50: -2.74%
A51: 46 | B51: Finance | C51: CAPF | D51: 477.70 | E51: 476.25 | F51: 467.75 | G51: 457.80 | H51: 449.30 | I51: 486.20 | J51: 494.70 | K51: 504.65 | L51: 484.75 | M51: 466.3 | N51: 6634400 | O51: 5.93%
A52: 47 | B52: Oil_Gas | C52: CASTROLIND | D52: 145.20 | E52: 145.95 | F52: 143.50 | G52: 141.80 | H52: 139.35 | I52: 147.65 | J52: 150.10 | K52: 151.80 | L52: 148.4 | M52: 144.25 | N52: 7824400 | O52: 5.21%
A53: 48 | B53: Automobile | C53: CEATLTD | D53: 1165.10 | E53: 1166.97 | F53: 1142.13 | G53: 1119.17 | H53: 1094.33 | I53: 1189.93 | J53: 1214.77 | K53: 1237.73 | L53: 1191.8 | M53: 1144 | N53: 816200 | O53: 1.52%
A54: 49 | B54: Textile | C54: CENTURYTEX | D54: 839.10 | E54: 837.45 | F54: 826.20 | G54: 813.30 | H54: 802.05 | I54: 850.35 | J54: 861.60 | K54: 874.50 | L54: 848.7 | M54: 824.55 | N54: 5564350 | O54: -1.20%
A55: 50 | B55: Power | C55: CESC | D55: 692.65 | E55: 696.63 | F55: 686.02 | G55: 679.38 | H55: 668.77 | I55: 703.27 | J55: 713.88 | K55: 720.52 | L55: 707.25 | M55: 690 | N55: 1655500 | O55: 6.21%
A56: 51 | B56: Power | C56: CGPOWER | D56: 35.80 | E56: 35.80 | F56: 35.40 | G56: 35.00 | H56: 34.60 | I56: 36.20 | J56: 36.60 | K56: 37.00 | L56: 36.2 | M56: 35.4 | N56: 38808000 | O56: 4.19%
A57: 52 | B57: Others | C57: CHENNPETRO | D57: 261.10 | E57: 261.78 | F57: 257.62 | G57: 254.13 | H57: 249.97 | I57: 265.27 | J57: 269.43 | K57: 272.92 | L57: 265.95 | M57: 258.3 | N57: 1104000 | O57: 3.08%
A58: 53 | B58: Others | C58: CHOLAFIN | D58: 1333.35 | E58: 1309.63 | F58: 1268.77 | G58: 1204.18 | H58: 1163.32 | I58: 1374.22 | J58: 1415.08 | K58: 1479.67 | L58: 1350.5 | M58: 1245.05 | N58: 544000 | O58: 3.23%
A59: 54 | B59: Pharma | C59: CIPLA | D59: 617.35 | E59: 620.75 | F59: 610.55 | G59: 603.75 | H59: 593.55 | I59: 627.55 | J59: 637.75 | K59: 644.55 | L59: 630.95 | M59: 613.95 | N59: 8671000 | O59: -0.01%
A60: 55 | B60: Others | C60: COALINDIA | D60: 261.60 | E60: 262.45 | F60: 259.80 | G60: 258.00 | H60: 255.35 | I60: 264.25 | J60: 266.90 | K60: 268.70 | L60: 265.1 | M60: 260.65 | N60: 27847600 | O60: 14.30%
A61: 56 | B61: FMCG | C61: COLPAL | D61: 1106.25 | E61: 1105.90 | F61: 1093.80 | G61: 1081.35 | H61: 1069.25 | I61: 1118.35 | J61: 1130.45 | K61: 1142.90 | L61: 1118 | M61: 1093.45 | N61: 1661800 | O61: -2.67%
A62: 57 | B62: Others | C62: CONCOR | D62: 663.00 | E62: 655.98 | F62: 643.32 | G62: 623.63 | H62: 610.97 | I62: 675.67 | J62: 688.33 | K62: 708.02 | L62: 668.65 | M62: 636.3 | N62: 2902500 | O62: 3.25%
A63: 58 | B63: Capital_Goods | C63: CUMMINSIND | D63: 746.05 | E63: 749.22 | F63: 732.53 | G63: 719.02 | H63: 702.33 | I63: 762.73 | J63: 779.42 | K63: 792.93 | L63: 765.9 | M63: 735.7 | N63: 1090600 | O63: -7.15%
A64: 59 | B64: FMCG | C64: DABUR | D64: 371.50 | E64: 376.22 | F64: 365.38 | G64: 359.27 | H64: 348.43 | I64: 382.33 | J64: 393.17 | K64: 399.28 | L64: 387.05 | M64: 370.1 | N64: 15492500 | O64: 3.12%
A65: 60 | B65: Cement | C65: DALMIABHA | D65: 2124.05 | E65: 2114.03 | F65: 2087.07 | G65: 2050.08 | H65: 2023.12 | I65: 2151.02 | J65: 2177.98 | K65: 2214.97 | L65: 2141 | M65: 2077.05 | N65: 467400 | O65: 4.85%
A66: 61 | B66: Banking | C66: DCBBANK | D66: 159.75 | E66: 160.08 | F66: 158.27 | G66: 156.78 | H66: 154.97 | I66: 161.57 | J66: 163.38 | K66: 164.87 | L66: 161.9 | M66: 158.6 | N66: 4059000 | O66: -2.06%
A67: 62 | B67: Finance | C67: DHFL | D67: 230.45 | E67: 232.90 | F67: 224.05 | G67: 217.65 | H67: 208.80 | I67: 239.30 | J67: 248.15 | K67: 254.55 | L67: 241.75 | M67: 226.5 | N67: 16237500 | O67: -1.93%
A68: 63 | B68: Media | C68: DISHTV | D68: 43.30 | E68: 43.25 | F68: 42.60 | G68: 41.90 | H68: 41.25 | I68: 43.95 | J68: 44.60 | K68: 45.30 | L68: 43.9 | M68: 42.55 | N68: 42176000 | O68: -0.66%
A69: 64 | B69: Pharma | C69: DIVISLAB | D69: 1514.00 | E69: 1504.68 | F69: 1485.37 | G69: 1456.73 | H69: 1437.42 | I69: 1533.32 | J69: 1552.63 | K69: 1581.27 | L69: 1524 | M69: 1476.05 | N69: 3384800 | O69: 3.28%
A70: 65 | B70: Realty | C70: DLF | D70: 172.50 | E70: 170.43 | F70: 166.67 | G70: 160.83 | H70: 157.07 | I70: 176.27 | J70: 180.03 | K70: 185.87 | L70: 174.2 | M70: 164.6 | N70: 27492800 | O70: 7.25%
A71: 66 | B71: Pharma | C71: DRREDDY | D71: 2472.60 | E71: 2502.77 | F71: 2431.83 | G71: 2391.07 | H71: 2320.13 | I71: 2543.53 | J71: 2614.47 | K71: 2655.23 | L71: 2573.7 | M71: 2462 | N71: 3730500 | O71: -0.07%
A72: 67 | B72: Automobile | C72: EICHERMOT | D72: 22098.20 | E72: 22069.28 | F72: 21793.57 | G72: 21488.93 | H72: 21213.22 | I72: 22373.92 | J72: 22649.63 | K72: 22954.27 | L72: 22345 | M72: 21764.65 | N72: 306450 | O72: -1.49%
A73: 68 | B73: Infrastructure | C73: ENGINERSIN | D73: 118.50 | E73: 118.37 | F73: 116.88 | G73: 115.27 | H73: 113.78 | I73: 119.98 | J73: 121.47 | K73: 123.08 | L73: 119.85 | M73: 116.75 | N73: 6352500 | O73: 0.39%
A74: 69 | B74: Finance | C74: EQUITAS | D74: 113.80 | E74: 113.13 | F74: 107.22 | G74: 100.63 | H74: 94.72 | I74: 119.72 | J74: 125.63 | K74: 132.22 | L74: 119.05 | M74: 106.55 | N74: 13352000 | O74: -5.89%
A75: 70 | B75: Automobile | C75: ESCORTS | D75: 676.85 | E75: 668.98 | F75: 646.57 | G75: 616.28 | H75: 593.87 | I75: 699.27 | J75: 721.68 | K75: 751.97 | L75: 691.4 | M75: 638.7 | N75: 4612300 | O75: 6.26%
A76: 71 | B76: Automobile | C76: EXIDEIND | D76: 253.30 | E76: 256.90 | F76: 247.80 | G76: 242.30 | H76: 233.20 | I76: 262.40 | J76: 271.50 | K76: 277.00 | L76: 266 | M76: 251.4 | N76: 5738000 | O76: 10.99%
A77: 72 | B77: Banking | C77: FEDERALBNK | D77: 83.20 | E77: 82.98 | F77: 82.22 | G77: 81.23 | H77: 80.47 | I77: 83.97 | J77: 84.73 | K77: 85.72 | L77: 83.75 | M77: 82 | N77: 45804000 | O77: 0.82%
A78: 73 | B78: Oil_Gas | C78: GAIL | D78: 368.70 | E78: 369.18 | F78: 363.87 | G78: 359.03 | H78: 353.72 | I78: 374.02 | J78: 379.33 | K78: 384.17 | L78: 374.5 | M78: 364.35 | N78: 20093178 | O78: -1.15%
A79: 74 | B79: Pharma | C79: GLENMARK | D79: 624.80 | E79: 625.10 | F79: 616.30 | G79: 607.80 | H79: 599.00 | I79: 633.60 | J79: 642.40 | K79: 650.90 | L79: 633.9 | M79: 616.6 | N79: 3791000 | O79: -2.39%
A80: 75 | B80: Infrastructure | C80: GMRINFRA | D80: 17.15 | E80: 17.08 | F80: 16.87 | G80: 16.58 | H80: 16.37 | I80: 17.37 | J80: 17.58 | K80: 17.87 | L80: 17.3 | M80: 16.8 | N80: 169875000 | O80: -0.19%
A81: 76 | B81: Others | C81: GODFRYPHLP | D81: 777.60 | E81: 777.22 | F81: 768.68 | G81: 759.77 | H81: 751.23 | I81: 786.13 | J81: 794.67 | K81: 803.58 | L81: 785.75 | M81: 768.3 | N81: 465500 | O81: 1.37%
A82: 77 | B82: FMCG | C82: GODREJCP | D82: 703.90 | E82: 713.50 | F82: 688.95 | G82: 674.00 | H82: 649.45 | I82: 728.45 | J82: 753.00 | K82: 767.95 | L82: 738.05 | M82: 698.55 | N82: 4807200 | O82: 10.68%
A83: 78 | B83: FMCG | C83: GODREJIND | D83: 466.85 | E83: 470.93 | F83: 460.92 | G83: 454.98 | H83: 444.97 | I83: 476.87 | J83: 486.88 | K83: 492.82 | L83: 480.95 | M83: 465 | N83: 2254500 | O83: -4.21%
A84: 79 | B84: Pharma | C84: GRANULES | D84: 101.30 | E84: 100.52 | F84: 99.28 | G84: 97.27 | H84: 96.03 | I84: 102.53 | J84: 103.77 | K84: 105.78 | L84: 101.75 | M84: 98.5 | N84: 13335000 | O84: -1.48%
A85: 80 | B85: Cement | C85: GRASIM | D85: 847.10 | E85: 841.92 | F85: 827.43 | G85: 807.77 | H85: 793.28 | I85: 861.58 | J85: 876.07 | K85: 895.73 | L85: 856.4 | M85: 822.25 | N85: 7883250 | O85: -0.84%
A86: 81 | B86: Others | C86: GSFC | D86: 109.40 | E86: 108.42 | F86: 105.93 | G86: 102.47 | H86: 99.98 | I86: 111.88 | J86: 114.37 | K86: 117.83 | L86: 110.9 | M86: 104.95 | N86: 14836700 | O86: 2.01%
A87: 82 | B87: Others | C87: HAVELLS | D87: 645.65 | E87: 650.38 | F87: 638.82 | G87: 631.98 | H87: 620.42 | I87: 657.22 | J87: 668.78 | K87: 675.62 | L87: 661.95 | M87: 643.55 | N87: 4874000 | O87: -0.14%
A88: 83 | B88: Others | C88: HCC | D88: 12.85 | E88: 12.72 | F88: 12.53 | G88: 12.22 | H88: 12.03 | I88: 13.03 | J88: 13.22 | K88: 13.53 | L88: 12.9 | M88: 12.4 | N88: 30510000 | O88: 3.35%
A89: 84 | B89: Technology | C89: HCLTECH | D89: 1014.60 | E89: 1027.70 | F89: 996.40 | G89: 978.20 | H89: 946.90 | I89: 1045.90 | J89: 1077.20 | K89: 1095.40 | L89: 1059 | M89: 1009.5 | N89: 7967400 | O89: 3.62%
A90: 85 | B90: Finance | C90: HDFC | D90: 1769.70 | E90: 1773.47 | F90: 1748.18 | G90: 1726.67 | H90: 1701.38 | I90: 1794.98 | J90: 1820.27 | K90: 1841.78 | L90: 1798.75 | M90: 1751.95 | N90: 23990500 | O90: 0.95%
A91: 86 | B91: Banking | C91: HDFCBANK | D91: 1918.10 | E91: 1919.22 | F91: 1898.38 | G91: 1878.67 | H91: 1857.83 | I91: 1938.93 | J91: 1959.77 | K91: 1979.48 | L91: 1940.05 | M91: 1899.5 | N91: 15467250 | O91: 5.40%
A92: 88 | B92: Automobile | C92: HEROMOTOCO | D92: 2806.25 | E92: 2791.17 | F92: 2767.43 | G92: 2728.62 | H92: 2704.88 | I92: 2829.98 | J92: 2853.72 | K92: 2892.53 | L92: 2814.9 | M92: 2752.35 | N92: 1428600 | O92: 1.18%
A93: 89 | B93: Technology | C93: HEXAWARE | D93: 319.65 | E93: 324.63 | F93: 313.07 | G93: 306.48 | H93: 294.92 | I93: 331.22 | J93: 342.78 | K93: 349.37 | L93: 336.2 | M93: 318.05 | N93: 6072000 | O93: 2.48%
A94: 90 | B94: Metals | C94: HINDALCO | D94: 232.15 | E94: 229.12 | F94: 224.33 | G94: 216.52 | H94: 211.73 | I94: 236.93 | J94: 241.72 | K94: 249.53 | L94: 233.9 | M94: 221.3 | N94: 34366500 | O94: 6.57%
A95: 91 | B95: Oil_Gas | C95: HINDPETRO | D95: 230.50 | E95: 231.27 | F95: 226.78 | G95: 223.07 | H95: 218.58 | I95: 234.98 | J95: 239.47 | K95: 243.18 | L95: 235.75 | M95: 227.55 | N95: 20395200 | O95: 2.19%
A96: 92 | B96: FMCG | C96: HINDUNILVR | D96: 1609.80 | E96: 1605.45 | F96: 1590.05 | G96: 1570.30 | H96: 1554.90 | I96: 1625.20 | J96: 1640.60 | K96: 1660.35 | L96: 1620.85 | M96: 1585.7 | N96: 7787400 | O96: -1.23%
A97: 93 | B97: Metals | C97: HINDZINC | D97: 264.50 | E97: 263.97 | F97: 261.53 | G97: 258.57 | H97: 256.13 | I97: 266.93 | J97: 269.37 | K97: 272.33 | L97: 266.4 | M97: 261 | N97: 7782400 | O97: -2.05%
A98: 94 | B98: Finance | C98: IBULHSGFIN | D98: 854.30 | E98: 856.77 | F98: 834.53 | G98: 814.77 | H98: 792.53 | I98: 876.53 | J98: 898.77 | K98: 918.53 | L98: 879 | M98: 837 | N98: 16614500 | O98: 2.02%
A99: 95 | B99: Banking | C99: ICICIBANK | D99: 353.80 | E99: 354.45 | F99: 350.55 | G99: 347.30 | H99: 343.40 | I99: 357.70 | J99: 361.60 | K99: 364.85 | L99: 358.35 | M99: 351.2 | N99: 103053500 | O99: -4.12%
A100: 96 | B100: Others | C100: ICICIPRULI | D100: 346.70 | E100: 341.83 | F100: 335.27 | G100: 323.83 | H100: 317.27 | I100: 353.27 | J100: 359.83 | K100: 371.27 | L100: 348.4 | M100: 330.4 | N100: 3536000 | O100: -5.29%
A101: 97 | B101: Banking | C101: IDBI | D101: 59.65 | E101: 59.57 | F101: 59.18 | G101: 58.72 | H101: 58.33 | I101: 60.03 | J101: 60.42 | K101: 60.88 | L101: 59.95 | M101: 59.1 | N101: 37520000 | O101: -1.08%
A102: 98 | B102: Telecom | C102: IDEA | D102: 39.10 | E102: 38.95 | F102: 38.55 | G102: 38.00 | H102: 37.60 | I102: 39.50 | J102: 39.90 | K102: 40.45 | L102: 39.35 | M102: 38.4 | N102: 137105000 | O102: -0.05%
A103: 99 | B103: Finance | C103: IDFC | D103: 36.95 | E103: 36.80 | F103: 36.45 | G103: 35.95 | H103: 35.60 | I103: 37.30 | J103: 37.65 | K103: 38.15 | L103: 37.15 | M103: 36.3 | N103: 108873600 | O103: 0.04%
A104: 100 | B104: Banking | C104: IDFCBANK | D104: 35.35 | E104: 35.23 | F104: 34.67 | G104: 33.98 | H104: 33.42 | I104: 35.92 | J104: 36.48 | K104: 37.17 | L104: 35.8 | M104: 34.55 | N104: 120406000 | O104: 1.66%
A105: 101 | B105: Finance | C105: IFCI | D105: 14.30 | E105: 14.27 | F105: 13.98 | G105: 13.67 | H105: 13.38 | I105: 14.58 | J105: 14.87 | K105: 15.18 | L105: 14.55 | M105: 13.95 | N105: 52920000 | O105: -1.24%
A106: 102 | B106: Oil_Gas | C106: IGL | D106: 280.65 | E106: 278.08 | F106: 264.22 | G106: 247.78 | H106: 233.92 | I106: 294.52 | J106: 308.38 | K106: 324.82 | L106: 291.95 | M106: 261.65 | N106: 3580500 | O106: 46.62%
A107: 103 | B107: Cement | C107: INDIACEM | D107: 92.10 | E107: 91.97 | F107: 90.08 | G107: 88.07 | H107: 86.18 | I107: 93.98 | J107: 95.87 | K107: 97.88 | L107: 93.85 | M107: 89.95 | N107: 17680500 | O107: 3.00%
A108: 104 | B108: Banking | C108: INDIANB | D108: 251.05 | E108: 251.88 | F108: 247.42 | G108: 243.78 | H108: 239.32 | I108: 255.52 | J108: 259.98 | K108: 263.62 | L108: 256.35 | M108: 248.25 | N108: 4062000 | O108: -2.68%
A109: 105 | B109: Others | C109: INDIGO | D109: 929.95 | E109: 918.67 | F109: 901.33 | G109: 872.72 | H109: 855.38 | I109: 947.28 | J109: 964.62 | K109: 993.23 | L109: 936 | M109: 890.05 | N109: 3720600 | O109: -4.02%
A110: 106 | B110: Banking | C110: INDUSINDBK | D110: 1468.90 | E110: 1454.70 | F110: 1412.40 | G110: 1355.90 | H110: 1313.60 | I110: 1511.20 | J110: 1553.50 | K110: 1610.00 | L110: 1497 | M110: 1398.2 | N110: 7188000 | O110: -7.22%
A111: 107 | B111: Technology | C111: INFIBEAM | D111: 33.15 | E111: 32.83 | F111: 31.72 | G111: 30.28 | H111: 29.17 | I111: 34.27 | J111: 35.38 | K111: 36.82 | L111: 33.95 | M111: 31.4 | N111: 14872000 | O111: 3.36%
A112: 108 | B112: Telecom | C112: INFRATEL | D112: 262.45 | E112: 263.92 | F112: 260.38 | G112: 258.32 | H112: 254.78 | I112: 265.98 | J112: 269.52 | K112: 271.58 | L112: 267.45 | M112: 261.85 | N112: 6305300 | O112: 4.10%
A113: 109 | B113: Technology | C113: INFY | D113: 669.95 | E113: 673.58 | F113: 658.92 | G113: 647.88 | H113: 633.22 | I113: 684.62 | J113: 699.28 | K113: 710.32 | L113: 688.25 | M113: 662.55 | N113: 37084800 | O113: 1.31%
A114: 110 | B114: Oil_Gas | C114: IOC | D114: 142.10 | E114: 141.55 | F114: 139.60 | G114: 137.10 | H114: 135.15 | I114: 144.05 | J114: 146.00 | K114: 148.50 | L114: 143.5 | M114: 139.05 | N114: 29414000 | O114: 2.55%
A115: 111 | B115: Infrastructure | C115: IRB | D115: 144.40 | E115: 144.02 | F115: 139.03 | G115: 133.67 | H115: 128.68 | I115: 149.38 | J115: 154.37 | K115: 159.73 | L115: 149 | M115: 138.65 | N115: 12302500 | O115: -4.22%
A116: 112 | B116: FMCG | C116: ITC | D116: 278.75 | E116: 278.95 | F116: 275.45 | G116: 272.15 | H116: 268.65 | I116: 282.25 | J116: 285.75 | K116: 289.05 | L116: 282.45 | M116: 275.65 | N116: 66981600 | O116: 4.18%
A117: 113 | B117: Others | C117: JETAIRWAYS | D117: 225.30 | E117: 222.40 | F117: 216.90 | G117: 208.50 | H117: 203.00 | I117: 230.80 | J117: 236.30 | K117: 244.70 | L117: 227.9 | M117: 214 | N117: 5913200 | O117: 4.12%
A118: 114 | B118: Metals | C118: JINDALSTEL | D118: 175.60 | E118: 174.92 | F118: 171.98 | G118: 168.37 | H118: 165.43 | I118: 178.53 | J118: 181.47 | K118: 185.08 | L118: 177.85 | M118: 171.3 | N118: 23879250 | O118: 1.19%
A119: 115 | B119: Others | C119: JISLJALEQS | D119: 73.95 | E119: 73.25 | F119: 71.95 | G119: 69.95 | H119: 68.65 | I119: 75.25 | J119: 76.55 | K119: 78.55 | L119: 74.55 | M119: 71.25 | N119: 32787000 | O119: 0.83%
A120: 116 | B120: Realty | C120: JPASSOCIAT | D120: 6.80 | E120: 6.75 | F120: 6.55 | G120: 6.30 | H120: 6.10 | I120: 7.00 | J120: 7.20 | K120: 7.45 | L120: 6.95 | M120: 6.5 | N120: 115600000 | O120: 4.74%
A121: 117 | B121: Metals | C121: JSWSTEEL | D121: 344.45 | E121: 343.65 | F121: 339.25 | G121: 334.05 | H121: 329.65 | I121: 348.85 | J121: 353.25 | K121: 358.45 | L121: 348.05 | M121: 338.45 | N121: 48297000 | O121: -0.85%
A122: 118 | B122: Others | C122: JUBLFOOD | D122: 1109.70 | E122: 1108.95 | F122: 1074.75 | G122: 1039.80 | H122: 1005.60 | I122: 1143.90 | J122: 1178.10 | K122: 1213.05 | L122: 1143.15 | M122: 1074 | N122: 2674500 | O122: -5.23%
A123: 119 | B123: Others | C123: JUSTDIAL | D123: 504.75 | E123: 509.50 | F123: 494.00 | G123: 483.25 | H123: 467.75 | I123: 520.25 | J123: 535.75 | K123: 546.50 | L123: 525 | M123: 498.75 | N123: 2913400 | O123: 6.83%
A124: 120 | B124: Others | C124: KAJARIACER | D124: 408.55 | E124: 404.35 | F124: 397.20 | G124: 385.85 | H124: 378.70 | I124: 415.70 | J124: 422.85 | K124: 434.20 | L124: 411.5 | M124: 393 | N124: 2172000 | O124: 1.69%
A125: 121 | B125: Banking | C125: KOTAKBANK | D125: 1112.40 | E125: 1114.52 | F125: 1100.13 | G125: 1087.87 | H125: 1073.48 | I125: 1126.78 | J125: 1141.17 | K125: 1153.43 | L125: 1128.9 | M125: 1102.25 | N125: 12285600 | O125: 6.37%
A126: 122 | B126: Technology | C126: KPIT | D126: 218.25 | E126: 219.23 | F126: 215.22 | G126: 212.18 | H126: 208.17 | I126: 222.27 | J126: 226.28 | K126: 229.32 | L126: 223.25 | M126: 216.2 | N126: 7278750 | O126: -2.94%
A127: 123 | B127: Others | C127: KSCL | D127: 494.20 | E127: 497.68 | F127: 481.92 | G127: 469.63 | H127: 453.87 | I127: 509.97 | J127: 525.73 | K127: 538.02 | L127: 513.45 | M127: 485.4 | N127: 732000 | O127: -0.20%
A128: 124 | B128: Banking | C128: KTKBANK | D128: 104.60 | E128: 104.43 | F128: 103.57 | G128: 102.53 | H128: 101.67 | I128: 105.47 | J128: 106.33 | K128: 107.37 | L128: 105.3 | M128: 103.4 | N128: 14760400 | O128: -1.00%
A129: 125 | B129: Finance | C129: L&TFH | D129: 136.10 | E129: 133.77 | F129: 130.38 | G129: 124.67 | H129: 121.28 | I129: 139.48 | J129: 142.87 | K129: 148.58 | L129: 137.15 | M129: 128.05 | N129: 27369000 | O129: 2.63%
A130: 126 | B130: Finance | C130: LICHSGFIN | D130: 422.65 | E130: 419.68 | F130: 414.37 | G130: 406.08 | H130: 400.77 | I130: 427.97 | J130: 433.28 | K130: 441.57 | L130: 425 | M130: 411.4 | N130: 10140900 | O130: -5.37%
A131: 127 | B131: Capital_Goods | C131: LT | D131: 1332.65 | E131: 1347.80 | F131: 1310.90 | G131: 1289.15 | H131: 1252.25 | I131: 1369.55 | J131: 1406.45 | K131: 1428.20 | L131: 1384.7 | M131: 1326.05 | N131: 10861500 | O131: 3.51%
A132: 128 | B132: Pharma | C132: LUPIN | D132: 856.20 | E132: 863.53 | F132: 842.82 | G132: 829.43 | H132: 808.72 | I132: 876.92 | J132: 897.63 | K132: 911.02 | L132: 884.25 | M132: 850.15 | N132: 8745800 | O132: 3.03%
A133: 129 | B133: Automobile | C133: M&M | D133: 758.30 | E133: 763.70 | F133: 749.10 | G133: 739.90 | H133: 725.30 | I133: 772.90 | J133: 787.50 | K133: 796.70 | L133: 778.3 | M133: 754.5 | N133: 15294000 | O133: -2.22%
A134: 130 | B134: Finance | C134: M&MFIN | D134: 421.30 | E134: 419.70 | F134: 411.60 | G134: 401.90 | H134: 393.80 | I134: 429.40 | J134: 437.50 | K134: 447.20 | L134: 427.8 | M134: 410 | N134: 9848750 | O134: -0.69%
A135: 131 | B135: Others | C135: MANAPPURAM | D135: 78.30 | E135: 80.10 | F135: 74.30 | G135: 70.30 | H135: 64.50 | I135: 84.10 | J135: 89.90 | K135: 93.90 | L135: 85.9 | M135: 76.1 | N135: 14136000 | O135: 1.33%
A136: 132 | B136: FMCG | C136: MARICO | D136: 318.00 | E136: 318.85 | F136: 313.35 | G136: 308.70 | H136: 303.20 | I136: 323.50 | J136: 329.00 | K136: 333.65 | L136: 324.35 | M136: 314.2 | N136: 6773000 | O136: 1.64%
A137: 133 | B137: Automobile | C137: MARUTI | D137: 6724.05 | E137: 6700.00 | F137: 6630.10 | G137: 6536.15 | H137: 6466.25 | I137: 6793.95 | J137: 6863.85 | K137: 6957.80 | L137: 6769.9 | M137: 6606.05 | N137: 3046575 | O137: 2.28%
A138: 134 | B138: FMCG | C138: MCDOWELL-N | D138: 621.00 | E138: 618.40 | F138: 599.50 | G138: 578.00 | H138: 559.10 | I138: 639.90 | J138: 658.80 | K138: 680.30 | L138: 637.3 | M138: 596.9 | N138: 10897500 | O138: -1.87%
A139: 135 | B139: Others | C139: MCX | D139: 715.80 | E139: 716.68 | F139: 704.42 | G139: 693.03 | H139: 680.77 | I139: 728.07 | J139: 740.33 | K139: 751.72 | L139: 728.95 | M139: 705.3 | N139: 3384500 | O139: -3.57%
A140: 136 | B140: Finance | C140: MFSL | D140: 402.10 | E140: 395.22 | F140: 385.43 | G140: 368.77 | H140: 358.98 | I140: 411.88 | J140: 421.67 | K140: 438.33 | L140: 405 | M140: 378.55 | N140: 2282400 | O140: 4.16%
A141: 137 | B141: Others | C141: MGL | D141: 849.45 | E141: 850.82 | F141: 832.73 | G141: 816.02 | H141: 797.93 | I141: 867.53 | J141: 885.62 | K141: 902.33 | L141: 868.9 | M141: 834.1 | N141: 1699800 | O141: 7.84%
A142: 138 | B142: Technology | C142: MINDTREE | D142: 831.05 | E142: 837.15 | F142: 815.60 | G142: 800.15 | H142: 778.60 | I142: 852.60 | J142: 874.15 | K142: 889.60 | L142: 858.7 | M142: 821.7 | N142: 4320000 | O142: -3.26%
A143: 139 | B143: Automobile | C143: MOTHERSUMI | D143: 159.95 | E143: 160.93 | F143: 158.02 | G143: 156.08 | H143: 153.17 | I143: 162.87 | J143: 165.78 | K143: 167.72 | L143: 163.85 | M143: 159 | N143: 23794950 | O143: -0.47%
A144: 140 | B144: Automobile | C144: MRF | D144: 65120.15 | E144: 65201.37 | F144: 64728.78 | G144: 64337.42 | H144: 63864.83 | I144: 65592.73 | J144: 66065.32 | K144: 66456.68 | L144: 65673.95 | M144: 64810 | N144: 21770 | O144: 1.73%
A145: 141 | B145: Others | C145: MRPL | D145: 83.10 | E145: 83.82 | F145: 81.73 | G145: 80.37 | H145: 78.28 | I145: 85.18 | J145: 87.27 | K145: 88.63 | L145: 85.9 | M145: 82.45 | N145: 4554000 | O145: 6.19%
A146: 142 | B146: Finance | C146: MUTHOOTFIN | D146: 426.95 | E146: 423.45 | F146: 413.50 | G146: 400.05 | H146: 390.10 | I146: 436.90 | J146: 446.85 | K146: 460.30 | L146: 433.4 | M146: 410 | N146: 1722000 | O146: -3.37%
A147: 143 | B147: Others | C147: NATIONALUM | D147: 69.85 | E147: 69.35 | F147: 68.35 | G147: 66.85 | H147: 65.85 | I147: 70.85 | J147: 71.85 | K147: 73.35 | L147: 70.35 | M147: 67.85 | N147: 31200000 | O147: -0.86%
A148: 144 | B148: Others | C148: NBCC | D148: 58.85 | E148: 58.18 | F148: 56.87 | G148: 54.88 | H148: 53.57 | I148: 60.17 | J148: 61.48 | K148: 63.47 | L148: 59.5 | M148: 56.2 | N148: 24326000 | O148: 2.58%
A149: 145 | B149: Infrastructure | C149: NCC | D149: 78.60 | E149: 77.88 | F149: 76.42 | G149: 74.23 | H149: 72.77 | I149: 80.07 | J149: 81.53 | K149: 83.72 | L149: 79.35 | M149: 75.7 | N149: 44672000 | O149: -0.61%
A150: 146 | B150: Others | C150: NESTLEIND | D150: 9986.15 | E150: 10068.97 | F150: 9827.93 | G150: 9669.72 | H150: 9428.68 | I150: 10227.18 | J150: 10468.22 | K150: 10626.43 | L150: 10310 | M150: 9910.75 | N150: 360450 | O150: -3.08%
A151: 147 | B151: Power | C151: NHPC | D151: 24.55 | E151: 24.48 | F151: 24.37 | G151: 24.18 | H151: 24.07 | I151: 24.67 | J151: 24.78 | K151: 24.97 | L151: 24.6 | M151: 24.3 | N151: 19359000 | O151: 3.31%
A152: 148 | B152: Technology | C152: NIITTECH | D152: 1203.55 | E152: 1214.88 | F152: 1186.67 | G152: 1169.78 | H152: 1141.57 | I152: 1231.77 | J152: 1259.98 | K152: 1276.87 | L152: 1243.1 | M152: 1198 | N152: 1438500 | O152: -2.98%
A153: 149 | B153: Metals | C153: NMDC | D153: 114.05 | E153: 112.40 | F153: 110.40 | G153: 106.75 | H153: 104.75 | I153: 116.05 | J153: 118.05 | K153: 121.70 | L153: 114.4 | M153: 108.75 | N153: 19284000 | O153: -0.83%
A154: 150 | B154: Power | C154: NTPC | D154: 157.70 | E154: 158.03 | F154: 156.37 | G154: 155.03 | H154: 153.37 | I154: 159.37 | J154: 161.03 | K154: 162.37 | L154: 159.7 | M154: 156.7 | N154: 32916000 | O154: 3.35%
A155: 151 | B155: Technology | C155: OFSS | D155: 3557.90 | E155: 3561.30 | F155: 3476.25 | G155: 3394.60 | H155: 3309.55 | I155: 3642.95 | J155: 3728.00 | K155: 3809.65 | L155: 3646.35 | M155: 3479.65 | N155: 230550 | O155: 0.46%
A156: 152 | B156: Oil_Gas | C156: OIL | D156: 199.15 | E156: 198.32 | F156: 197.13 | G156: 195.12 | H156: 193.93 | I156: 200.33 | J156: 201.52 | K156: 203.53 | L156: 199.5 | M156: 196.3 | N156: 2494866 | O156: 1.38%
A157: 153 | B157: Oil_Gas | C157: ONGC | D157: 152.95 | E157: 152.75 | F157: 151.55 | G157: 150.15 | H157: 148.95 | I157: 154.15 | J157: 155.35 | K157: 156.75 | L157: 153.95 | M157: 151.35 | N157: 41283750 | O157: 1.76%
A158: 154 | B158: Banking | C158: ORIENTBANK | D158: 80.80 | E158: 80.52 | F158: 78.78 | G158: 76.77 | H158: 75.03 | I158: 82.53 | J158: 84.27 | K158: 86.28 | L158: 82.25 | M158: 78.5 | N158: 9966000 | O158: -7.98%
A159: 155 | B159: Textile | C159: PAGEIND | D159: 28678.45 | E159: 29057.48 | F159: 28175.97 | G159: 27673.48 | H159: 26791.97 | I159: 29559.97 | J159: 30441.48 | K159: 30943.97 | L159: 29939 | M159: 28555 | N159: 106825 | O159: 3.84%
A160: 156 | B160: Others | C160: PCJEWELLER | D160: 70.25 | E160: 67.28 | F160: 61.97 | G160: 53.68 | H160: 48.37 | I160: 75.57 | J160: 80.88 | K160: 89.17 | L160: 72.6 | M160: 59 | N160: 9495000 | O160: 10.10%
A161: 157 | B161: Pharma | C161: PEL | D161: 2146.80 | E161: 2176.47 | F161: 2109.13 | G161: 2071.47 | H161: 2004.13 | I161: 2214.13 | J161: 2281.47 | K161: 2319.13 | L161: 2243.8 | M161: 2138.8 | N161: 3324718 | O161: 4.45%
A162: 158 | B162: Oil_Gas | C162: PETRONET | D162: 221.90 | E162: 222.25 | F162: 219.90 | G162: 217.90 | H162: 215.55 | I162: 224.25 | J162: 226.60 | K162: 228.60 | L162: 224.6 | M162: 220.25 | N162: 10302000 | O162: -3.10%
A163: 159 | B163: Finance | C163: PFC | D163: 95.00 | E163: 95.33 | F163: 92.67 | G163: 90.33 | H163: 87.67 | I163: 97.67 | J163: 100.33 | K163: 102.67 | L163: 98 | M163: 93 | N163: 31369200 | O163: -5.49%
A164: 160 | B164: FMCG | C164: PIDILITIND | D164: 974.95 | E164: 971.32 | F164: 956.63 | G164: 938.32 | H164: 923.63 | I164: 989.63 | J164: 1004.32 | K164: 1022.63 | L164: 986 | M164: 953 | N164: 2894000 | O164: 0.98%
A165: 161 | B165: Banking | C165: PNB | D165: 74.60 | E165: 74.40 | F165: 73.45 | G165: 72.30 | H165: 71.35 | I165: 75.55 | J165: 76.50 | K165: 77.65 | L165: 75.35 | M165: 73.25 | N165: 103118500 | O165: -0.76%
A166: 162 | B166: Power | C166: POWERGRID | D166: 189.10 | E166: 188.32 | F166: 186.83 | G166: 184.57 | H166: 183.08 | I166: 190.58 | J166: 192.07 | K166: 194.33 | L166: 189.8 | M166: 186.05 | N166: 37344000 | O166: -0.07%
A167: 163 | B167: Power | C167: PTC | D167: 78.35 | E167: 78.35 | F167: 77.05 | G167: 75.75 | H167: 74.45 | I167: 79.65 | J167: 80.95 | K167: 82.25 | L167: 79.65 | M167: 77.05 | N167: 9336000 | O167: 0.95%
A168: 164 | B168: Others | C168: PVR | D168: 1373.35 | E168: 1378.92 | F168: 1361.28 | G168: 1349.22 | H168: 1331.58 | I168: 1390.98 | J168: 1408.62 | K168: 1420.68 | L168: 1396.55 | M168: 1366.85 | N168: 1197200 | O168: 0.34%
A169: 165 | B169: Cement | C169: RAMCOCEM | D169: 602.10 | E169: 601.83 | F169: 592.67 | G169: 583.23 | H169: 574.07 | I169: 611.27 | J169: 620.43 | K169: 629.87 | L169: 611 | M169: 592.4 | N169: 755200 | O169: 0.11%
A170: 166 | B170: Others | C170: RAYMOND | D170: 768.60 | E170: 771.18 | F170: 757.37 | G170: 746.13 | H170: 732.32 | I170: 782.42 | J170: 796.23 | K170: 807.47 | L170: 785 | M170: 759.95 | N170: 4147200 | O170: -0.33%
A171: 167 | B171: Banking | C171: RBLBANK | D171: 522.55 | E171: 525.85 | F171: 517.70 | G171: 512.85 | H171: 504.70 | I171: 530.70 | J171: 538.85 | K171: 543.70 | L171: 534 | M171: 521 | N171: 6404400 | O171: -2.00%
A172: 168 | B172: Telecom | C172: RCOM | D172: 14.15 | E172: 13.67 | F172: 13.08 | G172: 12.02 | H172: 11.43 | I172: 14.73 | J172: 15.32 | K172: 16.38 | L172: 14.25 | M172: 12.6 | N172: 80310000 | O172: -3.33%
A173: 169 | B173: Power | C173: RECLTD | D173: 117.70 | E173: 117.92 | F173: 114.53 | G173: 111.37 | H173: 107.98 | I173: 121.08 | J173: 124.47 | K173: 127.63 | L173: 121.3 | M173: 114.75 | N173: 33894000 | O173: -3.47%
A174: 170 | B174: Finance | C174: RELCAPITAL | D174: 249.55 | E174: 249.18 | F174: 243.67 | G174: 237.78 | H174: 232.27 | I174: 255.07 | J174: 260.58 | K174: 266.47 | L174: 254.7 | M174: 243.3 | N174: 12096000 | O174: 5.48%
A175: 171 | B175: Oil_Gas | C175: RELIANCE | D175: 1061.65 | E175: 1060.87 | F175: 1051.83 | G175: 1042.02 | H175: 1032.98 | I175: 1070.68 | J175: 1079.72 | K175: 1089.53 | L175: 1069.9 | M175: 1051.05 | N175: 48549000 | O175: 1.79%
A176: 172 | B176: Power | C176: RELINFRA | D176: 361.35 | E176: 361.12 | F176: 356.23 | G176: 351.12 | H176: 346.23 | I176: 366.23 | J176: 371.12 | K176: 376.23 | L176: 366 | M176: 356 | N176: 6260800 | O176: -0.12%
A177: 173 | B177: Others | C177: REPCOHOME | D177: 384.00 | E177: 382.08 | F177: 369.67 | G177: 355.33 | H177: 342.92 | I177: 396.42 | J177: 408.83 | K177: 423.17 | L177: 394.5 | M177: 367.75 | N177: 552600 | O177: -13.76%
A178: 174 | B178: Power | C178: RPOWER | D178: 31.30 | E178: 31.23 | F178: 30.32 | G178: 29.33 | H178: 28.42 | I178: 32.22 | J178: 33.13 | K178: 34.12 | L178: 32.15 | M178: 30.25 | N178: 42791000 | O178: 1.67%
A179: 175 | B179: Metals | C179: SAIL | D179: 67.30 | E179: 66.60 | F179: 65.45 | G179: 63.60 | H179: 62.45 | I179: 68.45 | J179: 69.60 | K179: 71.45 | L179: 67.75 | M179: 64.75 | N179: 69744000 | O179: 3.55%
A180: 176 | B180: Banking | C180: SBIN | D180: 286.25 | E180: 284.67 | F180: 280.58 | G180: 274.92 | H180: 270.83 | I180: 290.33 | J180: 294.42 | K180: 300.08 | L180: 288.75 | M180: 279 | N180: 92871000 | O180: -3.18%
A181: 177 | B181: Cement | C181: SHREECEM | D181: 14062.30 | E181: 13927.43 | F181: 13604.87 | G181: 13147.43 | H181: 12824.87 | I181: 14384.87 | J181: 14707.43 | K181: 15164.87 | L181: 14250 | M181: 13470 | N181: 139150 | O181: 12.81%
A182: 178 | B182: Capital_Goods | C182: SIEMENS | D182: 944.80 | E182: 956.78 | F182: 925.87 | G182: 906.93 | H182: 876.02 | I182: 975.72 | J182: 1006.63 | K182: 1025.57 | L182: 987.7 | M182: 937.85 | N182: 1140000 | O182: 6.44%
A183: 179 | B183: Banking | C183: SOUTHBANK | D183: 14.85 | E183: 14.80 | F183: 14.65 | G183: 14.45 | H183: 14.30 | I183: 15.00 | J183: 15.15 | K183: 15.35 | L183: 14.95 | M183: 14.6 | N183: 127460286 | O183: 1.21%
A184: 180 | B184: Others | C184: SREINFRA | D184: 35.70 | E184: 35.12 | F184: 33.78 | G184: 31.87 | H184: 30.53 | I184: 37.03 | J184: 38.37 | K184: 40.28 | L184: 36.45 | M184: 33.2 | N184: 11046000 | O184: -4.19%
A185: 181 | B185: Textile | C185: SRF | D185: 1946.75 | E185: 1952.92 | F185: 1917.83 | G185: 1888.92 | H185: 1853.83 | I185: 1981.83 | J185: 2016.92 | K185: 2045.83 | L185: 1988 | M185: 1924 | N185: 598500 | O185: -18.29%
A186: 182 | B186: Finance | C186: SRTRANSFIN | D186: 1208.75 | E186: 1194.25 | F186: 1174.50 | G186: 1140.25 | H186: 1120.50 | I186: 1228.50 | J186: 1248.25 | K186: 1282.50 | L186: 1214 | M186: 1160 | N186: 3690000 | O186: -2.13%
A187: 183 | B187: Pharma | C187: STAR | D187: 426.20 | E187: 427.18 | F187: 421.22 | G187: 416.23 | H187: 410.27 | I187: 432.17 | J187: 438.13 | K187: 443.12 | L187: 433.15 | M187: 422.2 | N187: 3485600 | O187: -4.39%
A188: 184 | B188: Pharma | C188: SUNPHARMA | D188: 573.50 | E188: 575.57 | F188: 566.63 | G188: 559.77 | H188: 550.83 | I188: 582.43 | J188: 591.37 | K188: 598.23 | L188: 584.5 | M188: 568.7 | N188: 28939900 | O188: -0.54%
A189: 185 | B189: Media | C189: SUNTV | D189: 673.05 | E189: 666.33 | F189: 657.67 | G189: 642.28 | H189: 633.62 | I189: 681.72 | J189: 690.38 | K189: 705.77 | L189: 675 | M189: 650.95 | N189: 6747000 | O189: 1.70%
A190: 186 | B190: Power | C190: SUZLON | D190: 6.30 | E190: 6.33 | F190: 6.22 | G190: 6.13 | H190: 6.02 | I190: 6.42 | J190: 6.53 | K190: 6.62 | L190: 6.45 | M190: 6.25 | N190: 286581000 | O190: 0.42%
A191: 187 | B191: Banking | C191: SYNDIBANK | D191: 35.00 | E191: 34.58 | F191: 33.97 | G191: 32.93 | H191: 32.32 | I191: 35.62 | J191: 36.23 | K191: 37.27 | L191: 35.2 | M191: 33.55 | N191: 24858000 | O191: -15.74%
A192: 188 | B192: Fertilisers | C192: TATACHEM | D192: 691.45 | E192: 689.48 | F192: 683.47 | G192: 675.48 | H192: 669.47 | I192: 697.47 | J192: 703.48 | K192: 711.47 | L192: 695.5 | M192: 681.5 | N192: 2398500 | O192: 0.88%
A193: 189 | B193: Telecom | C193: TATACOMM | D193: 499.70 | E193: 499.62 | F193: 490.08 | G193: 480.47 | H193: 470.93 | I193: 509.23 | J193: 518.77 | K193: 528.38 | L193: 509.15 | M193: 490 | N193: 3128800 | O193: 4.68%
A194: 190 | B194: Technology | C194: TATAELXSI | D194: 1076.05 | E194: 1067.28 | F194: 1050.22 | G194: 1024.38 | H194: 1007.32 | I194: 1093.12 | J194: 1110.18 | K194: 1136.02 | L194: 1084.35 | M194: 1041.45 | N194: 1193600 | O194: -10.93%
A195: 191 | B195: FMCG | C195: TATAGLOBAL | D195: 217.65 | E195: 217.47 | F195: 215.23 | G195: 212.82 | H195: 210.58 | I195: 219.88 | J195: 222.12 | K195: 224.53 | L195: 219.7 | M195: 215.05 | N195: 11022750 | O195: -0.18%
A196: 192 | B196: Automobile | C196: TATAMOTORS | D196: 179.70 | E196: 181.57 | F196: 176.53 | G196: 173.37 | H196: 168.33 | I196: 184.73 | J196: 189.77 | K196: 192.93 | L196: 186.6 | M196: 178.4 | N196: 65500000 | O196: -0.89%
A197: 193 | B197: Automobile | C197: TATAMTRDVR | D197: 97.55 | E197: 98.57 | F197: 94.98 | G197: 92.42 | H197: 88.83 | I197: 101.13 | J197: 104.72 | K197: 107.28 | L197: 102.15 | M197: 96 | N197: 26637800 | O197: 0.41%
A198: 194 | B198: Power | C198: TATAPOWER | D198: 76.80 | E198: 76.82 | F198: 75.58 | G198: 74.37 | H198: 73.13 | I198: 78.03 | J198: 79.27 | K198: 80.48 | L198: 78.05 | M198: 75.6 | N198: 51939000 | O198: 3.07%
A199: 195 | B199: Metals | C199: TATASTEEL | D199: 559.10 | E199: 559.43 | F199: 553.67 | G199: 548.23 | H199: 542.47 | I199: 564.87 | J199: 570.63 | K199: 576.07 | L199: 565.2 | M199: 554 | N199: 31960503 | O199: 1.05%
A200: 196 | B200: Technology | C200: TCS | D200: 1941.20 | E200: 1932.65 | F200: 1915.55 | G200: 1889.90 | H200: 1872.80 | I200: 1958.30 | J200: 1975.40 | K200: 2001.05 | L200: 1949.75 | M200: 1907 | N200: 9716750 | O200: 1.29%
A201: 197 | B201: Technology | C201: TECHM | D201: 724.25 | E201: 728.65 | F201: 712.10 | G201: 699.95 | H201: 683.40 | I201: 740.80 | J201: 757.35 | K201: 769.50 | L201: 745.2 | M201: 716.5 | N201: 14296800 | O201: -3.04%
A202: 198 | B202: FMCG | C202: TITAN | D202: 855.20 | E202: 851.37 | F202: 839.33 | G202: 823.47 | H202: 811.43 | I202: 867.23 | J202: 879.27 | K202: 895.13 | L202: 863.4 | M202: 835.5 | N202: 13887000 | O202: -1.56%
A203: 199 | B203: Pharma | C203: TORNTPHARM | D203: 1717.35 | E203: 1701.73 | F203: 1673.67 | G203: 1629.98 | H203: 1601.92 | I203: 1745.42 | J203: 1773.48 | K203: 1817.17 | L203: 1729.8 | M203: 1658.05 | N203: 423500 | O203: -4.83%
A204: 200 | B204: Power | C204: TORNTPOWER | D204: 260.80 | E204: 260.83 | F204: 255.77 | G204: 250.73 | H204: 245.67 | I204: 265.87 | J204: 270.93 | K204: 275.97 | L204: 265.9 | M204: 255.8 | N204: 2328000 | O204: 2.51%
A205: 201 | B205: Media | C205: TV18BRDCST | D205: 38.45 | E205: 38.32 | F205: 37.63 | G205: 36.82 | H205: 36.13 | I205: 39.13 | J205: 39.82 | K205: 40.63 | L205: 39 | M205: 37.5 | N205: 46682000 | O205: -1.03%
A206: 202 | B206: Automobile | C206: TVSMOTOR | D206: 547.20 | E206: 543.78 | F206: 536.27 | G206: 525.33 | H206: 517.82 | I206: 554.72 | J206: 562.23 | K206: 573.17 | L206: 551.3 | M206: 532.85 | N206: 8380000 | O206: -1.82%
... 30 more rows

Sheet Cash Intra
M5: Back to Main Page
A6: FOR INTRA DAY TRADING | K6: =Main!B10 -> 2018-11-02
A8: Sr.no | B8: Scrip | C8: CLOSE RATE | D8: Pivot Point | E8: Supports | H8: Resistances
C9: Point | E9: S1 | F9: S2 | G9: S3 | H9: R1 | I9: R2 | J9: R3 | K9: HIGH | L9: LOW | M9: Total Trade Quanity in Lakhs
A10: 1 | B10: Nifty 50 | C10: 10380.45 | D10: 10388.08 | E10: 10334.27 | F10: 10288.08 | G10: 10234.27 | H10: 10434.27 | I10: 10488.08 | J10: 10534.27 | K10: 10441.9 | L10: 10341.9
A11: 2 | B11: Nifty Bank | C11: 25323.65 | D11: 25284.90 | E11: 25168.20 | F11: 25012.75 | G11: 24896.05 | H11: 25440.35 | I11: 25557.05 | J11: 25712.50 | K11: 25401.6 | L11: 25129.45
A12: 3 | B12: Nifty CPSE | C12: 2150.7 | D12: 2154.17 | E12: 2140.88 | F12: 2131.07 | G12: 2117.78 | H12: 2163.98 | I12: 2177.27 | J12: 2187.08 | K12: 2167.45 | L12: 2144.35
A13: 4 | B13: Nifty Infra | C13: 3001.6 | D13: 3014.65 | E13: 2981.75 | F13: 2961.90 | G13: 2929.00 | H13: 3034.50 | I13: 3067.40 | J13: 3087.25 | K13: 3047.55 | L13: 2994.8
A14: 5 | B14: Nifty IT | C14: 14622 | D14: 14718.27 | E14: 14444.93 | F14: 14267.87 | G14: 13994.53 | H14: 14895.33 | I14: 15168.67 | J14: 15345.73 | K14: 14991.6 | L14: 14541.2
A15: 6 | B15: Nifty PSE | C15: 3409.35 | D15: 3404.07 | E15: 3389.53 | F15: 3369.72 | G15: 3355.18 | H15: 3423.88 | I15: 3438.42 | J15: 3458.23 | K15: 3418.6 | L15: 3384.25
A16: 7 | B16: Nifty Midcap 50 | C16: 4758.5 | D16: 4758.33 | E16: 4730.92 | F16: 4703.33 | G16: 4675.92 | H16: 4785.92 | I16: 4813.33 | J16: 4840.92 | K16: 4785.75 | L16: 4730.75
A17: 8 | B17: ABB | C17: 1317.55 | D17: 1319.80 | E17: 1280.60 | F17: 1243.65 | G17: 1204.45 | H17: 1356.75 | I17: 1395.95 | J17: 1432.90 | K17: 1359 | L17: 1282.85 | M17: 4.13143
A18: 9 | B18: ACC | C18: 1405.7 | D18: 1398.67 | E18: 1385.13 | F18: 1364.57 | G18: 1351.03 | H18: 1419.23 | I18: 1432.77 | J18: 1453.33 | K18: 1412.2 | L18: 1378.1 | M18: 4.80091
A19: 10 | B19: AIAENG | C19: 1685.5 | D19: 1696.28 | E19: 1659.22 | F19: 1632.93 | G19: 1595.87 | H19: 1722.57 | I19: 1759.63 | J19: 1785.92 | K19: 1733.35 | L19: 1670 | M19: 0.44554
A20: 11 | B20: AUBANK | C20: 563.7 | D20: 561.97 | E20: 556.18 | F20: 548.67 | G20: 542.88 | H20: 569.48 | I20: 575.27 | J20: 582.78 | K20: 567.75 | L20: 554.45 | M20: 0.97948
A21: 12 | B21: ADANIENT | C21: 175 | D21: 173.98 | E21: 169.87 | F21: 164.73 | G21: 160.62 | H21: 179.12 | I21: 183.23 | J21: 188.37 | K21: 178.1 | L21: 168.85 | M21: 80.41754
A22: 13 | B22: ADANIPORTS | C22: 318.3 | D22: 319.60 | E22: 312.60 | F22: 306.90 | G22: 299.90 | H22: 325.30 | I22: 332.30 | J22: 338.00 | K22: 326.6 | L22: 313.9 | M22: 51.67082
A23: 14 | B23: ADANIPOWER | C23: 50.2 | D23: 49.03 | E23: 46.17 | F23: 42.13 | G23: 39.27 | H23: 53.07 | I23: 55.93 | J23: 59.97 | K23: 51.9 | L23: 45 | M23: 769.13113
A24: 15 | B24: ABFRL | C24: 187.25 | D24: 186.17 | E24: 180.33 | F24: 173.42 | G24: 167.58 | H24: 193.08 | I24: 198.92 | J24: 205.83 | K24: 192 | L24: 179.25 | M24: 16.5603
A25: 16 | B25: AJANTPHARM | C25: 1088.5 | D25: 1083.18 | E25: 1058.57 | F25: 1028.63 | G25: 1004.02 | H25: 1113.12 | I25: 1137.73 | J25: 1167.67 | K25: 1107.8 | L25: 1053.25 | M25: 8.35759
A26: 17 | B26: ALKEM | C26: 1899.05 | D26: 1905.23 | E26: 1876.52 | F26: 1853.98 | G26: 1825.27 | H26: 1927.77 | I26: 1956.48 | J26: 1979.02 | K26: 1933.95 | L26: 1882.7 | M26: 0.52142
A27: 18 | B27: AMARAJABAT | C27: 746.45 | D27: 745.48 | E27: 737.52 | F27: 728.58 | G27: 720.62 | H27: 754.42 | I27: 762.38 | J27: 771.32 | K27: 753.45 | L27: 736.55 | M27: 4.66691
A28: 19 | B28: AMBUJACEM | C28: 199.95 | D28: 199.38 | E28: 197.77 | F28: 195.58 | G28: 193.97 | H28: 201.57 | I28: 203.18 | J28: 205.37 | K28: 201 | L28: 197.2 | M28: 34.16848
A29: 20 | B29: APOLLOHOSP | C29: 1172.4 | D29: 1166.83 | E29: 1148.67 | F29: 1124.93 | G29: 1106.77 | H29: 1190.57 | I29: 1208.73 | J29: 1232.47 | K29: 1185 | L29: 1143.1 | M29: 3.74447
A30: 21 | B30: APOLLOTYRE | C30: 218.4 | D30: 219.53 | E30: 215.67 | F30: 212.93 | G30: 209.07 | H30: 222.27 | I30: 226.13 | J30: 228.87 | K30: 223.4 | L30: 216.8 | M30: 12.69156
A31: 22 | B31: ARVIND | C31: 345.4 | D31: 346.05 | E31: 336.15 | F31: 326.90 | G31: 317.00 | H31: 355.30 | I31: 365.20 | J31: 374.45 | K31: 355.95 | L31: 336.8 | M31: 53.5126
A32: 23 | B32: ASHOKLEY | C32: 113.35 | D32: 114.18 | E32: 111.52 | F32: 109.68 | G32: 107.02 | H32: 116.02 | I32: 118.68 | J32: 120.52 | K32: 116.85 | L32: 112.35 | M32: 297.11234
A33: 24 | B33: ASIANPAINT | C33: 1217.8 | D33: 1225.47 | E33: 1206.13 | F33: 1194.47 | G33: 1175.13 | H33: 1237.13 | I33: 1256.47 | J33: 1268.13 | K33: 1244.8 | L33: 1213.8 | M33: 12.0028
A34: 25 | B34: AUROPHARMA | C34: 792.55 | D34: 794.55 | E34: 784.30 | F34: 776.05 | G34: 765.80 | H34: 802.80 | I34: 813.05 | J34: 821.30 | K34: 804.8 | L34: 786.3 | M34: 32.35047
A35: 26 | B35: DMART | C35: 1366.1 | D35: 1367.10 | E35: 1345.20 | F35: 1324.30 | G35: 1302.40 | H35: 1388.00 | I35: 1409.90 | J35: 1430.80 | K35: 1389 | L35: 1346.2 | M35: 7.06506
A36: 27 | B36: AXISBANK | C36: 602.15 | D36: 597.42 | E36: 586.78 | F36: 571.42 | G36: 560.78 | H36: 612.78 | I36: 623.42 | J36: 638.78 | K36: 608.05 | L36: 582.05 | M36: 160.48865
A37: 28 | B37: BAJAJ-AUTO | C37: 2598.85 | D37: 2595.30 | E37: 2571.60 | F37: 2544.35 | G37: 2520.65 | H37: 2622.55 | I37: 2646.25 | J37: 2673.50 | K37: 2619 | L37: 2568.05 | M37: 3.56883
A38: 29 | B38: BAJFINANCE | C38: 2418.1 | D38: 2408.52 | E38: 2382.03 | F38: 2345.97 | G38: 2319.48 | H38: 2444.58 | I38: 2471.07 | J38: 2507.13 | K38: 2435 | L38: 2372.45 | M38: 25.52134
A39: 30 | B39: BAJAJFINSV | C39: 5386.5 | D39: 5408.05 | E39: 5349.10 | F39: 5311.70 | G39: 5252.75 | H39: 5445.45 | I39: 5504.40 | J39: 5541.80 | K39: 5467 | L39: 5370.65 | M39: 1.93618
A40: 31 | B40: BALKRISIND | C40: 1135.2 | D40: 1128.37 | E40: 1101.83 | F40: 1068.47 | G40: 1041.93 | H40: 1161.73 | I40: 1188.27 | J40: 1221.63 | K40: 1154.9 | L40: 1095 | M40: 9.91979
A41: 32 | B41: BANKBARODA | C41: 107.7 | D41: 108.87 | E41: 105.88 | F41: 104.07 | G41: 101.08 | H41: 110.68 | I41: 113.67 | J41: 115.48 | K41: 111.85 | L41: 107.05 | M41: 258.19979
A42: 33 | B42: BANKINDIA | C42: 86.05 | D42: 86.20 | E42: 84.75 | F42: 83.45 | G42: 82.00 | H42: 87.50 | I42: 88.95 | J42: 90.25 | K42: 87.65 | L42: 84.9 | M42: 60.3296
A43: 34 | B43: BATAINDIA | C43: 1015.4 | D43: 998.65 | E43: 979.25 | F43: 943.10 | G43: 923.70 | H43: 1034.80 | I43: 1054.20 | J43: 1090.35 | K43: 1018.05 | L43: 962.5 | M43: 25.3684
A44: 35 | B44: BERGEPAINT | C44: 292 | D44: 287.72 | E44: 281.43 | F44: 270.87 | G44: 264.58 | H44: 298.28 | I44: 304.57 | J44: 315.13 | K44: 294 | L44: 277.15 | M44: 31.2745
A45: 36 | B45: BEL | C45: 97.5 | D45: 96.40 | E45: 94.30 | F45: 91.10 | G45: 89.00 | H45: 99.60 | I45: 101.70 | J45: 104.90 | K45: 98.5 | L45: 93.2 | M45: 193.77238
A46: 37 | B46: BHARATFIN | C46: 910.65 | D46: 898.73 | E46: 869.87 | F46: 829.08 | G46: 800.22 | H46: 939.52 | I46: 968.38 | J46: 1009.17 | K46: 927.6 | L46: 857.95 | M46: 26.79009
A47: 38 | B47: BHARATFORG | C47: 581.05 | D47: 583.58 | E47: 575.82 | F47: 570.58 | G47: 562.82 | H47: 588.82 | I47: 596.58 | J47: 601.82 | K47: 591.35 | L47: 578.35 | M47: 4.30077
A48: 39 | B48: BHEL | C48: 70.2 | D48: 70.05 | E48: 69.35 | F48: 68.50 | G48: 67.80 | H48: 70.90 | I48: 71.60 | J48: 72.45 | K48: 70.75 | L48: 69.2 | M48: 185.14431
A49: 40 | B49: BPCL | C49: 283.45 | D49: 281.85 | E49: 276.70 | F49: 269.95 | G49: 264.80 | H49: 288.60 | I49: 293.75 | J49: 300.50 | K49: 287 | L49: 275.1 | M49: 75.15034
A50: 41 | B50: BHARTIARTL | C50: 293.5 | D50: 292.95 | E50: 287.90 | F50: 282.30 | G50: 277.25 | H50: 298.55 | I50: 303.60 | J50: 309.20 | K50: 298 | L50: 287.35 | M50: 47.48038
A51: 42 | B51: INFRATEL | C51: 261.2 | D51: 262.83 | E51: 258.72 | F51: 256.23 | G51: 252.12 | H51: 265.32 | I51: 269.43 | J51: 271.92 | K51: 266.95 | L51: 260.35 | M51: 22.70401
A52: 43 | B52: BIOCON | C52: 644.8 | D52: 651.02 | E52: 635.08 | F52: 625.37 | G52: 609.43 | H52: 660.73 | I52: 676.67 | J52: 686.38 | K52: 666.95 | L52: 641.3 | M52: 23.04468
A53: 44 | B53: BOSCHLTD | C53: 19624.75 | D53: 19867.22 | E53: 19279.18 | F53: 18933.62 | G53: 18345.58 | H53: 20212.78 | I53: 20800.82 | J53: 21146.38 | K53: 20455.25 | L53: 19521.65 | M53: 0.50101
A54: 45 | B54: BRITANNIA | C54: 5583.05 | D54: 5621.97 | E54: 5526.08 | F54: 5469.12 | G54: 5373.23 | H54: 5678.93 | I54: 5774.82 | J54: 5831.78 | K54: 5717.85 | L54: 5565 | M54: 1.2593
A55: 46 | B55: CRISIL | C55: 1458.25 | D55: 1461.02 | E55: 1432.63 | F55: 1407.02 | G55: 1378.63 | H55: 1486.63 | I55: 1515.02 | J55: 1540.63 | K55: 1489.4 | L55: 1435.4 | M55: 0.05977
A56: 47 | B56: CADILAHC | C56: 359.4 | D56: 360.77 | E56: 355.83 | F56: 352.27 | G56: 347.33 | H56: 364.33 | I56: 369.27 | J56: 372.83 | K56: 365.7 | L56: 357.2 | M56: 11.76169
A57: 48 | B57: CANBK | C57: 251.8 | D57: 255.40 | E57: 245.95 | F57: 240.10 | G57: 230.65 | H57: 261.25 | I57: 270.70 | J57: 276.55 | K57: 264.85 | L57: 249.55 | M57: 157.43295
A58: 49 | B58: CASTROLIND | C58: 144.45 | D58: 145.45 | E58: 143.00 | F58: 141.55 | G58: 139.10 | H58: 146.90 | I58: 149.35 | J58: 150.80 | K58: 147.9 | L58: 144 | M58: 9.19006
A59: 50 | B59: CENTRALBK | C59: 31.85 | D59: 31.85 | E59: 31.55 | F59: 31.25 | G59: 30.95 | H59: 32.15 | I59: 32.45 | J59: 32.75 | K59: 32.15 | L59: 31.55 | M59: 4.07406
A60: 51 | B60: CENTURYTEX | C60: 836.85 | D60: 835.53 | E60: 825.27 | F60: 813.68 | G60: 803.42 | H60: 847.12 | I60: 857.38 | J60: 868.97 | K60: 845.8 | L60: 823.95 | M60: 7.99236
A61: 52 | B61: CHOLAFIN | C61: 1339.05 | D61: 1318.82 | E61: 1283.03 | F61: 1227.02 | G61: 1191.23 | H61: 1374.83 | I61: 1410.62 | J61: 1466.63 | K61: 1354.6 | L61: 1262.8 | M61: 6.71463
A62: 53 | B62: CIPLA | C62: 615.4 | D62: 620.45 | E62: 608.95 | F62: 602.50 | G62: 591.00 | H62: 626.90 | I62: 638.40 | J62: 644.85 | K62: 631.95 | L62: 614 | M62: 14.42392
A63: 54 | B63: COALINDIA | C63: 261.1 | D63: 262.40 | E63: 258.80 | F63: 256.50 | G63: 252.90 | H63: 264.70 | I63: 268.30 | J63: 270.60 | K63: 266 | L63: 260.1 | M63: 104.73803
A64: 55 | B64: COLPAL | C64: 1109.15 | D64: 1111.90 | E64: 1096.40 | F64: 1083.65 | G64: 1068.15 | H64: 1124.65 | I64: 1140.15 | J64: 1152.90 | K64: 1127.4 | L64: 1099.15 | M64: 4.98464
A65: 56 | B65: CONCOR | C65: 661.6 | D65: 653.47 | E65: 640.93 | F65: 620.27 | G65: 607.73 | H65: 674.13 | I65: 686.67 | J65: 707.33 | K65: 666 | L65: 632.8 | M65: 10.99076
A66: 57 | B66: COROMANDEL | C66: 419.7 | D66: 420.73 | E66: 411.47 | F66: 403.23 | G66: 393.97 | H66: 428.97 | I66: 438.23 | J66: 446.47 | K66: 430 | L66: 412.5 | M66: 1.51167
A67: 58 | B67: CROMPTON | C67: 215.25 | D67: 213.80 | E67: 209.65 | F67: 204.05 | G67: 199.90 | H67: 219.40 | I67: 223.55 | J67: 229.15 | K67: 217.95 | L67: 208.2 | M67: 6.63406
A68: 59 | B68: CUMMINSIND | C68: 746.95 | D68: 749.28 | E68: 735.77 | F68: 724.58 | G68: 711.07 | H68: 760.47 | I68: 773.98 | J68: 785.17 | K68: 762.8 | L68: 738.1 | M68: 8.81064
A69: 60 | B69: DLF | C69: 171.85 | D69: 169.77 | E69: 166.08 | F69: 160.32 | G69: 156.63 | H69: 175.53 | I69: 179.22 | J69: 184.98 | K69: 173.45 | L69: 164 | M69: 80.59831
A70: 61 | B70: DABUR | C70: 370.65 | D70: 375.73 | E70: 364.32 | F70: 357.98 | G70: 346.57 | H70: 382.07 | I70: 393.48 | J70: 399.82 | K70: 387.15 | L70: 369.4 | M70: 69.14459
A71: 62 | B71: DALMIABHA | C71: 2132.15 | D71: 2125.72 | E71: 2096.43 | F71: 2060.72 | G71: 2031.43 | H71: 2161.43 | I71: 2190.72 | J71: 2226.43 | K71: 2155 | L71: 2090 | M71: 1.10089
A72: 63 | B72: DHFL | C72: 231.55 | D72: 233.47 | E72: 225.13 | F72: 218.72 | G72: 210.38 | H72: 239.88 | I72: 248.22 | J72: 254.63 | K72: 241.8 | L72: 227.05 | M72: 251.0436
A73: 64 | B73: DISHTV | C73: 43.9 | D73: 43.80 | E73: 43.15 | F73: 42.40 | G73: 41.75 | H73: 44.55 | I73: 45.20 | J73: 45.95 | K73: 44.45 | L73: 43.05 | M73: 42.31378
A74: 65 | B74: DIVISLAB | C74: 1505.55 | D74: 1497.43 | E74: 1477.92 | F74: 1450.28 | G74: 1430.77 | H74: 1525.07 | I74: 1544.58 | J74: 1572.22 | K74: 1516.95 | L74: 1469.8 | M74: 9.53639
A75: 66 | B75: LALPATHLAB | C75: 870.05 | D75: 875.35 | E75: 860.70 | F75: 851.35 | G75: 836.70 | H75: 884.70 | I75: 899.35 | J75: 908.70 | K75: 890 | L75: 866 | M75: 0.40354
A76: 67 | B76: DRREDDY | C76: 2461.6 | D76: 2494.18 | E76: 2413.92 | F76: 2366.23 | G76: 2285.97 | H76: 2541.87 | I76: 2622.13 | J76: 2669.82 | K76: 2574.45 | L76: 2446.5 | M76: 13.70566
A77: 68 | B77: EDELWEISS | C77: 170.3 | D77: 168.00 | E77: 165.30 | F77: 160.30 | G77: 157.60 | H77: 173.00 | I77: 175.70 | J77: 180.70 | K77: 170.7 | L77: 163 | M77: 64.71471
A78: 69 | B78: EICHERMOT | C78: 21992.1 | D78: 22013.97 | E78: 21728.13 | F78: 21464.17 | G78: 21178.33 | H78: 22277.93 | I78: 22563.77 | J78: 22827.73 | K78: 22299.8 | L78: 21750 | M78: 1.40256
A79: 70 | B79: EMAMILTD | C79: 396.35 | D79: 398.13 | E79: 392.72 | F79: 389.08 | G79: 383.67 | H79: 401.77 | I79: 407.18 | J79: 410.82 | K79: 403.55 | L79: 394.5 | M79: 3.43292
A80: 71 | B80: ENDURANCE | C80: 1218.25 | D80: 1221.03 | E80: 1198.77 | F80: 1179.28 | G80: 1157.02 | H80: 1240.52 | I80: 1262.78 | J80: 1282.27 | K80: 1243.3 | L80: 1201.55 | M80: 0.14577
A81: 72 | B81: ENGINERSIN | C81: 117.8 | D81: 117.85 | E81: 116.35 | F81: 114.90 | G81: 113.40 | H81: 119.30 | I81: 120.80 | J81: 122.25 | K81: 119.35 | L81: 116.4 | M81: 19.2077
A82: 73 | B82: EXIDEIND | C82: 254.6 | D82: 257.57 | E82: 249.13 | F82: 243.67 | G82: 235.23 | H82: 263.03 | I82: 271.47 | J82: 276.93 | K82: 266 | L82: 252.1 | M82: 19.72244
A83: 74 | B83: FEDERALBNK | C83: 82.65 | D83: 82.63 | E83: 81.82 | F83: 80.98 | G83: 80.17 | H83: 83.47 | I83: 84.28 | J83: 85.12 | K83: 83.45 | L83: 81.8 | M83: 84.59069
A84: 75 | B84: GAIL | C84: 367.85 | D84: 369.18 | E84: 362.77 | F84: 357.68 | G84: 351.27 | H84: 374.27 | I84: 380.68 | J84: 385.77 | K84: 375.6 | L84: 364.1 | M84: 28.52011
A85: 76 | B85: GMRINFRA | C85: 17.05 | D85: 16.98 | E85: 16.77 | F85: 16.48 | G85: 16.27 | H85: 17.27 | I85: 17.48 | J85: 17.77 | K85: 17.2 | L85: 16.7 | M85: 190.94399
A86: 77 | B86: GSKCONS | C86: 7050.2 | D86: 7051.73 | E86: 7003.47 | F86: 6956.73 | G86: 6908.47 | H86: 7098.47 | I86: 7146.73 | J86: 7193.47 | K86: 7100 | L86: 7005 | M86: 0.69832
A87: 78 | B87: GLAXO | C87: 1422.3 | D87: 1428.85 | E87: 1397.70 | F87: 1373.10 | G87: 1341.95 | H87: 1453.45 | I87: 1484.60 | J87: 1509.20 | K87: 1460 | L87: 1404.25 | M87: 0.10839
A88: 79 | B88: GLENMARK | C88: 624.05 | D88: 624.20 | E88: 615.10 | F88: 606.15 | G88: 597.05 | H88: 633.15 | I88: 642.25 | J88: 651.20 | K88: 633.3 | L88: 615.25 | M88: 7.08721
A89: 80 | B89: GODREJCP | C89: 705.45 | D89: 715.48 | E89: 690.97 | F89: 676.48 | G89: 651.97 | H89: 729.97 | I89: 754.48 | J89: 768.97 | K89: 740 | L89: 701 | M89: 14.31738
A90: 81 | B90: GODREJIND | C90: 465.75 | D90: 470.17 | E90: 459.58 | F90: 453.42 | G90: 442.83 | H90: 476.33 | I90: 486.92 | J90: 493.08 | K90: 480.75 | L90: 464 | M90: 3.93321
A91: 82 | B91: GRUH | C91: 296.45 | D91: 294.40 | E91: 290.15 | F91: 283.85 | G91: 279.60 | H91: 300.70 | I91: 304.95 | J91: 311.25 | K91: 298.65 | L91: 288.1 | M91: 7.0345
A92: 83 | B92: GPPL | C92: 98.75 | D92: 99.57 | E92: 97.38 | F92: 96.02 | G92: 93.83 | H92: 100.93 | I92: 103.12 | J92: 104.48 | K92: 101.75 | L92: 98.2 | M92: 1.80559
A93: 84 | B93: GSPL | C93: 180 | D93: 180.10 | E93: 177.60 | F93: 175.20 | G93: 172.70 | H93: 182.50 | I93: 185.00 | J93: 187.40 | K93: 182.6 | L93: 177.7 | M93: 7.47524
A94: 85 | B94: HCLTECH | C94: 1008.9 | D94: 1023.28 | E94: 989.12 | F94: 969.33 | G94: 935.17 | H94: 1043.07 | I94: 1077.23 | J94: 1097.02 | K94: 1057.45 | L94: 1003.5 | M94: 19.73035
A95: 86 | B95: HDFCBANK | C95: 1912.2 | D95: 1912.73 | E95: 1895.47 | F95: 1878.73 | G95: 1861.47 | H95: 1929.47 | I95: 1946.73 | J95: 1963.47 | K95: 1930 | L95: 1896 | M95: 49.07263
A96: 87 | B96: HAVELLS | C96: 645 | D96: 649.53 | E96: 636.57 | F96: 628.13 | G96: 615.17 | H96: 657.97 | I96: 670.93 | J96: 679.37 | K96: 662.5 | L96: 641.1 | M96: 16.24969
A97: 88 | B97: HEROMOTOCO | C97: 2792.25 | D97: 2782.08 | E97: 2759.17 | F97: 2726.08 | G97: 2703.17 | H97: 2815.17 | I97: 2838.08 | J97: 2871.17 | K97: 2805 | L97: 2749 | M97: 1.72451
A98: 89 | B98: HEXAWARE | C98: 320.7 | D98: 326.03 | E98: 313.82 | F98: 306.93 | G98: 294.72 | H98: 332.92 | I98: 345.13 | J98: 352.02 | K98: 338.25 | L98: 319.15 | M98: 23.77735
A99: 90 | B99: HINDALCO | C99: 231.25 | D99: 228.42 | E99: 224.13 | F99: 217.02 | G99: 212.73 | H99: 235.53 | I99: 239.82 | J99: 246.93 | K99: 232.7 | L99: 221.3 | M99: 95.24
A100: 91 | B100: HINDPETRO | C100: 229.5 | D100: 230.22 | E100: 225.68 | F100: 221.87 | G100: 217.33 | H100: 234.03 | I100: 238.57 | J100: 242.38 | K100: 234.75 | L100: 226.4 | M100: 58.79255
A101: 92 | B101: HINDUNILVR | C101: 1607.65 | D101: 1605.23 | E101: 1585.97 | F101: 1564.28 | G101: 1545.02 | H101: 1626.92 | I101: 1646.18 | J101: 1667.87 | K101: 1624.5 | L101: 1583.55 | M101: 10.37308
A102: 93 | B102: HINDZINC | C102: 263.6 | D102: 263.70 | E102: 260.90 | F102: 258.20 | G102: 255.40 | H102: 266.40 | I102: 269.20 | J102: 271.90 | K102: 266.5 | L102: 261 | M102: 19.59731
A103: 94 | B103: HUDCO | C103: 43.95 | D103: 43.98 | E103: 43.57 | F103: 43.18 | G103: 42.77 | H103: 44.37 | I103: 44.78 | J103: 45.17 | K103: 44.4 | L103: 43.6 | M103: 7.51704
A104: 95 | B104: HDFC | C104: 1762 | D104: 1768.38 | E104: 1741.87 | F104: 1721.73 | G104: 1695.22 | H104: 1788.52 | I104: 1815.03 | J104: 1835.17 | K104: 1794.9 | L104: 1748.25 | M104: 51.42502
A105: 96 | B105: ITC | C105: 277.4 | D105: 278.00 | E105: 274.20 | F105: 271.00 | G105: 267.20 | H105: 281.20 | I105: 285.00 | J105: 288.20 | K105: 281.8 | L105: 274.8 | M105: 94.52718
A106: 97 | B106: ICICIBANK | C106: 353.7 | D106: 354.42 | E106: 350.38 | F106: 347.07 | G106: 343.03 | H106: 357.73 | I106: 361.77 | J106: 365.08 | K106: 358.45 | L106: 351.1 | M106: 221.57128
A107: 98 | B107: ICICIPRULI | C107: 346.45 | D107: 341.92 | E107: 335.68 | F107: 324.92 | G107: 318.68 | H107: 352.68 | I107: 358.92 | J107: 369.68 | K107: 348.15 | L107: 331.15 | M107: 14.97791
A108: 99 | B108: IDBI | C108: 59.35 | D108: 59.37 | E108: 58.98 | F108: 58.62 | G108: 58.23 | H108: 59.73 | I108: 60.12 | J108: 60.48 | K108: 59.75 | L108: 59 | M108: 25.79102
A109: 100 | B109: IDFCBANK | C109: 35.1 | D109: 35.07 | E109: 34.48 | F109: 33.87 | G109: 33.28 | H109: 35.68 | I109: 36.27 | J109: 36.88 | K109: 35.65 | L109: 34.45 | M109: 98.81366
A110: 101 | B110: IDFC | C110: 36.75 | D110: 36.68 | E110: 36.32 | F110: 35.88 | G110: 35.52 | H110: 37.12 | I110: 37.48 | J110: 37.92 | K110: 37.05 | L110: 36.25 | M110: 29.23844
A111: 102 | B111: IRB | C111: 144.35 | D111: 143.93 | E111: 138.82 | F111: 133.28 | G111: 128.17 | H111: 149.47 | I111: 154.58 | J111: 160.12 | K111: 149.05 | L111: 138.4 | M111: 41.48688
A112: 103 | B112: IDEA | C112: 38.8 | D112: 38.78 | E112: 38.37 | F112: 37.93 | G112: 37.52 | H112: 39.22 | I112: 39.63 | J112: 40.07 | K112: 39.2 | L112: 38.35 | M112: 80.51685
A113: 104 | B113: IBULHSGFIN | C113: 850.45 | D113: 854.15 | E113: 832.45 | F113: 814.45 | G113: 792.75 | H113: 872.15 | I113: 893.85 | J113: 911.85 | K113: 875.85 | L113: 836.15 | M113: 71.64759
A114: 105 | B114: INDIANB | C114: 250.65 | D114: 251.68 | E114: 247.07 | F114: 243.48 | G114: 238.87 | H114: 255.27 | I114: 259.88 | J114: 263.47 | K114: 256.3 | L114: 248.1 | M114: 18.45822
A115: 106 | B115: INDHOTEL | C115: 130.8 | D115: 130.27 | E115: 128.53 | F115: 126.27 | G115: 124.53 | H115: 132.53 | I115: 134.27 | J115: 136.53 | K115: 132 | L115: 128 | M115: 6.53227
A116: 107 | B116: IOC | C116: 141.85 | D116: 141.27 | E116: 139.58 | F116: 137.32 | G116: 135.63 | H116: 143.53 | I116: 145.22 | J116: 147.48 | K116: 142.95 | L116: 139 | M116: 131.89131
A117: 108 | B117: IGL | C117: 279.25 | D117: 278.55 | E117: 263.70 | F117: 248.15 | G117: 233.30 | H117: 294.10 | I117: 308.95 | J117: 324.50 | K117: 293.4 | L117: 263 | M117: 70.82081
A118: 109 | B118: INDUSINDBK | C118: 1463.95 | D118: 1451.63 | E118: 1410.32 | F118: 1356.68 | G118: 1315.37 | H118: 1505.27 | I118: 1546.58 | J118: 1600.22 | K118: 1492.95 | L118: 1398 | M118: 56.35786
A119: 110 | B119: NAUKRI | C119: 1491.25 | D119: 1510.92 | E119: 1446.83 | F119: 1402.42 | G119: 1338.33 | H119: 1555.33 | I119: 1619.42 | J119: 1663.83 | K119: 1575 | L119: 1466.5 | M119: 0.71213
A120: 111 | B120: INFY | C120: 666.7 | D120: 672.00 | E120: 654.30 | F120: 641.90 | G120: 624.20 | H120: 684.40 | I120: 702.10 | J120: 714.50 | K120: 689.7 | L120: 659.6 | M120: 58.60244
A121: 112 | B121: INDIGO | C121: 925.4 | D121: 915.38 | E121: 899.17 | F121: 872.93 | G121: 856.72 | H121: 941.62 | I121: 957.83 | J121: 984.07 | K121: 931.6 | L121: 889.15 | M121: 22.10679
A122: 113 | B122: IPCALAB | C122: 696.65 | D122: 693.35 | E122: 678.80 | F122: 660.95 | G122: 646.40 | H122: 711.20 | I122: 725.75 | J122: 743.60 | K122: 707.9 | L122: 675.5 | M122: 4.41905
A123: 114 | B123: JSWENERGY | C123: 65.3 | D123: 65.25 | E123: 64.40 | F123: 63.50 | G123: 62.65 | H123: 66.15 | I123: 67.00 | J123: 67.90 | K123: 66.1 | L123: 64.35 | M123: 7.48614
A124: 115 | B124: JSWSTEEL | C124: 342.75 | D124: 342.43 | E124: 338.37 | F124: 333.98 | G124: 329.92 | H124: 346.82 | I124: 350.88 | J124: 355.27 | K124: 346.5 | L124: 338.05 | M124: 34.863
A125: 116 | B125: JINDALSTEL | C125: 175.15 | D125: 174.37 | E125: 171.68 | F125: 168.22 | G125: 165.53 | H125: 177.83 | I125: 180.52 | J125: 183.98 | K125: 177.05 | L125: 170.9 | M125: 83.05748
A126: 117 | B126: JUBLFOOD | C126: 1104.45 | D126: 1107.72 | E126: 1070.93 | F126: 1037.42 | G126: 1000.63 | H126: 1141.23 | I126: 1178.02 | J126: 1211.53 | K126: 1144.5 | L126: 1074.2 | M126: 34.97318
A127: 118 | B127: JUBILANT | C127: 673.55 | D127: 672.55 | E127: 664.10 | F127: 654.65 | G127: 646.20 | H127: 682.00 | I127: 690.45 | J127: 699.90 | K127: 681 | L127: 663.1 | M127: 2.44775
A128: 119 | B128: KARURVYSYA | C128: 78.2 | D128: 78.57 | E128: 77.13 | F128: 76.07 | G128: 74.63 | H128: 79.63 | I128: 81.07 | J128: 82.13 | K128: 80 | L128: 77.5 | M128: 5.74813
A129: 120 | B129: KOTAKBANK | C129: 1109.55 | D129: 1112.47 | E129: 1098.18 | F129: 1086.82 | G129: 1072.53 | H129: 1123.83 | I129: 1138.12 | J129: 1149.48 | K129: 1126.75 | L129: 1101.1 | M129: 26.69317
A130: 121 | B130: L&TFH | C130: 135.85 | D130: 133.47 | E130: 130.13 | F130: 124.42 | G130: 121.08 | H130: 139.18 | I130: 142.52 | J130: 148.23 | K130: 136.8 | L130: 127.75 | M130: 153.0134
A131: 122 | B131: LICHSGFIN | C131: 420.95 | D131: 418.62 | E131: 413.58 | F131: 406.22 | G131: 401.18 | H131: 425.98 | I131: 431.02 | J131: 438.38 | K131: 423.65 | L131: 411.25 | M131: 22.04646
A132: 123 | B132: LT | C132: 1326.75 | D132: 1344.12 | E132: 1304.23 | F132: 1281.72 | G132: 1241.83 | H132: 1366.63 | I132: 1406.52 | J132: 1429.03 | K132: 1384 | L132: 1321.6 | M132: 89.03105
A133: 124 | B133: LUPIN | C133: 852.05 | D133: 860.13 | E133: 840.02 | F133: 827.98 | G133: 807.87 | H133: 872.17 | I133: 892.28 | J133: 904.32 | K133: 880.25 | L133: 848.1 | M133: 26.10053
A134: 125 | B134: MRF | C134: 64742.05 | D134: 64863.37 | E134: 64376.73 | F134: 64011.42 | G134: 63524.78 | H134: 65228.68 | I134: 65715.32 | J134: 66080.63 | K134: 65350 | L134: 64498.05 | M134: 0.04418
A135: 126 | B135: MGL | C135: 845.8 | D135: 848.68 | E135: 832.37 | F135: 818.93 | G135: 802.62 | H135: 862.12 | I135: 878.43 | J135: 891.87 | K135: 865 | L135: 835.25 | M135: 8.46265
A136: 127 | B136: M&MFIN | C136: 419.85 | D136: 418.08 | E136: 410.52 | F136: 401.18 | G136: 393.62 | H136: 427.42 | I136: 434.98 | J136: 444.32 | K136: 425.65 | L136: 408.75 | M136: 24.00459
A137: 128 | B137: M&M | C137: 756.05 | D137: 761.92 | E137: 745.13 | F137: 734.22 | G137: 717.43 | H137: 772.83 | I137: 789.62 | J137: 800.53 | K137: 778.7 | L137: 751 | M137: 41.71044
A138: 129 | B138: MANAPPURAM | C138: 78.45 | D138: 80.22 | E138: 74.08 | F138: 69.72 | G138: 63.58 | H138: 84.58 | I138: 90.72 | J138: 95.08 | K138: 86.35 | L138: 75.85 | M138: 124.14291
A139: 130 | B139: MRPL | C139: 82.55 | D139: 83.28 | E139: 81.12 | F139: 79.68 | G139: 77.52 | H139: 84.72 | I139: 86.88 | J139: 88.32 | K139: 85.45 | L139: 81.85 | M139: 30.76386
A140: 131 | B140: MARICO | C140: 320 | D140: 321.02 | E140: 316.58 | F140: 313.17 | G140: 308.73 | H140: 324.43 | I140: 328.87 | J140: 332.28 | K140: 325.45 | L140: 317.6 | M140: 48.59483
A141: 132 | B141: MARUTI | C141: 6711.75 | D141: 6683.90 | E141: 6627.85 | F141: 6543.95 | G141: 6487.90 | H141: 6767.80 | I141: 6823.85 | J141: 6907.75 | K141: 6739.95 | L141: 6600 | M141: 8.42039
A142: 133 | B142: MFSL | C142: 400.85 | D142: 393.93 | E142: 383.97 | F142: 367.08 | G142: 357.12 | H142: 410.82 | I142: 420.78 | J142: 437.67 | K142: 403.9 | L142: 377.05 | M142: 11.68901
A143: 134 | B143: MINDTREE | C143: 827.1 | D143: 836.42 | E143: 811.83 | F143: 796.57 | G143: 771.98 | H143: 851.68 | I143: 876.27 | J143: 891.53 | K143: 861 | L143: 821.15 | M143: 12.00947
A144: 135 | B144: MOTHERSUMI | C144: 159.25 | D144: 160.80 | E144: 156.65 | F144: 154.05 | G144: 149.90 | H144: 163.40 | I144: 167.55 | J144: 170.15 | K144: 164.95 | L144: 158.2 | M144: 43.20566
A145: 136 | B145: MPHASIS | C145: 972.9 | D145: 980.52 | E145: 962.43 | F145: 951.97 | G145: 933.88 | H145: 990.98 | I145: 1009.07 | J145: 1019.53 | K145: 998.6 | L145: 970.05 | M145: 2.94248
A146: 137 | B146: MUTHOOTFIN | C146: 427.3 | D146: 423.25 | E146: 414.05 | F146: 400.80 | G146: 391.60 | H146: 436.50 | I146: 445.70 | J146: 458.95 | K146: 432.45 | L146: 410 | M146: 8.96552
A147: 138 | B147: NATCOPHARM | C147: 758 | D147: 756.33 | E147: 747.67 | F147: 737.33 | G147: 728.67 | H147: 766.67 | I147: 775.33 | J147: 785.67 | K147: 765 | L147: 746 | M147: 1.22911
A148: 139 | B148: NBCC | C148: 58.45 | D148: 57.92 | E148: 56.63 | F148: 54.82 | G148: 53.53 | H148: 59.73 | I148: 61.02 | J148: 62.83 | K148: 59.2 | L148: 56.1 | M148: 98.58161
A149: 140 | B149: NHPC | C149: 24.5 | D149: 24.45 | E149: 24.25 | F149: 24.00 | G149: 23.80 | H149: 24.70 | I149: 24.90 | J149: 25.15 | K149: 24.65 | L149: 24.2 | M149: 13.83817
A150: 141 | B150: NMDC | C150: 114.25 | D150: 112.62 | E150: 110.13 | F150: 106.02 | G150: 103.53 | H150: 116.73 | I150: 119.22 | J150: 123.33 | K150: 115.1 | L150: 108.5 | M150: 37.83497
A151: 142 | B151: NTPC | C151: 157 | D151: 158.00 | E151: 155.75 | F151: 154.50 | G151: 152.25 | H151: 159.25 | I151: 161.50 | J151: 162.75 | K151: 160.25 | L151: 156.75 | M151: 24.93606
A152: 143 | B152: NATIONALUM | C152: 69.5 | D152: 69.05 | E152: 68.05 | F152: 66.60 | G152: 65.60 | H152: 70.50 | I152: 71.50 | J152: 72.95 | K152: 70.05 | L152: 67.6 | M152: 59.64358
A153: 144 | B153: OBEROIRLTY | C153: 429.35 | D153: 430.75 | E153: 422.10 | F153: 414.85 | G153: 406.20 | H153: 438.00 | I153: 446.65 | J153: 453.90 | K153: 439.4 | L153: 423.5 | M153: 3.44204
A154: 145 | B154: ONGC | C154: 154.25 | D154: 154.47 | E154: 153.13 | F154: 152.02 | G154: 150.68 | H154: 155.58 | I154: 156.92 | J154: 158.03 | K154: 155.8 | L154: 153.35 | M154: 52.20182
A155: 146 | B155: OIL | C155: 198.35 | D155: 198.35 | E155: 196.45 | F155: 194.55 | G155: 192.65 | H155: 200.25 | I155: 202.15 | J155: 204.05 | K155: 200.25 | L155: 196.45 | M155: 4.98765
A156: 147 | B156: OFSS | C156: 3541.45 | D156: 3556.20 | E156: 3476.25 | F156: 3411.05 | G156: 3331.10 | H156: 3621.40 | I156: 3701.35 | J156: 3766.55 | K156: 3636.15 | L156: 3491 | M156: 0.33035
A157: 148 | B157: PCJEWELLER | C157: 69.4 | D157: 66.92 | E157: 61.48 | F157: 53.57 | G157: 48.13 | H157: 74.83 | I157: 80.27 | J157: 88.18 | K157: 72.35 | L157: 59 | M157: 366.8681
A158: 149 | B158: PIIND | C158: 791.75 | D158: 790.25 | E158: 781.50 | F158: 771.25 | G158: 762.50 | H158: 800.50 | I158: 809.25 | J158: 819.50 | K158: 799 | L158: 780 | M158: 2.85353
A159: 150 | B159: PNBHOUSING | C159: 826.9 | D159: 823.80 | E159: 798.70 | F159: 770.50 | G159: 745.40 | H159: 852.00 | I159: 877.10 | J159: 905.30 | K159: 848.9 | L159: 795.6 | M159: 6.28217
A160: 151 | B160: PAGEIND | C160: 28642.65 | D160: 29087.57 | E160: 28055.08 | F160: 27467.52 | G160: 26435.03 | H160: 29675.13 | I160: 30707.62 | J160: 31295.18 | K160: 30120.05 | L160: 28500 | M160: 0.3038
A161: 152 | B161: PETRONET | C161: 225.4 | D161: 225.92 | E161: 222.88 | F161: 220.37 | G161: 217.33 | H161: 228.43 | I161: 231.47 | J161: 233.98 | K161: 228.95 | L161: 223.4 | M161: 27.86809
A162: 153 | B162: PIDILITIND | C162: 977.35 | D162: 974.07 | E162: 958.28 | F162: 939.22 | G162: 923.43 | H162: 993.13 | I162: 1008.92 | J162: 1027.98 | K162: 989.85 | L162: 955 | M162: 6.62807
A163: 154 | B163: PEL | C163: 2142.25 | D163: 2170.12 | E163: 2105.23 | F163: 2068.22 | G163: 2003.33 | H163: 2207.13 | I163: 2272.02 | J163: 2309.03 | K163: 2235 | L163: 2133.1 | M163: 8.17887
A164: 155 | B164: PFC | C164: 94.75 | D164: 95.13 | E164: 92.72 | F164: 90.68 | G164: 88.27 | H164: 97.17 | I164: 99.58 | J164: 101.62 | K164: 97.55 | L164: 93.1 | M164: 114.14771
A165: 156 | B165: POWERGRID | C165: 188.45 | D165: 187.77 | E165: 186.23 | F165: 184.02 | G165: 182.48 | H165: 189.98 | I165: 191.52 | J165: 193.73 | K165: 189.3 | L165: 185.55 | M165: 31.51762
A166: 157 | B166: PRESTIGE | C166: 191.85 | D166: 193.00 | E166: 187.85 | F166: 183.85 | G166: 178.70 | H166: 197.00 | I166: 202.15 | J166: 206.15 | K166: 198.15 | L166: 189 | M166: 3.62671
A167: 158 | B167: PGHH | C167: 9438.5 | D167: 9400.78 | E167: 9258.72 | F167: 9078.93 | G167: 8936.87 | H167: 9580.57 | I167: 9722.63 | J167: 9902.42 | K167: 9542.85 | L167: 9221 | M167: 0.02362
A168: 159 | B168: PNB | C168: 74.3 | D168: 74.17 | E168: 73.33 | F168: 72.37 | G168: 71.53 | H168: 75.13 | I168: 75.97 | J168: 76.93 | K168: 75 | L168: 73.2 | M168: 212.69555
A169: 160 | B169: RBLBANK | C169: 523.25 | D169: 526.18 | E169: 518.07 | F169: 512.88 | G169: 504.77 | H169: 531.37 | I169: 539.48 | J169: 544.67 | K169: 534.3 | L169: 521 | M169: 14.16021
A170: 161 | B170: RAJESHEXPO | C170: 569.7 | D170: 570.08 | E170: 569.12 | F170: 568.53 | G170: 567.57 | H170: 570.67 | I170: 571.63 | J170: 572.22 | K170: 571.05 | L170: 569.5 | M170: 2.51395
A171: 162 | B171: RELCAPITAL | C171: 248.35 | D171: 248.15 | E171: 242.70 | F171: 237.05 | G171: 231.60 | H171: 253.80 | I171: 259.25 | J171: 264.90 | K171: 253.6 | L171: 242.5 | M171: 56.02306
A172: 163 | B172: RCOM | C172: 14.1 | D172: 13.60 | E172: 13.00 | F172: 11.90 | G172: 11.30 | H172: 14.70 | I172: 15.30 | J172: 16.40 | K172: 14.2 | L172: 12.5 | M172: 1446.18228
A173: 164 | B173: RELIANCE | C173: 1056.25 | D173: 1058.05 | E173: 1048.20 | F173: 1040.15 | G173: 1030.30 | H173: 1066.10 | I173: 1075.95 | J173: 1084.00 | K173: 1067.9 | L173: 1050 | M173: 93.96027
A174: 165 | B174: RELINFRA | C174: 360.75 | D174: 360.48 | E174: 355.32 | F174: 349.88 | G174: 344.72 | H174: 365.92 | I174: 371.08 | J174: 376.52 | K174: 365.65 | L174: 355.05 | M174: 25.03062
A175: 166 | B175: RPOWER | C175: 31.25 | D175: 31.18 | E175: 30.22 | F175: 29.18 | G175: 28.22 | H175: 32.22 | I175: 33.18 | J175: 34.22 | K175: 32.15 | L175: 30.15 | M175: 108.85799
A176: 167 | B176: RECLTD | C176: 117.75 | D176: 117.83 | E176: 114.92 | F176: 112.08 | G176: 109.17 | H176: 120.67 | I176: 123.58 | J176: 126.42 | K176: 120.75 | L176: 115 | M176: 63.16538
A177: 168 | B177: SRF | C177: 1958.25 | D177: 1959.75 | E177: 1924.50 | F177: 1890.75 | G177: 1855.50 | H177: 1993.50 | I177: 2028.75 | J177: 2062.50 | K177: 1995 | L177: 1926 | M177: 8.07811
A178: 169 | B178: SHREECEM | C178: 13984.1 | D178: 13865.58 | E178: 13533.17 | F178: 13082.23 | G178: 12749.82 | H178: 14316.52 | I178: 14648.93 | J178: 15099.87 | K178: 14198 | L178: 13414.65 | M178: 2.27235
A179: 170 | B179: SRTRANSFIN | C179: 1213.35 | D179: 1198.83 | E179: 1177.67 | F179: 1141.98 | G179: 1120.82 | H179: 1234.52 | I179: 1255.68 | J179: 1291.37 | K179: 1220 | L179: 1163.15 | M179: 16.909
A180: 171 | B180: SIEMENS | C180: 943.5 | D180: 960.17 | E180: 920.33 | F180: 897.17 | G180: 857.33 | H180: 983.33 | I180: 1023.17 | J180: 1046.33 | K180: 1000 | L180: 937 | M180: 9.69174
A181: 172 | B181: SBIN | C181: 285.9 | D181: 284.58 | E181: 280.17 | F181: 274.43 | G181: 270.02 | H181: 290.32 | I181: 294.73 | J181: 300.47 | K181: 289 | L181: 278.85 | M181: 291.44808
A182: 173 | B182: SAIL | C182: 67.15 | D182: 66.43 | E182: 65.37 | F182: 63.58 | G182: 62.52 | H182: 68.22 | I182: 69.28 | J182: 71.07 | K182: 67.5 | L182: 64.65 | M182: 96.16801
A183: 174 | B183: SPARC | C183: 293.2 | D183: 295.75 | E183: 289.60 | F183: 286.00 | G183: 279.85 | H183: 299.35 | I183: 305.50 | J183: 309.10 | K183: 301.9 | L183: 292.15 | M183: 2.25252
A184: 175 | B184: SUNPHARMA | C184: 571.85 | D184: 574.78 | E184: 565.07 | F184: 558.28 | G184: 548.57 | H184: 581.57 | I184: 591.28 | J184: 598.07 | K184: 584.5 | L184: 568 | M184: 27.79373
A185: 176 | B185: SUNTV | C185: 672.3 | D185: 666.22 | E185: 657.73 | F185: 643.17 | G185: 634.68 | H185: 680.78 | I185: 689.27 | J185: 703.83 | K185: 674.7 | L185: 651.65 | M185: 13.95195
A186: 177 | B186: SUZLON | C186: 6.25 | D186: 6.28 | E186: 6.17 | F186: 6.08 | G186: 5.97 | H186: 6.37 | I186: 6.48 | J186: 6.57 | K186: 6.4 | L186: 6.2 | M186: 194.21771
A187: 178 | B187: SYNDIBANK | C187: 34.85 | D187: 34.42 | E187: 33.73 | F187: 32.62 | G187: 31.93 | H187: 35.53 | I187: 36.22 | J187: 37.33 | K187: 35.1 | L187: 33.3 | M187: 163.00437
A188: 179 | B188: SYNGENE | C188: 572.25 | D188: 576.18 | E188: 566.37 | F188: 560.48 | G188: 550.67 | H188: 582.07 | I188: 591.88 | J188: 597.77 | K188: 586 | L188: 570.3 | M188: 0.56008
A189: 180 | B189: TV18BRDCST | C189: 38.35 | D189: 38.20 | E189: 37.45 | F189: 36.55 | G189: 35.80 | H189: 39.10 | I189: 39.85 | J189: 40.75 | K189: 38.95 | L189: 37.3 | M189: 39.30904
A190: 181 | B190: TVSMOTOR | C190: 545.7 | D190: 543.55 | E190: 537.15 | F190: 528.60 | G190: 522.20 | H190: 552.10 | I190: 558.50 | J190: 567.05 | K190: 549.95 | L190: 535 | M190: 14.01683
A191: 182 | B191: TATACHEM | C191: 688 | D191: 687.27 | E191: 680.58 | F191: 673.17 | G191: 666.48 | H191: 694.68 | I191: 701.37 | J191: 708.78 | K191: 693.95 | L191: 679.85 | M191: 4.18515
A192: 183 | B192: TATACOMM | C192: 498.85 | D192: 499.33 | E192: 488.87 | F192: 478.88 | G192: 468.42 | H192: 509.32 | I192: 519.78 | J192: 529.77 | K192: 509.8 | L192: 489.35 | M192: 6.58772
A193: 184 | B193: TCS | C193: 1935.75 | D193: 1927.13 | E193: 1909.92 | F193: 1884.08 | G193: 1866.87 | H193: 1952.97 | I193: 1970.18 | J193: 1996.02 | K193: 1944.35 | L193: 1901.3 | M193: 27.69759
A194: 185 | B194: TATAGLOBAL | C194: 217.75 | D194: 218.22 | E194: 215.93 | F194: 214.12 | G194: 211.83 | H194: 220.03 | I194: 222.32 | J194: 224.13 | K194: 220.5 | L194: 216.4 | M194: 21.17862
A195: 186 | B195: TATAMTRDVR | C195: 97.6 | D195: 98.83 | E195: 95.77 | F195: 93.93 | G195: 90.87 | H195: 100.67 | I195: 103.73 | J195: 105.57 | K195: 101.9 | L195: 97 | M195: 50.8101
A196: 187 | B196: TATAMOTORS | C196: 179.45 | D196: 181.23 | E196: 176.42 | F196: 173.38 | G196: 168.57 | H196: 184.27 | I196: 189.08 | J196: 192.12 | K196: 186.05 | L196: 178.2 | M196: 289.47802
A197: 188 | B197: TATAPOWER | C197: 76.35 | D197: 76.45 | E197: 75.20 | F197: 74.05 | G197: 72.80 | H197: 77.60 | I197: 78.85 | J197: 80.00 | K197: 77.7 | L197: 75.3 | M197: 90.74632
A198: 189 | B198: TATASTEEL | C198: 556.6 | D198: 558.17 | E198: 552.43 | F198: 548.27 | G198: 542.53 | H198: 562.33 | I198: 568.07 | J198: 572.23 | K198: 563.9 | L198: 554 | M198: 54.69057
A199: 190 | B199: TECHM | C199: 720.7 | D199: 727.27 | E199: 707.53 | F199: 694.37 | G199: 674.63 | H199: 740.43 | I199: 760.17 | J199: 773.33 | K199: 747 | L199: 714.1 | M199: 39.99401
A200: 191 | B200: RAMCOCEM | C200: 599.6 | D200: 600.43 | E200: 591.87 | F200: 584.13 | G200: 575.57 | H200: 608.17 | I200: 616.73 | J200: 624.47 | K200: 609 | L200: 592.7 | M200: 1.86731
A201: 192 | B201: TITAN | C201: 854.45 | D201: 850.58 | E201: 838.27 | F201: 822.08 | G201: 809.77 | H201: 866.77 | I201: 879.08 | J201: 895.27 | K201: 862.9 | L201: 834.4 | M201: 24.85725
A202: 193 | B202: TORNTPHARM | C202: 1712.2 | D202: 1701.90 | E202: 1673.80 | F202: 1635.40 | G202: 1607.30 | H202: 1740.30 | I202: 1768.40 | J202: 1806.80 | K202: 1730 | L202: 1663.5 | M202: 2.41193
A203: 194 | B203: TORNTPOWER | C203: 259.75 | D203: 259.48 | E203: 254.82 | F203: 249.88 | G203: 245.22 | H203: 264.42 | I203: 269.08 | J203: 274.02 | K203: 264.15 | L203: 254.55 | M203: 21.11941
A204: 195 | B204: UPL | C204: 695.9 | D204: 688.30 | E204: 677.60 | F204: 659.30 | G204: 648.60 | H204: 706.60 | I204: 717.30 | J204: 735.60 | K204: 699 | L204: 670 | M204: 32.02739
A205: 196 | B205: ULTRACEMCO | C205: 3601.65 | D205: 3562.53 | E205: 3509.12 | F205: 3416.58 | G205: 3363.17 | H205: 3655.07 | I205: 3708.48 | J205: 3801.02 | K205: 3615.95 | L205: 3470 | M205: 2.27757
... 30 more rows

Sheet MidCap Intra
L5: Back To Main Page
A6: FOR INTRA DAY TRADING | K6: =Main!B10 -> 2018-11-02
A9: Sr.no | B9: Scrip | C9: CLOSE RATE | D9: Pivot Point | E9: Supports | H9: Resistances
C10: Point | E10: S1 | F10: S2 | G10: S3 | H10: R1 | I10: R2 | J10: R3 | K10: HIGH | L10: LOW | M10: Total Trade Quanity in Lakhs
A11: 1 | B11: 3MINDIA | C11: 19897 | D11: 19775.67 | E11: 19421.33 | F11: 18945.67 | G11: 18591.33 | H11: 20251.33 | I11: 20605.67 | J11: 21081.33 | K11: 20130 | L11: 19300 | M11: 0.01166
A12: 2 | B12: 8KMILES | C12: 61.55 | D12: 66.02 | E12: 57.03 | F12: 52.52 | G12: 43.53 | H12: 70.53 | I12: 79.52 | J12: 84.03 | K12: 75 | L12: 61.5 | M12: 34.60181
A13: 3 | B13: AARTIIND | C13: 1325.1 | D13: 1325.80 | E13: 1312.00 | F13: 1298.90 | G13: 1285.10 | H13: 1338.90 | I13: 1352.70 | J13: 1365.80 | K13: 1339.6 | L13: 1312.7 | M13: 0.30079
A14: 4 | B14: ABAN | C14: 78.55 | D14: 77.58 | E14: 75.22 | F14: 71.88 | G14: 69.52 | H14: 80.92 | I14: 83.28 | J14: 86.62 | K14: 79.95 | L14: 74.25 | M14: 9.65489
A15: 5 | B15: ABB | C15: 1317.55 | D15: 1319.80 | E15: 1280.60 | F15: 1243.65 | G15: 1204.45 | H15: 1356.75 | I15: 1395.95 | J15: 1432.90 | K15: 1359 | L15: 1282.85 | M15: 4.13143
A16: 6 | B16: ABCAPITAL | C16: 106.1 | D16: 106.32 | E16: 104.83 | F16: 103.57 | G16: 102.08 | H16: 107.58 | I16: 109.07 | J16: 110.33 | K16: 107.8 | L16: 105.05 | M16: 12.36941
A17: 7 | B17: ABFRL | C17: 187.25 | D17: 186.17 | E17: 180.33 | F17: 173.42 | G17: 167.58 | H17: 193.08 | I17: 198.92 | J17: 205.83 | K17: 192 | L17: 179.25 | M17: 16.5603
A18: 8 | B18: ACC | C18: 1405.7 | D18: 1398.67 | E18: 1385.13 | F18: 1364.57 | G18: 1351.03 | H18: 1419.23 | I18: 1432.77 | J18: 1453.33 | K18: 1412.2 | L18: 1378.1 | M18: 4.80091
A19: 9 | B19: ADANIPORTS | C19: 318.3 | D19: 319.60 | E19: 312.60 | F19: 306.90 | G19: 299.90 | H19: 325.30 | I19: 332.30 | J19: 338.00 | K19: 326.6 | L19: 313.9 | M19: 51.67082
A20: 10 | B20: ADANIPOWER | C20: 50.2 | D20: 49.03 | E20: 46.17 | F20: 42.13 | G20: 39.27 | H20: 53.07 | I20: 55.93 | J20: 59.97 | K20: 51.9 | L20: 45 | M20: 769.13113
A21: 11 | B21: ADANITRANS | C21: 176.6 | D21: 175.33 | E21: 167.67 | F21: 158.73 | G21: 151.07 | H21: 184.27 | I21: 191.93 | J21: 200.87 | K21: 183 | L21: 166.4 | M21: 3.5384
A22: 12 | B22: ADVENZYMES | C22: 200.6 | D22: 198.30 | E22: 193.30 | F22: 186.00 | G22: 181.00 | H22: 205.60 | I22: 210.60 | J22: 217.90 | K22: 203.3 | L22: 191 | M22: 2.32236
A23: 13 | B23: AEGISCHEM | C23: 214.3 | D23: 214.78 | E23: 211.67 | F23: 209.03 | G23: 205.92 | H23: 217.42 | I23: 220.53 | J23: 223.17 | K23: 217.9 | L23: 212.15 | M23: 0.8323
A24: 14 | B24: AIAENG | C24: 1685.5 | D24: 1696.28 | E24: 1659.22 | F24: 1632.93 | G24: 1595.87 | H24: 1722.57 | I24: 1759.63 | J24: 1785.92 | K24: 1733.35 | L24: 1670 | M24: 0.44554
A25: 15 | B25: AJANTPHARM | C25: 1088.5 | D25: 1083.18 | E25: 1058.57 | F25: 1028.63 | G25: 1004.02 | H25: 1113.12 | I25: 1137.73 | J25: 1167.67 | K25: 1107.8 | L25: 1053.25 | M25: 8.35759
A26: 16 | B26: AKZOINDIA | C26: 1537.2 | D26: 1540.48 | E26: 1515.02 | F26: 1492.83 | G26: 1467.37 | H26: 1562.67 | I26: 1588.13 | J26: 1610.32 | K26: 1565.95 | L26: 1518.3 | M26: 0.03331
A27: 17 | B27: ALBK | C27: 43.3 | D27: 43.72 | E27: 42.13 | F27: 40.97 | G27: 39.38 | H27: 44.88 | I27: 46.47 | J27: 47.63 | K27: 45.3 | L27: 42.55 | M27: 58.84043
A28: 18 | B28: ALKEM | C28: 1899.05 | D28: 1905.23 | E28: 1876.52 | F28: 1853.98 | G28: 1825.27 | H28: 1927.77 | I28: 1956.48 | J28: 1979.02 | K28: 1933.95 | L28: 1882.7 | M28: 0.52142
A29: 19 | B29: ALLCARGO | C29: 102.85 | D29: 102.78 | E29: 101.27 | F29: 99.68 | G29: 98.17 | H29: 104.37 | I29: 105.88 | J29: 107.47 | K29: 104.3 | L29: 101.2 | M29: 0.83951
A30: 20 | B30: AMARAJABAT | C30: 746.45 | D30: 745.48 | E30: 737.52 | F30: 728.58 | G30: 720.62 | H30: 754.42 | I30: 762.38 | J30: 771.32 | K30: 753.45 | L30: 736.55 | M30: 4.66691
A31: 21 | B31: AMBUJACEM | C31: 199.95 | D31: 199.38 | E31: 197.77 | F31: 195.58 | G31: 193.97 | H31: 201.57 | I31: 203.18 | J31: 205.37 | K31: 201 | L31: 197.2 | M31: 34.16848
A32: 22 | B32: ANDHRABANK | C32: 29.3 | D32: 29.38 | E32: 28.77 | F32: 28.23 | G32: 27.62 | H32: 29.92 | I32: 30.53 | J32: 31.07 | K32: 30 | L32: 28.85 | M32: 19.4965
A33: 23 | B33: APLAPOLLO | C33: 1210 | D33: 1214.65 | E33: 1195.35 | F33: 1180.70 | G33: 1161.40 | H33: 1229.30 | I33: 1248.60 | J33: 1263.25 | K33: 1233.95 | L33: 1200 | M33: 1.61285
A34: 24 | B34: APLLTD | C34: 603.05 | D34: 600.90 | E34: 593.40 | F34: 583.75 | G34: 576.25 | H34: 610.55 | I34: 618.05 | J34: 627.70 | K34: 608.4 | L34: 591.25 | M34: 0.20226
A35: 25 | B35: APOLLOHOSP | C35: 1172.4 | D35: 1166.83 | E35: 1148.67 | F35: 1124.93 | G35: 1106.77 | H35: 1190.57 | I35: 1208.73 | J35: 1232.47 | K35: 1185 | L35: 1143.1 | M35: 3.74447
A36: 26 | B36: APOLLOTYRE | C36: 218.4 | D36: 219.53 | E36: 215.67 | F36: 212.93 | G36: 209.07 | H36: 222.27 | I36: 226.13 | J36: 228.87 | K36: 223.4 | L36: 216.8 | M36: 12.69156
A37: 27 | B37: ARVIND | C37: 345.4 | D37: 346.05 | E37: 336.15 | F37: 326.90 | G37: 317.00 | H37: 355.30 | I37: 365.20 | J37: 374.45 | K37: 355.95 | L37: 336.8 | M37: 53.5126
A38: 28 | B38: ASAHIINDIA | C38: 277.75 | D38: 279.47 | E38: 274.43 | F38: 271.12 | G38: 266.08 | H38: 282.78 | I38: 287.82 | J38: 291.13 | K38: 284.5 | L38: 276.15 | M38: 0.2292
A39: 29 | B39: ASHOKA | C39: 116.55 | D39: 116.03 | E39: 114.37 | F39: 112.18 | G39: 110.52 | H39: 118.22 | I39: 119.88 | J39: 122.07 | K39: 117.7 | L39: 113.85 | M39: 1.39815
A40: 30 | B40: ASHOKLEY | C40: 113.35 | D40: 114.18 | E40: 111.52 | F40: 109.68 | G40: 107.02 | H40: 116.02 | I40: 118.68 | J40: 120.52 | K40: 116.85 | L40: 112.35 | M40: 297.11234
A41: 31 | B41: ASIANPAINT | C41: 1217.8 | D41: 1225.47 | E41: 1206.13 | F41: 1194.47 | G41: 1175.13 | H41: 1237.13 | I41: 1256.47 | J41: 1268.13 | K41: 1244.8 | L41: 1213.8 | M41: 12.0028
A42: 32 | B42: ASTRAL | C42: 1003.75 | D42: 996.57 | E42: 969.43 | F42: 935.12 | G42: 907.98 | H42: 1030.88 | I42: 1058.02 | J42: 1092.33 | K42: 1023.7 | L42: 962.25 | M42: 0.72577
A43: 33 | B43: ATUL | C43: 3369.7 | D43: 3358.63 | E43: 3321.07 | F43: 3272.43 | G43: 3234.87 | H43: 3407.27 | I43: 3444.83 | J43: 3493.47 | K43: 3396.2 | L43: 3310 | M43: 0.19378
A44: 34 | B44: AUBANK | C44: 563.7 | D44: 561.97 | E44: 556.18 | F44: 548.67 | G44: 542.88 | H44: 569.48 | I44: 575.27 | J44: 582.78 | K44: 567.75 | L44: 554.45 | M44: 0.97948
A45: 35 | B45: AUROPHARMA | C45: 792.55 | D45: 794.55 | E45: 784.30 | F45: 776.05 | G45: 765.80 | H45: 802.80 | I45: 813.05 | J45: 821.30 | K45: 804.8 | L45: 786.3 | M45: 32.35047
A46: 36 | B46: AVANTIFEED | C46: 404.8 | D46: 403.93 | E46: 398.87 | F46: 392.93 | G46: 387.87 | H46: 409.87 | I46: 414.93 | J46: 420.87 | K46: 409 | L46: 398 | M46: 4.22054
A47: 37 | B47: AXISBANK | C47: 602.15 | D47: 597.42 | E47: 586.78 | F47: 571.42 | G47: 560.78 | H47: 612.78 | I47: 623.42 | J47: 638.78 | K47: 608.05 | L47: 582.05 | M47: 160.48865
A48: 38 | B48: BAJAJ-AUTO | C48: 2598.85 | D48: 2595.30 | E48: 2571.60 | F48: 2544.35 | G48: 2520.65 | H48: 2622.55 | I48: 2646.25 | J48: 2673.50 | K48: 2619 | L48: 2568.05 | M48: 3.56883
A49: 39 | B49: BAJAJCORP | C49: 355.05 | D49: 354.60 | E49: 352.45 | F49: 349.85 | G49: 347.70 | H49: 357.20 | I49: 359.35 | J49: 361.95 | K49: 356.75 | L49: 352 | M49: 0.12516
A50: 40 | B50: BAJAJELEC | C50: 505.5 | D50: 503.60 | E50: 493.20 | F50: 480.90 | G50: 470.50 | H50: 515.90 | I50: 526.30 | J50: 538.60 | K50: 514 | L50: 491.3 | M50: 7.95465
A51: 41 | B51: BAJAJFINSV | C51: 5386.5 | D51: 5408.05 | E51: 5349.10 | F51: 5311.70 | G51: 5252.75 | H51: 5445.45 | I51: 5504.40 | J51: 5541.80 | K51: 5467 | L51: 5370.65 | M51: 1.93618
A52: 42 | B52: BAJAJHIND | C52: 10 | D52: 10.07 | E52: 9.88 | F52: 9.77 | G52: 9.58 | H52: 10.18 | I52: 10.37 | J52: 10.48 | K52: 10.25 | L52: 9.95 | M52: 31.24209
A53: 43 | B53: BAJAJHLDNG | C53: 2813.1 | D53: 2803.62 | E53: 2761.63 | F53: 2710.17 | G53: 2668.18 | H53: 2855.08 | I53: 2897.07 | J53: 2948.53 | K53: 2845.6 | L53: 2752.15 | M53: 0.96107
A54: 44 | B54: BAJFINANCE | C54: 2418.1 | D54: 2408.52 | E54: 2382.03 | F54: 2345.97 | G54: 2319.48 | H54: 2444.58 | I54: 2471.07 | J54: 2507.13 | K54: 2435 | L54: 2372.45 | M54: 25.52134
A55: 45 | B55: BALKRISIND | C55: 1135.2 | D55: 1128.37 | E55: 1101.83 | F55: 1068.47 | G55: 1041.93 | H55: 1161.73 | I55: 1188.27 | J55: 1221.63 | K55: 1154.9 | L55: 1095 | M55: 9.91979
A56: 46 | B56: BALLARPUR | C56: 6.45 | D56: 6.42 | E56: 6.23 | F56: 6.02 | G56: 5.83 | H56: 6.63 | I56: 6.82 | J56: 7.03 | K56: 6.6 | L56: 6.2 | M56: 12.2822
A57: 47 | B57: BALMLAWRIE | C57: 194.75 | D57: 195.27 | E57: 193.18 | F57: 191.62 | G57: 189.53 | H57: 196.83 | I57: 198.92 | J57: 200.48 | K57: 197.35 | L57: 193.7 | M57: 0.15962
A58: 48 | B58: BALRAMCHIN | C58: 108.65 | D58: 107.68 | E58: 105.17 | F58: 101.68 | G58: 99.17 | H58: 111.17 | I58: 113.68 | J58: 117.17 | K58: 110.2 | L58: 104.2 | M58: 54.23641
A59: 49 | B59: BANKBARODA | C59: 107.7 | D59: 108.87 | E59: 105.88 | F59: 104.07 | G59: 101.08 | H59: 110.68 | I59: 113.67 | J59: 115.48 | K59: 111.85 | L59: 107.05 | M59: 258.19979
A60: 50 | B60: BANKINDIA | C60: 86.05 | D60: 86.20 | E60: 84.75 | F60: 83.45 | G60: 82.00 | H60: 87.50 | I60: 88.95 | J60: 90.25 | K60: 87.65 | L60: 84.9 | M60: 60.3296
A61: 51 | B61: BASF | C61: 1650.6 | D61: 1666.53 | E61: 1634.07 | F61: 1617.53 | G61: 1585.07 | H61: 1683.07 | I61: 1715.53 | J61: 1732.07 | K61: 1699 | L61: 1650 | M61: 0.03594
A62: 52 | B62: BATAINDIA | C62: 1015.4 | D62: 998.65 | E62: 979.25 | F62: 943.10 | G62: 923.70 | H62: 1034.80 | I62: 1054.20 | J62: 1090.35 | K62: 1018.05 | L62: 962.5 | M62: 25.3684
A63: 53 | B63: BBTC | C63: 1392 | D63: 1372.62 | E63: 1326.38 | F63: 1260.77 | G63: 1214.53 | H63: 1438.23 | I63: 1484.47 | J63: 1550.08 | K63: 1418.85 | L63: 1307 | M63: 6.63183
A64: 54 | B64: BEL | C64: 97.5 | D64: 96.40 | E64: 94.30 | F64: 91.10 | G64: 89.00 | H64: 99.60 | I64: 101.70 | J64: 104.90 | K64: 98.5 | L64: 93.2 | M64: 193.77238
A65: 55 | B65: BEML | C65: 632.4 | D65: 619.60 | E65: 600.80 | F65: 569.20 | G65: 550.40 | H65: 651.20 | I65: 670.00 | J65: 701.60 | K65: 638.4 | L65: 588 | M65: 16.83055
A66: 56 | B66: BERGEPAINT | C66: 292 | D66: 287.72 | E66: 281.43 | F66: 270.87 | G66: 264.58 | H66: 298.28 | I66: 304.57 | J66: 315.13 | K66: 294 | L66: 277.15 | M66: 31.2745
A67: 57 | B67: BFUTILITIE | C67: 216.2 | D67: 217.40 | E67: 212.80 | F67: 209.40 | G67: 204.80 | H67: 220.80 | I67: 225.40 | J67: 228.80 | K67: 222 | L67: 214 | M67: 4.59116
A68: 58 | B68: BGRENERGY | C68: 57.35 | D68: 56.72 | E68: 54.93 | F68: 52.52 | G68: 50.73 | H68: 59.13 | I68: 60.92 | J68: 63.33 | K68: 58.5 | L68: 54.3 | M68: 1.50202
A69: 59 | B69: BHARATFIN | C69: 910.65 | D69: 898.73 | E69: 869.87 | F69: 829.08 | G69: 800.22 | H69: 939.52 | I69: 968.38 | J69: 1009.17 | K69: 927.6 | L69: 857.95 | M69: 26.79009
A70: 60 | B70: BHARATFORG | C70: 581.05 | D70: 583.58 | E70: 575.82 | F70: 570.58 | G70: 562.82 | H70: 588.82 | I70: 596.58 | J70: 601.82 | K70: 591.35 | L70: 578.35 | M70: 4.30077
A71: 61 | B71: BHARTIARTL | C71: 293.5 | D71: 292.95 | E71: 287.90 | F71: 282.30 | G71: 277.25 | H71: 298.55 | I71: 303.60 | J71: 309.20 | K71: 298 | L71: 287.35 | M71: 47.48038
A72: 62 | B72: BHEL | C72: 70.2 | D72: 70.05 | E72: 69.35 | F72: 68.50 | G72: 67.80 | H72: 70.90 | I72: 71.60 | J72: 72.45 | K72: 70.75 | L72: 69.2 | M72: 185.14431
A73: 63 | B73: BHUSANSTL | C73: 28 | D73: 28.43 | E73: 27.37 | F73: 26.73 | G73: 25.67 | H73: 29.07 | I73: 30.13 | J73: 30.77 | K73: 29.5 | L73: 27.8 | M73: 8.03572
A74: 64 | B74: BIOCON | C74: 644.8 | D74: 651.02 | E74: 635.08 | F74: 625.37 | G74: 609.43 | H74: 660.73 | I74: 676.67 | J74: 686.38 | K74: 666.95 | L74: 641.3 | M74: 23.04468
A75: 65 | B75: BIRLACORPN | C75: 569.25 | D75: 569.17 | E75: 562.38 | F75: 555.52 | G75: 548.73 | H75: 576.03 | I75: 582.82 | J75: 589.68 | K75: 575.95 | L75: 562.3 | M75: 0.45732
A76: 66 | B76: BLISSGVS | C76: 177 | D76: 174.70 | E76: 171.40 | F76: 165.80 | G76: 162.50 | H76: 180.30 | I76: 183.60 | J76: 189.20 | K76: 178 | L76: 169.1 | M76: 0.73183
A77: 67 | B77: BLUEDART | C77: 2726.7 | D77: 2752.23 | E77: 2654.47 | F77: 2582.23 | G77: 2484.47 | H77: 2824.47 | I77: 2922.23 | J77: 2994.47 | K77: 2850 | L77: 2680 | M77: 0.0545
A78: 68 | B78: BLUESTARCO | C78: 575.5 | D78: 572.63 | E78: 562.97 | F78: 550.43 | G78: 540.77 | H78: 585.17 | I78: 594.83 | J78: 607.37 | K78: 582.3 | L78: 560.1 | M78: 0.18712
A79: 69 | B79: BOMDYEING | C79: 115 | D79: 113.67 | E79: 112.33 | F79: 109.67 | G79: 108.33 | H79: 116.33 | I79: 117.67 | J79: 120.33 | K79: 115 | L79: 111 | M79: 26.54112
A80: 70 | B80: BOSCHLTD | C80: 19624.75 | D80: 19867.22 | E80: 19279.18 | F80: 18933.62 | G80: 18345.58 | H80: 20212.78 | I80: 20800.82 | J80: 21146.38 | K80: 20455.25 | L80: 19521.65 | M80: 0.50101
A81: 71 | B81: BPCL | C81: 283.45 | D81: 281.85 | E81: 276.70 | F81: 269.95 | G81: 264.80 | H81: 288.60 | I81: 293.75 | J81: 300.50 | K81: 287 | L81: 275.1 | M81: 75.15034
A82: 72 | B82: BRFL | C82: 13.45 | D82: 13.15 | E82: 12.85 | F82: 12.25 | G82: 11.95 | H82: 13.75 | I82: 14.05 | J82: 14.65 | K82: 13.45 | L82: 12.55 | M82: 1.42454
A83: 73 | B83: BRIGADE | C83: 175.5 | D83: 172.80 | E83: 163.70 | F83: 151.90 | G83: 142.80 | H83: 184.60 | I83: 193.70 | J83: 205.50 | K83: 181.9 | L83: 161 | M83: 0.49355
A84: 74 | B84: BRITANNIA | C84: 5583.05 | D84: 5621.97 | E84: 5526.08 | F84: 5469.12 | G84: 5373.23 | H84: 5678.93 | I84: 5774.82 | J84: 5831.78 | K84: 5717.85 | L84: 5565 | M84: 1.2593
A85: 75 | B85: BSE | C85: 615.25 | D85: 612.08 | E85: 604.17 | F85: 593.08 | G85: 585.17 | H85: 623.17 | I85: 631.08 | J85: 642.17 | K85: 620 | L85: 601 | M85: 0.85156
A86: 77 | B86: CADILAHC | C86: 359.4 | D86: 360.77 | E86: 355.83 | F86: 352.27 | G86: 347.33 | H86: 364.33 | I86: 369.27 | J86: 372.83 | K86: 365.7 | L86: 357.2 | M86: 11.76169
A87: 78 | B87: CANBK | C87: 251.8 | D87: 255.40 | E87: 245.95 | F87: 240.10 | G87: 230.65 | H87: 261.25 | I87: 270.70 | J87: 276.55 | K87: 264.85 | L87: 249.55 | M87: 157.43295
A88: 79 | B88: CANFINHOME | C88: 275.95 | D88: 277.57 | E88: 272.63 | F88: 269.32 | G88: 264.38 | H88: 280.88 | I88: 285.82 | J88: 289.13 | K88: 282.5 | L88: 274.25 | M88: 12.9159
A89: 80 | B89: CAPF | C89: 474.95 | D89: 473.55 | E89: 465.10 | F89: 455.25 | G89: 446.80 | H89: 483.40 | I89: 491.85 | J89: 501.70 | K89: 482 | L89: 463.7 | M89: 12.97768
A90: 81 | B90: CAPLIPOINT | C90: 456.9 | D90: 445.30 | E90: 431.60 | F90: 406.30 | G90: 392.60 | H90: 470.60 | I90: 484.30 | J90: 509.60 | K90: 459 | L90: 420 | M90: 0.5277
A91: 82 | B91: CARBORUNIV | C91: 357.6 | D91: 359.03 | E91: 353.07 | F91: 348.53 | G91: 342.57 | H91: 363.57 | I91: 369.53 | J91: 374.07 | K91: 365 | L91: 354.5 | M91: 1.03283
A92: 83 | B92: CARERATING | C92: 1062.7 | D92: 1066.92 | E92: 1051.83 | F92: 1040.97 | G92: 1025.88 | H92: 1077.78 | I92: 1092.87 | J92: 1103.73 | K92: 1082 | L92: 1056.05 | M92: 0.1951
A93: 84 | B93: CASTROLIND | C93: 144.45 | D93: 145.45 | E93: 143.00 | F93: 141.55 | G93: 139.10 | H93: 146.90 | I93: 149.35 | J93: 150.80 | K93: 147.9 | L93: 144 | M93: 9.19006
A94: 85 | B94: CCL | C94: 260.05 | D94: 259.82 | E94: 252.63 | F94: 245.22 | G94: 238.03 | H94: 267.23 | I94: 274.42 | J94: 281.83 | K94: 267 | L94: 252.4 | M94: 2.13076
A95: 86 | B95: CDSL | C95: 241.05 | D95: 241.40 | E95: 239.80 | F95: 238.55 | G95: 236.95 | H95: 242.65 | I95: 244.25 | J95: 245.50 | K95: 243 | L95: 240.15 | M95: 0.61969
A96: 87 | B96: CEATLTD | C96: 1158.15 | D96: 1162.75 | E96: 1137.50 | F96: 1116.85 | G96: 1091.60 | H96: 1183.40 | I96: 1208.65 | J96: 1229.30 | K96: 1188 | L96: 1142.1 | M96: 6.22464
A97: 88 | B97: CENTRALBK | C97: 31.85 | D97: 31.85 | E97: 31.55 | F97: 31.25 | G97: 30.95 | H97: 32.15 | I97: 32.45 | J97: 32.75 | K97: 32.15 | L97: 31.55 | M97: 4.07406
A98: 89 | B98: CENTURYPLY | C98: 178.6 | D98: 178.65 | E98: 175.15 | F98: 171.70 | G98: 168.20 | H98: 182.10 | I98: 185.60 | J98: 189.05 | K98: 182.15 | L98: 175.2 | M98: 1.76616
A99: 90 | B99: CENTURYTEX | C99: 836.85 | D99: 835.53 | E99: 825.27 | F99: 813.68 | G99: 803.42 | H99: 847.12 | I99: 857.38 | J99: 868.97 | K99: 845.8 | L99: 823.95 | M99: 7.99236
A100: 91 | B100: CERA | C100: 2449.15 | D100: 2483.05 | E100: 2391.10 | F100: 2333.05 | G100: 2241.10 | H100: 2541.10 | I100: 2633.05 | J100: 2691.10 | K100: 2575 | L100: 2425 | M100: 0.39168
A101: 92 | B101: CGPOWER | C101: 35.5 | D101: 35.57 | E101: 35.13 | F101: 34.77 | G101: 34.33 | H101: 35.93 | I101: 36.37 | J101: 36.73 | K101: 36 | L101: 35.2 | M101: 51.83132
A102: 93 | B102: CHAMBLFERT | C102: 141.85 | D102: 142.83 | E102: 140.02 | F102: 138.18 | G102: 135.37 | H102: 144.67 | I102: 147.48 | J102: 149.32 | K102: 145.65 | L102: 141 | M102: 3.37211
A103: 94 | B103: CHENNPETRO | C103: 259.65 | D103: 260.10 | E103: 255.55 | F103: 251.45 | G103: 246.90 | H103: 264.20 | I103: 268.75 | J103: 272.85 | K103: 264.65 | L103: 256 | M103: 4.2182
A104: 95 | B104: CHOLAFIN | C104: 1339.05 | D104: 1318.82 | E104: 1283.03 | F104: 1227.02 | G104: 1191.23 | H104: 1374.83 | I104: 1410.62 | J104: 1466.63 | K104: 1354.6 | L104: 1262.8 | M104: 6.71463
A105: 96 | B105: CIPLA | C105: 615.4 | D105: 620.45 | E105: 608.95 | F105: 602.50 | G105: 591.00 | H105: 626.90 | I105: 638.40 | J105: 644.85 | K105: 631.95 | L105: 614 | M105: 14.42392
A106: 97 | B106: COALINDIA | C106: 261.1 | D106: 262.40 | E106: 258.80 | F106: 256.50 | G106: 252.90 | H106: 264.70 | I106: 268.30 | J106: 270.60 | K106: 266 | L106: 260.1 | M106: 104.73803
A107: 98 | B107: COCHINSHIP | C107: 389.75 | D107: 389.68 | E107: 383.57 | F107: 377.38 | G107: 371.27 | H107: 395.87 | I107: 401.98 | J107: 408.17 | K107: 395.8 | L107: 383.5 | M107: 3.11539
A108: 99 | B108: COFFEEDAY | C108: 268.65 | D108: 266.60 | E108: 262.05 | F108: 255.45 | G108: 250.90 | H108: 273.20 | I108: 277.75 | J108: 284.35 | K108: 271.15 | L108: 260 | M108: 1.03606
A109: 100 | B109: COLPAL | C109: 1109.15 | D109: 1111.90 | E109: 1096.40 | F109: 1083.65 | G109: 1068.15 | H109: 1124.65 | I109: 1140.15 | J109: 1152.90 | K109: 1127.4 | L109: 1099.15 | M109: 4.98464
A110: 101 | B110: CONCOR | C110: 661.6 | D110: 653.47 | E110: 640.93 | F110: 620.27 | G110: 607.73 | H110: 674.13 | I110: 686.67 | J110: 707.33 | K110: 666 | L110: 632.8 | M110: 10.99076
A111: 102 | B111: COROMANDEL | C111: 419.7 | D111: 420.73 | E111: 411.47 | F111: 403.23 | G111: 393.97 | H111: 428.97 | I111: 438.23 | J111: 446.47 | K111: 430 | L111: 412.5 | M111: 1.51167
A112: 103 | B112: COX&KINGS | C112: 200 | D112: 202.50 | E112: 195.50 | F112: 191.00 | G112: 184.00 | H112: 207.00 | I112: 214.00 | J112: 218.50 | K112: 209.5 | L112: 198 | M112: 0.16418
A113: 104 | B113: CRISIL | C113: 1458.25 | D113: 1461.02 | E113: 1432.63 | F113: 1407.02 | G113: 1378.63 | H113: 1486.63 | I113: 1515.02 | J113: 1540.63 | K113: 1489.4 | L113: 1435.4 | M113: 0.05977
A114: 105 | B114: CROMPTON | C114: 215.25 | D114: 213.80 | E114: 209.65 | F114: 204.05 | G114: 199.90 | H114: 219.40 | I114: 223.55 | J114: 229.15 | K114: 217.95 | L114: 208.2 | M114: 6.63406
A115: 106 | B115: CUB | C115: 168.95 | D115: 169.28 | E115: 167.77 | F115: 166.58 | G115: 165.07 | H115: 170.47 | I115: 171.98 | J115: 173.17 | K115: 170.8 | L115: 168.1 | M115: 9.02749
A116: 107 | B116: CUMMINSIND | C116: 746.95 | D116: 749.28 | E116: 735.77 | F116: 724.58 | G116: 711.07 | H116: 760.47 | I116: 773.98 | J116: 785.17 | K116: 762.8 | L116: 738.1 | M116: 8.81064
A117: 108 | B117: CYIENT | C117: 614.5 | D117: 618.17 | E117: 608.38 | F117: 602.27 | G117: 592.48 | H117: 624.28 | I117: 634.07 | J117: 640.18 | K117: 627.95 | L117: 612.05 | M117: 2.19735
A118: 109 | B118: DABUR | C118: 370.65 | D118: 375.73 | E118: 364.32 | F118: 357.98 | G118: 346.57 | H118: 382.07 | I118: 393.48 | J118: 399.82 | K118: 387.15 | L118: 369.4 | M118: 69.14459
A119: 110 | B119: DBCORP | C119: 164.95 | D119: 166.35 | E119: 162.65 | F119: 160.35 | G119: 156.65 | H119: 168.65 | I119: 172.35 | J119: 174.65 | K119: 170.05 | L119: 164.05 | M119: 0.56508
A120: 111 | B120: DBL | C120: 434.75 | D120: 436.92 | E120: 424.93 | F120: 415.12 | G120: 403.13 | H120: 446.73 | I120: 458.72 | J120: 468.53 | K120: 448.9 | L120: 427.1 | M120: 6.65842
A121: 112 | B121: DBREALTY | C121: 19.75 | D121: 19.73 | E121: 19.07 | F121: 18.38 | G121: 17.72 | H121: 20.42 | I121: 21.08 | J121: 21.77 | K121: 20.4 | L121: 19.05 | M121: 6.87739
A122: 113 | B122: DCAL | C122: 229.9 | D122: 232.73 | E122: 225.17 | F122: 220.43 | G122: 212.87 | H122: 237.47 | I122: 245.03 | J122: 249.77 | K122: 240.3 | L122: 228 | M122: 0.86718
A123: 114 | B123: DCBBANK | C123: 158.95 | D123: 159.37 | E123: 157.53 | F123: 156.12 | G123: 154.28 | H123: 160.78 | I123: 162.62 | J123: 164.03 | K123: 161.2 | L123: 157.95 | M123: 22.32976
A124: 115 | B124: DCMSHRIRAM | C124: 406.1 | D124: 407.43 | E124: 399.87 | F124: 393.63 | G124: 386.07 | H124: 413.67 | I124: 421.23 | J124: 427.47 | K124: 415 | L124: 401.2 | M124: 0.58481
A125: 116 | B125: DEEPAKFERT | C125: 201.95 | D125: 200.97 | E125: 198.93 | F125: 195.92 | G125: 193.88 | H125: 203.98 | I125: 206.02 | J125: 209.03 | K125: 203 | L125: 197.95 | M125: 0.83745
A126: 117 | B126: DELTACORP | C126: 241 | D126: 240.10 | E126: 237.30 | F126: 233.60 | G126: 230.80 | H126: 243.80 | I126: 246.60 | J126: 250.30 | K126: 242.9 | L126: 236.4 | M126: 13.20941
A127: 118 | B127: DEN | C127: 68.3 | D127: 68.30 | E127: 68.15 | F127: 68.00 | G127: 67.85 | H127: 68.45 | I127: 68.60 | J127: 68.75 | K127: 68.45 | L127: 68.15 | M127: 0.93806
A128: 119 | B128: DENABANK | C128: 15.85 | D128: 15.92 | E128: 15.68 | F128: 15.52 | G128: 15.28 | H128: 16.08 | I128: 16.32 | J128: 16.48 | K128: 16.15 | L128: 15.75 | M128: 9.26709
A129: 120 | B129: DHFL | C129: 231.55 | D129: 233.47 | E129: 225.13 | F129: 218.72 | G129: 210.38 | H129: 239.88 | I129: 248.22 | J129: 254.63 | K129: 241.8 | L129: 227.05 | M129: 251.0436
A130: 121 | B130: DISHTV | C130: 43.9 | D130: 43.80 | E130: 43.15 | F130: 42.40 | G130: 41.75 | H130: 44.55 | I130: 45.20 | J130: 45.95 | K130: 44.45 | L130: 43.05 | M130: 42.31378
A131: 122 | B131: DIVISLAB | C131: 1505.55 | D131: 1497.43 | E131: 1477.92 | F131: 1450.28 | G131: 1430.77 | H131: 1525.07 | I131: 1544.58 | J131: 1572.22 | K131: 1516.95 | L131: 1469.8 | M131: 9.53639
A132: 123 | B132: DIXON | C132: 2098.85 | D132: 2229.03 | E132: 1944.82 | F132: 1790.78 | G132: 1506.57 | H132: 2383.07 | I132: 2667.28 | J132: 2821.32 | K132: 2513.25 | L132: 2075 | M132: 1.57135
A133: 124 | B133: DLF | C133: 171.85 | D133: 169.77 | E133: 166.08 | F133: 160.32 | G133: 156.63 | H133: 175.53 | I133: 179.22 | J133: 184.98 | K133: 173.45 | L133: 164 | M133: 80.59831
A134: 125 | B134: DMART | C134: 1366.1 | D134: 1367.10 | E134: 1345.20 | F134: 1324.30 | G134: 1302.40 | H134: 1388.00 | I134: 1409.90 | J134: 1430.80 | K134: 1389 | L134: 1346.2 | M134: 7.06506
A135: 126 | B135: DREDGECORP | C135: 325.25 | D135: 324.08 | E135: 317.17 | F135: 309.08 | G135: 302.17 | H135: 332.17 | I135: 339.08 | J135: 347.17 | K135: 331 | L135: 316 | M135: 2.17397
A136: 127 | B136: DRREDDY | C136: 2461.6 | D136: 2494.18 | E136: 2413.92 | F136: 2366.23 | G136: 2285.97 | H136: 2541.87 | I136: 2622.13 | J136: 2669.82 | K136: 2574.45 | L136: 2446.5 | M136: 13.70566
A137: 128 | B137: ECLERX | C137: 1071.75 | D137: 1082.48 | E137: 1038.97 | F137: 1006.18 | G137: 962.67 | H137: 1115.27 | I137: 1158.78 | J137: 1191.57 | K137: 1126 | L137: 1049.7 | M137: 0.38459
A138: 129 | B138: EDELWEISS | C138: 170.3 | D138: 168.00 | E138: 165.30 | F138: 160.30 | G138: 157.60 | H138: 173.00 | I138: 175.70 | J138: 180.70 | K138: 170.7 | L138: 163 | M138: 64.71471
A139: 130 | B139: EICHERMOT | C139: 21992.1 | D139: 22013.97 | E139: 21728.13 | F139: 21464.17 | G139: 21178.33 | H139: 22277.93 | I139: 22563.77 | J139: 22827.73 | K139: 22299.8 | L139: 21750 | M139: 1.40256
A140: 131 | B140: EIDPARRY | C140: 218.8 | D140: 220.58 | E140: 216.17 | F140: 213.53 | G140: 209.12 | H140: 223.22 | I140: 227.63 | J140: 230.27 | K140: 225 | L140: 217.95 | M140: 0.86067
A141: 132 | B141: EIHOTEL | C141: 163.75 | D141: 163.33 | E141: 161.72 | F141: 159.68 | G141: 158.07 | H141: 165.37 | I141: 166.98 | J141: 169.02 | K141: 164.95 | L141: 161.3 | M141: 0.37365
A142: 133 | B142: EMAMILTD | C142: 396.35 | D142: 398.13 | E142: 392.72 | F142: 389.08 | G142: 383.67 | H142: 401.77 | I142: 407.18 | J142: 410.82 | K142: 403.55 | L142: 394.5 | M142: 3.43292
A143: 134 | B143: ENDURANCE | C143: 1218.25 | D143: 1221.03 | E143: 1198.77 | F143: 1179.28 | G143: 1157.02 | H143: 1240.52 | I143: 1262.78 | J143: 1282.27 | K143: 1243.3 | L143: 1201.55 | M143: 0.14577
A144: 135 | B144: ENGINERSIN | C144: 117.8 | D144: 117.85 | E144: 116.35 | F144: 114.90 | G144: 113.40 | H144: 119.30 | I144: 120.80 | J144: 122.25 | K144: 119.35 | L144: 116.4 | M144: 19.2077
A145: 136 | B145: EQUITAS | C145: 113.45 | D145: 113.60 | E145: 106.55 | F145: 99.65 | G145: 92.60 | H145: 120.50 | I145: 127.55 | J145: 134.45 | K145: 120.65 | L145: 106.7 | M145: 85.26115
A146: 137 | B146: ERIS | C146: 677.4 | D146: 676.32 | E146: 669.08 | F146: 660.77 | G146: 653.53 | H146: 684.63 | I146: 691.87 | J146: 700.18 | K146: 683.55 | L146: 668 | M146: 0.0525
A147: 138 | B147: EROSMEDIA | C147: 81.25 | D147: 80.05 | E147: 76.30 | F147: 71.35 | G147: 67.60 | H147: 85.00 | I147: 88.75 | J147: 93.70 | K147: 83.8 | L147: 75.1 | M147: 11.20265
A148: 139 | B148: ESCORTS | C148: 674.45 | D148: 666.75 | E148: 643.80 | F148: 613.15 | G148: 590.20 | H148: 697.40 | I148: 720.35 | J148: 751.00 | K148: 689.7 | L148: 636.1 | M148: 53.33152
A149: 140 | B149: EVEREADY | C149: 188.95 | D149: 187.18 | E149: 180.12 | F149: 171.28 | G149: 164.22 | H149: 196.02 | I149: 203.08 | J149: 211.92 | K149: 194.25 | L149: 178.35 | M149: 1.3473
A150: 141 | B150: EXIDEIND | C150: 254.6 | D150: 257.57 | E150: 249.13 | F150: 243.67 | G150: 235.23 | H150: 263.03 | I150: 271.47 | J150: 276.93 | K150: 266 | L150: 252.1 | M150: 19.72244
A151: 142 | B151: FCONSUMER | C151: 43.35 | D151: 43.03 | E151: 42.57 | F151: 41.78 | G151: 41.32 | H151: 43.82 | I151: 44.28 | J151: 45.07 | K151: 43.5 | L151: 42.25 | M151: 14.02748
A152: 143 | B152: FEDERALBNK | C152: 82.65 | D152: 82.63 | E152: 81.82 | F152: 80.98 | G152: 80.17 | H152: 83.47 | I152: 84.28 | J152: 85.12 | K152: 83.45 | L152: 81.8 | M152: 84.59069
A153: 144 | B153: FINCABLES | C153: 501.85 | D153: 502.85 | E153: 496.00 | F153: 490.15 | G153: 483.30 | H153: 508.70 | I153: 515.55 | J153: 521.40 | K153: 509.7 | L153: 497 | M153: 0.14328
A154: 145 | B154: FINPIPE | C154: 536.3 | D154: 540.10 | E154: 531.20 | F154: 526.10 | G154: 517.20 | H154: 545.20 | I154: 554.10 | J154: 559.20 | K154: 549 | L154: 535 | M154: 0.15289
A155: 146 | B155: FLFL | C155: 366.4 | D155: 369.52 | E155: 360.03 | F155: 353.67 | G155: 344.18 | H155: 375.88 | I155: 385.37 | J155: 391.73 | K155: 379 | L155: 363.15 | M155: 0.24004
A156: 147 | B156: FSL | C156: 60.3 | D156: 60.80 | E156: 58.00 | F156: 55.70 | G156: 52.90 | H156: 63.10 | I156: 65.90 | J156: 68.20 | K156: 63.6 | L156: 58.5 | M156: 48.14588
A157: 148 | B157: GAIL | C157: 367.85 | D157: 369.18 | E157: 362.77 | F157: 357.68 | G157: 351.27 | H157: 374.27 | I157: 380.68 | J157: 385.77 | K157: 375.6 | L157: 364.1 | M157: 28.52011
A158: 149 | B158: GATI | C158: 76 | D158: 76.38 | E158: 74.42 | F158: 72.83 | G158: 70.87 | H158: 77.97 | I158: 79.93 | J158: 81.52 | K158: 78.35 | L158: 74.8 | M158: 6.93219
A159: 150 | B159: GDL | C159: 132.65 | D159: 133.17 | E159: 131.23 | F159: 129.82 | G159: 127.88 | H159: 134.58 | I159: 136.52 | J159: 137.93 | K159: 135.1 | L159: 131.75 | M159: 0.66379
A160: 151 | B160: GEPIL | C160: 824.4 | D160: 830.13 | E160: 814.32 | F160: 804.23 | G160: 788.42 | H160: 840.22 | I160: 856.03 | J160: 866.12 | K160: 845.95 | L160: 820.05 | M160: 0.05039
A161: 152 | B161: GESHIP | C161: 308.6 | D161: 308.88 | E161: 304.77 | F161: 300.93 | G161: 296.82 | H161: 312.72 | I161: 316.83 | J161: 320.67 | K161: 313 | L161: 305.05 | M161: 0.27702
A162: 153 | B162: GET&D | C162: 235.25 | D162: 235.27 | E162: 232.73 | F162: 230.22 | G162: 227.68 | H162: 237.78 | I162: 240.32 | J162: 242.83 | K162: 237.8 | L162: 232.75 | M162: 0.16608
A163: 154 | B163: GHCL | C163: 221.55 | D163: 224.48 | E163: 217.22 | F163: 212.88 | G163: 205.62 | H163: 228.82 | I163: 236.08 | J163: 240.42 | K163: 231.75 | L163: 220.15 | M163: 1.55776
A164: 155 | B164: GICRE | C164: 319.25 | D164: 319.83 | E164: 317.67 | F164: 316.08 | G164: 313.92 | H164: 321.42 | I164: 323.58 | J164: 325.17 | K164: 322 | L164: 318.25 | M164: 0.17724
A165: 156 | B165: GILLETTE | C165: 6543.3 | D165: 6555.10 | E165: 6478.20 | F165: 6413.10 | G165: 6336.20 | H165: 6620.20 | I165: 6697.10 | J165: 6762.20 | K165: 6632 | L165: 6490 | M165: 0.03882
A166: 157 | B166: GLAXO | C166: 1422.3 | D166: 1428.85 | E166: 1397.70 | F166: 1373.10 | G166: 1341.95 | H166: 1453.45 | I166: 1484.60 | J166: 1509.20 | K166: 1460 | L166: 1404.25 | M166: 0.10839
A167: 158 | B167: GLENMARK | C167: 624.05 | D167: 624.20 | E167: 615.10 | F167: 606.15 | G167: 597.05 | H167: 633.15 | I167: 642.25 | J167: 651.20 | K167: 633.3 | L167: 615.25 | M167: 7.08721
A168: 159 | B168: GMDCLTD | C168: 87.15 | D168: 86.87 | E168: 85.38 | F168: 83.62 | G168: 82.13 | H168: 88.63 | I168: 90.12 | J168: 91.88 | K168: 88.35 | L168: 85.1 | M168: 2.78886
A169: 160 | B169: GMRINFRA | C169: 17.05 | D169: 16.98 | E169: 16.77 | F169: 16.48 | G169: 16.27 | H169: 17.27 | I169: 17.48 | J169: 17.77 | K169: 17.2 | L169: 16.7 | M169: 190.94399
A170: 161 | B170: GNFC | C170: 337.6 | D170: 337.55 | E170: 334.10 | F170: 330.60 | G170: 327.15 | H170: 341.05 | I170: 344.50 | J170: 348.00 | K170: 341 | L170: 334.05 | M170: 4.03125
A171: 162 | B171: GODFRYPHLP | C171: 772.55 | D171: 774.12 | E171: 763.88 | F171: 755.22 | G171: 744.98 | H171: 782.78 | I171: 793.02 | J171: 801.68 | K171: 784.35 | L171: 765.45 | M171: 1.64926
A172: 163 | B172: GODREJAGRO | C172: 522.55 | D172: 524.17 | E172: 518.38 | F172: 514.22 | G172: 508.43 | H172: 528.33 | I172: 534.12 | J172: 538.28 | K172: 529.95 | L172: 520 | M172: 0.43215
A173: 164 | B173: GODREJCP | C173: 705.45 | D173: 715.48 | E173: 690.97 | F173: 676.48 | G173: 651.97 | H173: 729.97 | I173: 754.48 | J173: 768.97 | K173: 740 | L173: 701 | M173: 14.31738
A174: 165 | B174: GODREJIND | C174: 465.75 | D174: 470.17 | E174: 459.58 | F174: 453.42 | G174: 442.83 | H174: 476.33 | I174: 486.92 | J174: 493.08 | K174: 480.75 | L174: 464 | M174: 3.93321
A175: 166 | B175: GODREJPROP | C175: 599.85 | D175: 602.63 | E175: 588.27 | F175: 576.68 | G175: 562.32 | H175: 614.22 | I175: 628.58 | J175: 640.17 | K175: 617 | L175: 591.05 | M175: 6.41234
A176: 167 | B176: GPPL | C176: 98.75 | D176: 99.57 | E176: 97.38 | F176: 96.02 | G176: 93.83 | H176: 100.93 | I176: 103.12 | J176: 104.48 | K176: 101.75 | L176: 98.2 | M176: 1.80559
A177: 168 | B177: GRANULES | C177: 100.95 | D177: 100.18 | E177: 98.92 | F177: 96.88 | G177: 95.62 | H177: 102.22 | I177: 103.48 | J177: 105.52 | K177: 101.45 | L177: 98.15 | M177: 54.40438
A178: 169 | B178: GRAPHITE | C178: 994.3 | D178: 1001.25 | E178: 968.10 | F178: 941.90 | G178: 908.75 | H178: 1027.45 | I178: 1060.60 | J178: 1086.80 | K178: 1034.4 | L178: 975.05 | M178: 15.06646
A179: 170 | B179: GRASIM | C179: 845.45 | D179: 840.53 | E179: 825.07 | F179: 804.68 | G179: 789.22 | H179: 860.92 | I179: 876.38 | J179: 896.77 | K179: 856 | L179: 820.15 | M179: 10.57055
A180: 171 | B180: GREAVESCOT | C180: 117.75 | D180: 117.38 | E180: 115.77 | F180: 113.78 | G180: 112.17 | H180: 119.37 | I180: 120.98 | J180: 122.97 | K180: 119 | L180: 115.4 | M180: 8.60486
A181: 172 | B181: GREENPLY | C181: 136.6 | D181: 137.82 | E181: 134.78 | F181: 132.97 | G181: 129.93 | H181: 139.63 | I181: 142.67 | J181: 144.48 | K181: 140.85 | L181: 136 | M181: 1.01459
A182: 173 | B182: GRUH | C182: 296.45 | D182: 294.40 | E182: 290.15 | F182: 283.85 | G182: 279.60 | H182: 300.70 | I182: 304.95 | J182: 311.25 | K182: 298.65 | L182: 288.1 | M182: 7.0345
A183: 174 | B183: GSFC | C183: 108.95 | D183: 107.92 | E183: 105.43 | F183: 101.92 | G183: 99.43 | H183: 111.43 | I183: 113.92 | J183: 117.43 | K183: 110.4 | L183: 104.4 | M183: 23.55982
A184: 175 | B184: GSKCONS | C184: 7050.2 | D184: 7051.73 | E184: 7003.47 | F184: 6956.73 | G184: 6908.47 | H184: 7098.47 | I184: 7146.73 | J184: 7193.47 | K184: 7100 | L184: 7005 | M184: 0.69832
A185: 176 | B185: GSPL | C185: 180 | D185: 180.10 | E185: 177.60 | F185: 175.20 | G185: 172.70 | H185: 182.50 | I185: 185.00 | J185: 187.40 | K185: 182.6 | L185: 177.7 | M185: 7.47524
A186: 177 | B186: GUJALKALI | C186: 560.5 | D186: 556.32 | E186: 547.43 | F186: 534.37 | G186: 525.48 | H186: 569.38 | I186: 578.27 | J186: 591.33 | K186: 565.2 | L186: 543.25 | M186: 0.95941
A187: 178 | B187: GUJFLUORO | C187: 881.05 | D187: 878.88 | E187: 868.77 | F187: 856.48 | G187: 846.37 | H187: 891.17 | I187: 901.28 | J187: 913.57 | K187: 889 | L187: 866.6 | M187: 0.87099
A188: 179 | B188: GUJGASLTD | C188: 627.9 | D188: 630.63 | E188: 621.27 | F188: 614.63 | G188: 605.27 | H188: 637.27 | I188: 646.63 | J188: 653.27 | K188: 640 | L188: 624 | M188: 2.19078
A189: 180 | B189: GULFOILLUB | C189: 720.05 | D189: 718.65 | E189: 712.30 | F189: 704.55 | G189: 698.20 | H189: 726.40 | I189: 732.75 | J189: 740.50 | K189: 725 | L189: 710.9 | M189: 0.08226
A190: 181 | B190: GVKPIL | C190: 7.85 | D190: 7.80 | E190: 7.65 | F190: 7.45 | G190: 7.30 | H190: 8.00 | I190: 8.15 | J190: 8.35 | K190: 7.95 | L190: 7.6 | M190: 18.58044
A191: 182 | B191: HATHWAY | C191: 29.9 | D191: 29.97 | E191: 29.78 | F191: 29.67 | G191: 29.48 | H191: 30.08 | I191: 30.27 | J191: 30.38 | K191: 30.15 | L191: 29.85 | M191: 14.64247
A192: 183 | B192: HATSUN | C192: 621.75 | D192: 626.38 | E192: 607.92 | F192: 594.08 | G192: 575.62 | H192: 640.22 | I192: 658.68 | J192: 672.52 | K192: 644.85 | L192: 612.55 | M192: 0.10985
A193: 184 | B193: HAVELLS | C193: 645 | D193: 649.53 | E193: 636.57 | F193: 628.13 | G193: 615.17 | H193: 657.97 | I193: 670.93 | J193: 679.37 | K193: 662.5 | L193: 641.1 | M193: 16.24969
A194: 185 | B194: HCC | C194: 12.75 | D194: 12.63 | E194: 12.37 | F194: 11.98 | G194: 11.72 | H194: 13.02 | I194: 13.28 | J194: 13.67 | K194: 12.9 | L194: 12.25 | M194: 47.08142
A195: 186 | B195: HCL-INSYS | C195: 27.4 | D195: 27.53 | E195: 27.07 | F195: 26.73 | G195: 26.27 | H195: 27.87 | I195: 28.33 | J195: 28.67 | K195: 28 | L195: 27.2 | M195: 10.45308
A196: 187 | B196: HCLTECH | C196: 1008.9 | D196: 1023.28 | E196: 989.12 | F196: 969.33 | G196: 935.17 | H196: 1043.07 | I196: 1077.23 | J196: 1097.02 | K196: 1057.45 | L196: 1003.5 | M196: 19.73035
A197: 188 | B197: HDFC | C197: 1762 | D197: 1768.38 | E197: 1741.87 | F197: 1721.73 | G197: 1695.22 | H197: 1788.52 | I197: 1815.03 | J197: 1835.17 | K197: 1794.9 | L197: 1748.25 | M197: 51.42502
A198: 189 | B198: HDFCBANK | C198: 1912.2 | D198: 1912.73 | E198: 1895.47 | F198: 1878.73 | G198: 1861.47 | H198: 1929.47 | I198: 1946.73 | J198: 1963.47 | K198: 1930 | L198: 1896 | M198: 49.07263
A199: 190 | B199: HDIL | C199: 20.9 | D199: 20.73 | E199: 20.42 | F199: 19.93 | G199: 19.62 | H199: 21.22 | I199: 21.53 | J199: 22.02 | K199: 21.05 | L199: 20.25 | M199: 27.46333
A200: 191 | B200: HEG | C200: 4311.75 | D200: 4387.27 | E200: 4224.53 | F200: 4137.32 | G200: 3974.58 | H200: 4474.48 | I200: 4637.22 | J200: 4724.43 | K200: 4550 | L200: 4300.05 | M200: 5.93162
A201: 192 | B201: HEIDELBERG | C201: 144.6 | D201: 145.00 | E201: 140.70 | F201: 136.80 | G201: 132.50 | H201: 148.90 | I201: 153.20 | J201: 157.10 | K201: 149.3 | L201: 141.1 | M201: 1.24187
A202: 193 | B202: HERITGFOOD | C202: 522.8 | D202: 536.48 | E202: 502.97 | F202: 483.13 | G202: 449.62 | H202: 556.32 | I202: 589.83 | J202: 609.67 | K202: 570 | L202: 516.65 | M202: 0.6136
A203: 194 | B203: HEROMOTOCO | C203: 2792.25 | D203: 2782.08 | E203: 2759.17 | F203: 2726.08 | G203: 2703.17 | H203: 2815.17 | I203: 2838.08 | J203: 2871.17 | K203: 2805 | L203: 2749 | M203: 1.72451
A204: 195 | B204: HEXAWARE | C204: 320.7 | D204: 326.03 | E204: 313.82 | F204: 306.93 | G204: 294.72 | H204: 332.92 | I204: 345.13 | J204: 352.02 | K204: 338.25 | L204: 319.15 | M204: 23.77735
A205: 196 | B205: HFCL | C205: 20.75 | D205: 20.87 | E205: 20.13 | F205: 19.52 | G205: 18.78 | H205: 21.48 | I205: 22.22 | J205: 22.83 | K205: 21.6 | L205: 20.25 | M205: 55.63096
A206: 197 | B206: HIMATSEIDE | C206: 235.75 | D206: 237.45 | E206: 232.25 | F206: 228.75 | G206: 223.55 | H206: 240.95 | I206: 246.15 | J206: 249.65 | K206: 242.65 | L206: 233.95 | M206: 0.26622
... 304 more rows

Sheet Bulk Deals
E6: Back To Main Page
A7: Subject : | B7: BULK DEAL | D7: =Main!B10 -> 2018-11-02
A9: Date | B9: Scrip code | C9: Scrip Name | D9: Client Name | E9: Buy / Sell | F9: Quantity Traded | G9: Trade Price / Wt.Avg.trade price | H9: Exchange
A10: 2018-11-01 | B10: 512161 | C10: 8KMILES | D10: IFCI LTD. | E10: SELL | F10: 301,567 | G10: 67.22 | H10: BSE
A11: 2018-11-01 | B11: 542057 | C11: BCPL | D11: NNM SECURITIES PVT LTD | E11: SELL | F11: 48,000 | G11: 37 | H11: BSE
A12: 2018-11-01 | B12: 542057 | C12: BCPL | D12: NNM SECURITIES PVT LTD | E12: BUY | F12: 108,000 | G12: 36.46 | H12: BSE
A13: 2018-11-01 | B13: 539266 | C13: CONCRETE | D13: SANJIV VIKRAM DUTT | E13: SELL | F13: 60,400 | G13: 7.05 | H13: BSE
A14: 2018-11-01 | B14: 531739 | C14: GENNEX | D14: PREMIER CORPORATE SECURITIES & FINVEST PVT. LTD. | E14: SELL | F14: 3,009,415 | G14: 4 | H14: BSE
A15: 2018-11-01 | B15: 531739 | C15: GENNEX | D15: PREMIER CORPORATE SECURITIES & FINVEST PVT. LTD. | E15: BUY | F15: 9,402 | G15: 4.05 | H15: BSE
A16: 2018-11-01 | B16: 531739 | C16: GENNEX | D16: YASHODEV COMMOTRADE PRIVATE LIMITED | E16: BUY | F16: 1,900,000 | G16: 4 | H16: BSE
A17: 2018-11-01 | B17: 531739 | C17: GENNEX | D17: IVORY CONSULTANTS PVT LTD | E17: BUY | F17: 1,000,000 | G17: 3.99 | H17: BSE
A18: 2018-11-01 | B18: 539853 | C18: GOLDENCAP | D18: ARVIND SHANTILAL SHAH | E18: SELL | F18: 40,988 | G18: 27.15 | H18: BSE
A19: 2018-11-01 | B19: 539853 | C19: GOLDENCAP | D19: SATISHCHANDRA GURUNATH DESAI | E19: BUY | F19: 17,500 | G19: 28.41 | H19: BSE
A20: 2018-11-01 | B20: 539853 | C20: GOLDENCAP | D20: MILIND VASANT JOSHI . | E20: BUY | F20: 17,380 | G20: 27 | H20: BSE
A21: 2018-11-01 | B21: 539853 | C21: GOLDENCAP | D21: VIJAYKUMAR HANMANT KSHIRSAGAR | E21: BUY | F21: 18,000 | G21: 27 | H21: BSE
A22: 2018-11-01 | B22: 538765 | C22: JSHL | D22: VIVEKANAND NARAINDAS GANGARAMANI | E22: SELL | F22: 60,000 | G22: 4.4 | H22: BSE
A23: 2018-11-01 | B23: 531206 | C23: KWALITYCL | D23: RAJIV MAHESHBHAI MANGLANI | E23: BUY | F23: 70,000 | G23: 8.5 | H23: BSE
A24: 2018-11-01 | B24: 531206 | C24: KWALITYCL | D24: ANURODH INFRASTRUCTURE LIMITED | E24: SELL | F24: 70,000 | G24: 8.5 | H24: BSE
A25: 2018-11-01 | B25: 539311 | C25: NFIL | D25: PIYUSH BATUKBHAI DAVE | E25: SELL | F25: 100,000 | G25: 15 | H25: BSE
A26: 2018-11-01 | B26: 514330 | C26: OBRSESY | D26: SONAL SANDEEP SATAV | E26: BUY | F26: 50,000 | G26: 8.98 | H26: BSE
A27: 2018-11-01 | B27: 514330 | C27: OBRSESY | D27: RAMRAKH RAMPRATAP BOHRA | E27: SELL | F27: 45,250 | G27: 8.99 | H27: BSE
A28: 2018-11-01 | B28: 538860 | C28: PANAFIC | D28: SUVIDHA BUILDTECH PRIVATE LIMITED . | E28: BUY | F28: 500,000 | G28: 0.29 | H28: BSE
A29: 2018-11-01 | B29: 538860 | C29: PANAFIC | D29: EXPERT INVESTMENT ADVISORY PVT LTD | E29: SELL | F29: 600,000 | G29: 0.29 | H29: BSE
A30: 2018-11-01 | B30: 534734 | C30: RMCHEM | D30: SUVIDHA BUILDTECH PRIVATE LIMITED . | E30: SELL | F30: 1,820,000 | G30: 1.42 | H30: BSE
A31: 2018-11-01 | B31: 506906 | C31: SCBL | D31: VISHNU BANWARILAL SHARMA | E31: SELL | F31: 105,000 | G31: 10.96 | H31: BSE
A32: 2018-11-01 | B32: 506906 | C32: SCBL | D32: VISHNU BANWARILAL SHARMA | E32: BUY | F32: 104,167 | G32: 10.76 | H32: BSE
A33: 2018-11-01 | B33: 539835 | C33: SUPERIOR | D33: BHAWNA JAIN | E33: SELL | F33: 25,000 | G33: 16.96 | H33: BSE
A34: 2018-11-01 | B34: 539835 | C34: SUPERIOR | D34: SEEMA SHARMA | E34: BUY | F34: 34,925 | G34: 16.97 | H34: BSE
A35: 2018-11-01 | B35: 539798 | C35: UMIYA | D35: VIMAL RAMESHBHAI HIRAPARA | E35: SELL | F35: 110,952 | G35: 29.1 | H35: BSE
A36: 2018-11-01 | B36: 539798 | C36: UMIYA | D36: VIMAL RAMESHBHAI HIRAPARA | E36: BUY | F36: 132,785 | G36: 28.71 | H36: BSE
A37: 2018-11-01 | B37: 503657 | C37: VEERENRGY | D37: SADVI PADUVALLI CHANDRASHEKARA | E37: BUY | F37: 62,417 | G37: 12 | H37: BSE
A38: 2018-11-01 | B38: 542046 | C38: VIEL | D38: ARDI INVESTMENT AND TRADING COMPANY LIMITED | E38: BUY | F38: 66,000 | G38: 52 | H38: BSE
A39: 2018-11-01 | B39: 531518 | C39: VIKASPROP | D39: PUNEET | E39: SELL | F39: 1,512,500 | G39: 1.86 | H39: BSE
A40: 2018-11-01 | B40: JETAIRWAYS | C40: Jet Airways (India) Ltd. | D40: SHAASTRA SECURITIES TRADING PRIVATE LIMITED | E40: BUY | F40: 780,817 | G40: 222.02 | H40: NSE
A41: 2018-11-01 | B41: RCOM | C41: Reliance Comm. Ltd. | D41: SHAASTRA SECURITIES TRADING PRIVATE LIMITED | E41: BUY | F41: 17,810,790 | G41: 13.42 | H41: NSE
A42: 2018-11-01 | B42: 8KMILES | C42: 8K Miles Soft Serv Ltd | D42: IFCI LTD. | E42: SELL | F42: 1,105,980 | G42: 67.89 | H42: NSE
A43: 2018-11-01 | B43: JETAIRWAYS | C43: Jet Airways (India) Ltd. | D43: SHAASTRA SECURITIES TRADING PRIVATE LIMITED | E43: SELL | F43: 780,817 | G43: 222.1 | H43: NSE
A44: 2018-11-01 | B44: RCOM | C44: Reliance Comm. Ltd. | D44: SHAASTRA SECURITIES TRADING PRIVATE LIMITED | E44: SELL | F44: 17,810,790 | G44: 13.42 | H44: NSE

Sheet Call Tracker (Equity & F&O)
M5: Back To Main Page
A6: Retail Research Technical Calls & Fundamental Performance Report for the month of October -2018
M7: =Main!B10 -> 2018-11-02
B8: Positional Call
A9: Sr.no | B9: Date | D9: Company | E9: Rec | F9: Rec Price | G9: Stop Loss*** | H9: Call Closed At | I9: Target | J9: Remark | K9: Profit / Loss per Share | L9: Gain / Loss % | M9: Status | N9: Closed Date | O9: NSE Closed Price
A10: 1 | B10: 2018-10-25 | D10: SUNPHARMA | E10: Buy | F10: 566-572 | G10: 528 | I10: 620-630 | J10: Open | O10: 571.85 | R10: H
A24: CLBS = Closing Basis *** | F24: Reinitiated $
A25: Dividend adjusted <> | F25: Revised stoploss #
A26: Part book {}
A27: Master Trade High Risk
A28: Sr.no | B28: Date | D28: Company | E28: Rec | F28: Rec Price | G28: Stop Loss | H28: Call Closed At | I28: Target | J28: Remark | K28: Profit / Loss per share | L28: Gain / Loss per Lot | M28: Lot | N28: Status | O28: Closed Date
A29: 1 | B29: 2018-11-01 | D29: NIFTY NOV FUT | E29: Sell | F29: 10435 | G29: 10620 | H29: 10355 | I29: 10250 | J29: Profit of Rs 53/- | K29: =F29-H29 -> 80 | L29: =M29*53 -> 3975 | M29: 75 | N29: Successful | O29: 2018-11-01 | R29: H
D30: NIFTY NOV 10300 CE | E30: Sell | F30: 165 | H30: 192 | K30: =F30-H30 -> -27
A31: 2 | B31: 2018-11-01 | D31: WIPRO NOV FUT | E31: Sell | F31: 329.50-330.50 | G31: 338 | I31: 315 | J31: Open | R31: H
D32: WIPRO Nov 320 PE | E32: Sell | F32: 6-6.5
A33: 3 | B33: 2018-11-01 | D33: NIFTY NOV FUT | E33: Sell | F33: 10440-10450 | G33: 10620 | I33: 10250 | J33: Open | R33: H
D34: NIFTY NOV 10300 CE | E34: Sell | F34: 150-160 | H34: 192
A38: Master Trade Medium Risk
A39: Sr.no | B39: Date | D39: Company | E39: Rec | F39: Rec Price | G39: Stop Loss | H39: Call Closed At | I39: Target | J39: Remark | K39: Profit/ Loss per lot | L39: Gain / Loss per Lot | M39: Lot | N39: Status | O39: Closed Date
B47: Smart Delivery Trade
A48: Sr.no | B48: Date | D48: Company | E48: Rec | F48: Rec Price | G48: Stop Loss*** | H48: Call Closed At | I48: Target | J48: Remark | K48: Profit / Loss per Share | L48: Gain / Loss % | M48: Status | N48: Closed Date | O48: NSE Closed Price
A64: CLBS = Closing Basis *** | F64: Reinitiated $
A65: Dividend adjusted <> | F65: Revised stoploss #
B68: Momentum Call
A69: Sr.no | B69: Date | D69: Company | E69: Rec | F69: Rec Price | G69: Stop Loss | H69: Call Closed At | I69: Target | J69: Remark | K69: Profit / Loss per Share/Lot | L69: Gain / Loss % | M69: Gain / Loss per Lot | N69: Lot | O69: Status | P69: Closed Date
A70: 1 | B70: 2018-10-30 | D70: AMBUJACEM | E70: Buy | F70: 194.5 | G70: 189.5 | H70: 199.5 | I70: 202-205 | J70: Profit of Rs.5/- | K70: =H70-F70 -> 5 | L70: =K70/F70 -> 2.57% | O70: Successful | P70: 2018-11-01 | R70: H
A71: 2 | B71: 2018-10-31 | D71: EXIDEIND NOV FUT | E71: Sell | F71: 261.5 | G71: 266.6 | H71: 258.25 | I71: 250-247 | J71: Profit of Rs.3.25/- | K71: =F71-H71 -> 3.25 | M71: =N71*K71 -> 6500 | N71: 2000 | O71: Successful | P71: 2018-11-01 | R71: R
A72: 3 | B72: 2018-10-31 | D72: BAJFINANCE NOV FUT | E72: Sell | F72: 2365 | G72: 2411 | H72: 2411 | I72: 2250-2200 | J72: Loss of Rs.46/- | K72: =H72-F72 -> 46 | M72: =N72*K72 -> 11500 | N72: 250 | O72: Unsuccessful | P72: 2018-11-01 | R72: R
A73: 4 | B73: 2018-11-01 | D73: EXIDEIND NOV FUT | E73: Buy | F73: 255-256 | G73: 249.8 | I73: 262-264
A90: CLBS = Closing Basis ***
A91: Dividend adjusted <> | F91: Reinitiated $
F92: Revised stoploss #
B93: Quick Pick Intraday
A94: Sr.no | B94: Date | D94: Company | E94: Rec | F94: Rec Price | G94: Stop Loss*** | H94: Call Closed At | I94: Target | J94: Remark | K94: Profit / Loss per Share | L94: Status | M94: Closed Date
A108: Techno -Funda (positional)
A109: Sr.no | B109: Date | D109: Company | E109: Rec | F109: Rec Price | G109: Stop Loss*** | H109: Call Closed At | I109: Target | J109: Remark | K109: Profit / Loss per Share | L109: Gain / Loss % | M109: Status | N109: Closed Date | O109: NSE Closed Price
A112: CLBS = Closing Basis *** | F112: Reinitiated $
A113: Dividend adjusted <> | F113: Revised stoploss #
B118: Investment Idea
A119: Sr.no | B119: Date | D119: Company | E119: Rec | F119: Rec Price | G119: Point of Review | H119: Close Rate | I119: Target | J119: Remark | K119: Profit / Loss per Share | L119: Gain / Loss % | M119: Status | N119: Closed Date
A120: 1 | B120: 2013-11-01 | D120: L&T Finance Holding | E120: Accu | F120: 82.00 | G120: - | H120: 100 | I120: 100.00 | J120: Target Achieved | K120: =H120-F120 -> 18.00 | L120: =K120/F120 -> 21.95% | M120: Successful | N120: 2016-10-14
A121: 2 | B121: 2014-06-04 | D121: Finolex Inds | E121: Buy | F121: 257.00 | G121: - | H121: 300 | I121: 300.00 | J121: Target Achieved | K121: =H121-F121 -> 43.00 | L121: 16.73% | M121: Successful | N121: 2014-07-02
A122: =1+A121 -> 3 | B122: 2014-07-08 | D122: JK Cement | E122: Buy | F122: 393.00 | G122: - | H122: 468 | I122: 468.00 | J122: Target Achieved | K122: =H122-F122 -> 75.00 | L122: 19.08% | M122: Successful | N122: 2014-08-12
A123: 4 | B123: 2014-08-06 | D123: Finolex Cables | E123: Buy | F123: 205.00 | G123: - | H123: 275 | I123: 250.00 | J123: Target Achieved | K123: 70.00 | L123: 34.15% | M123: Successful | N123: 2014-11-19
A124: 5 | B124: 2014-09-04 | D124: Exide Inds | E124: Buy | F124: 162.00 | G124: - | H124: 190 | I124: 190.00 | J124: Target Achieved | K124: 28.00 | L124: 17.28% | M124: Successful | N124: 2015-01-02
A125: 6 | B125: 2014-09-04 | D125: Deepak Nitrite | E125: Buy | F125: 75.00 | G125: - | H125: 91.5 | I125: 95-100 | J125: Profit of Rs.16.50/- | K125: 16.50 | L125: 22.00% | M125: Successful | N125: 2014-11-11
A126: 7 | B126: 2014-10-01 | D126: Mercks | E126: Buy | F126: 850.00 | G126: - | H126: 982.5 | I126: 1050.00 | J126: Profit of Rs.132.50/- | K126: 132.50 | L126: 15.59% | M126: Successful | N126: 2015-02-04
A127: 8 | B127: 2014-10-01 | D127: Grindwell Norton | E127: Buy | F127: 475.00 | G127: - | H127: 515 | I127: 600.00 | J127: Profit of Rs.40/- | K127: 40.00 | L127: 8.42% | M127: Successful | N127: 2014-10-27
A128: 9 | B128: 2014-10-01 | D128: Snowman Logistics | E128: Buy | F128: 86.00 | G128: - | H128: 99 | I128: 140.00 | J128: Profit of Rs.13.00/- | K128: 13.00 | L128: 15.12% | M128: Successful | N128: 2014-10-27
A129: 10 | B129: 2014-10-14 | D129: Birla Corp | E129: Buy | F129: 496.60 | G129: - | H129: 621 | I129: 580.00 | J129: Target Achieved | K129: 124.40 | L129: 25.05% | M129: Successful | N129: 2016-08-23
A130: 11 | B130: 2014-10-14 | D130: Ultratech Cem | E130: Buy | F130: 2481.90 | G130: - | H130: 2840 | I130: 2870.00 | J130: Profit of Rs.358.10/- | K130: 358.10 | L130: 14.43% | M130: Successful | N130: 2015-01-13
A131: =1+A128 -> 10 | B131: 2014-10-16 | D131: Sintex Inds | E131: Buy | F131: 84.50 | G131: - | H131: 93 | I131: 110.00 | J131: Profit of Rs.8.50/- | K131: 8.50 | L131: 10.06% | M131: Successful | N131: 2014-10-27
A132: =1+A131 -> 11 | B132: 2014-10-16 | D132: HSIL | E132: Buy | F132: 401.00 | G132: - | H132: 428 | I132: 450.00 | J132: Profit of Rs.27.00/- | K132: 27.00 | L132: 6.73% | M132: Successful | N132: 2015-01-16
A133: 12 | B133: 2014-10-16 | D133: Eveready Inds | E133: Buy | F133: 101.00 | G133: - | H133: 112 | I133: 120.00 | J133: Profit of Rs.11.00/- | K133: 11.00 | L133: 10.89% | M133: Successful | N133: 2014-10-27
A134: 13 | B134: 2014-11-11 | D134: Pennar Inds | E134: Buy | F134: 59.00 | G134: - | H134: 76 | I134: 76.00 | J134: Target Achieved | K134: 17.00 | L134: 28.81% | M134: Successful | N134: 2017-10-24
A135: 14 | B135: 2014-11-11 | D135: Snowman Logistics | E135: Buy | F135: 99.00 | G135: - | H135: 120 | I135: 120.00 | J135: Profit of Rs.21/- | K135: 21.00 | L135: 21.21% | M135: Successful | N135: 2014-11-17
A136: 15 | B136: 2014-11-13 | D136: Dharamsi Morarji Chem | E136: Buy | F136: 22.00 | G136: - | H136: 33.55 | I136: 32.00 | J136: Profit of Rs 11.55/- | K136: 11.55 | L136: 52.50% | M136: Successful | N136: 2015-07-03
A137: 16 | B137: 2014-12-03 | D137: Tatachem | E137: Buy | F137: 440.00 | G137: - | H137: 520 | I137: 520.00 | J137: Profit of Rs 80.00/- | K137: 80.00 | L137: 18.18% | M137: Successful | N137: 2015-07-23
A138: 17 | B138: 2014-12-03 | D138: Advanta | E138: Buy | F138: 360.00 | G138: - | H138: 427 | I138: 425.00 | J138: Profit of Rs.67.00/- | K138: 67.00 | L138: 18.61% | M138: Successful | N138: 2015-02-23
A139: 18 | B139: 2015-01-08 | D139: GDL | E139: Buy | F139: 360.00 | G139: - | H139: 455 | I139: 420.00 | J139: Profit of Rs.95.00/- | K139: 95.00 | L139: 26.39% | M139: Successful | N139: 2015-01-20
A140: 19 | B140: 2015-01-08 | D140: NRB Bearing | E140: Buy | F140: 130.00 | H140: 175.5 | I140: 165.00 | J140: Profit of Rs 45.50/- | K140: 45.50 | L140: 35.00% | M140: Successful | N140: 2017-12-19
A141: 20 | B141: 2015-02-05 | D141: GSFC | E141: Accu | F141: 98.00 | H141: 120 | I141: 120.00 | J141: Target Achieved | K141: 22.00 | L141: 22.45% | M141: Successful | N141: 2017-01-18
A142: 21 | B142: 2015-02-05 | D142: Sundrmfast | E142: Accu | F142: 196.00 | H142: 262 | I142: 255.00 | J142: Target Achieved | K142: 66.00 | L142: 33.67% | M142: Successful | N142: 2016-08-17
A143: 22 | B143: 2015-03-04 | D143: GPPL | E143: Accu | F143: 230-240 | I143: 280-285 | J143: Open
A144: 23 | B144: 2015-03-04 | D144: ORIENTCEM | E144: Accu | F144: 185.00 | H144: 224 | I144: 220-225 | J144: Target Achieved | K144: 39.00 | L144: =K144/F144 -> 21.08% | M144: Successful | N144: 2016-10-04
A145: 24 | B145: 2015-03-27 | D145: PFS | E145: Accu | F145: 49-50 | I145: 67.00 | J145: Open
A146: 25 | B146: 2015-03-30 | D146: Walchandnagar Ind Ltd | E146: Accu | F146: 183.50 | H146: 219 | I146: 218.00 | J146: Profit of Rs.35.50/- | K146: 35.50 | L146: =K146/F146 -> 19.35% | M146: Successful | N146: 2015-04-09
A147: 26 | B147: 2015-04-20 | D147: Kalpataru Power Transmission Ltd | E147: Accu | F147: =(227+237)/2 -> 232.00 | H147: 298 | I147: 298.00 | J147: Target Achieved | K147: 66.00 | L147: 28.45% | M147: Successful | N147: 2017-03-29
A148: 27 | B148: 2015-05-04 | D148: Mastek Ltd | E148: Buy | F148: 385.00 | H148: =212.5+331 -> 543.5 | I148: 510.00 | J148: Profit of Rs 158.50/- | K148: 158.50 | L148: 41.17% | M148: Successful | N148: 2015-08-19
A149: 28 | B149: 2015-05-04 | D149: Suprajit Eng | E149: Buy | F149: 115.50 | H149: 146 | I149: 142.00 | J149: Profit of Rs 30.50/- | K149: 30.50 | L149: 26.41% | M149: Successful | N149: 2015-07-17
A150: 29 | B150: 2015-05-27 | D150: TCI | E150: Buy | F150: 237.50 | H150: 279.5 | I150: 278.00 | J150: Target Achieved | K150: 42.00 | L150: 17.68% | M150: Successful | N150: 2015-08-06
A151: 30 | B151: 2015-06-19 | D151: HSIL | E151: Accu | F151: 340.00 | H151: 448 | I151: 448.00 | J151: Target Achieved | K151: 108.00 | L151: 31.76% | M151: Successful | N151: 2017-10-10
A152: 31 | B152: 2015-07-06 | D152: Capital First | E152: Accu | F152: 390.00 | H152: 460 | I152: 460.00 | J152: Target Achieved | K152: 70.00 | L152: 17.95% | M152: Successful | N152: 2016-04-18
A153: 32 | B153: 2015-07-10 | D153: Dolphin OffShore | E153: Accu | F153: 122.5 | H153: 61.00 | I153: 172.00 | J153: Loss of Rs.61.50/- | K153: -61.50 | L153: -50.20% | M153: Unsuccessful | N153: 2018-08-21
A154: 33 | B154: 2015-08-03 | D154: Allcargo logistics | E154: Accu | F154: 297.50 | H154: 350 | I154: 360.00 | J154: Profit of Rs 52.50/- | K154: 52.50 | L154: =K154/F154 -> 17.65% | M154: Successful | N154: 2015-08-16
A155: 34 | B155: 2015-08-03 | D155: Camline Fine | E155: Accu | F155: 115.50 | H155: 149 | I155: 140.00 | J155: Profit of Rs 33.50/- | K155: 33.50 | L155: 29.00% | M155: Successful | N155: 2017-01-05
A156: 35 | B156: 2015-09-04 | D156: TCI | E156: Accu | F156: 226.00 | H156: 292 | I156: 292.00 | J156: Target Achieved | K156: 66.00 | L156: 29.20% | M156: Successful | N156: 2015-10-09
A157: 36 | B157: 2015-09-07 | D157: Kalpataru Power Transmission Ltd | E157: Accu | F157: 232.50 | H157: 312.5 | I157: 310.00 | J157: Target Achieved | K157: 80.00 | L157: 34.41% | M157: Successful | N157: 2017-03-29
A158: 37 | B158: 2015-09-21 | D158: LLOYD ELECTRIC & ENG LTD | E158: Accu | F158: 196.50 | H158: 238 | I158: 238.00 | J158: Target Achieved | K158: 41.50 | L158: 21.12% | M158: Successful | N158: 2015-10-14
A159: 38 | B159: 2015-09-24 | D159: L&T Finance Holding | E159: Accu | F159: 65.00 | H159: 82 | I159: 82.00 | J159: Target Achieved | K159: 17.00 | L159: 26.15% | M159: Successful | N159: 2016-07-27
A160: 39 | B160: 2015-10-14 | D160: KEC International ltd | E160: Accu | F160: 144.00 | H160: 182.5 | I160: 181.00 | J160: Target Achieved | K160: 38.50 | L160: 26.74% | M160: Successful | N160: 2017-03-23
A161: 40 | B161: 2015-10-14 | D161: Gruh Finance | E161: Accu | F161: 264.00 | H161: 311 | I161: 311.00 | J161: Target Achieved | K161: 47.00 | L161: 17.80% | M161: Successful | N161: 2016-08-22
A162: 41 | B162: 2015-11-10 | D162: Pidilitind | E162: Buy | F162: 549.50 | H162: 630 | I162: 630.00 | J162: Target Achieved | K162: 80.50 | L162: 14.65% | M162: Successful | N162: 2016-02-19
A163: 42 | B163: 2015-12-04 | D163: Zensar Technology | E163: Accu | F163: 1027.50 | H163: 1315 | I163: 1250.00 | J163: Target Achieved | K163: =H163-F163 -> 287.50 | L163: 27.98% | M163: Successful | N163: 2018-05-24
A164: 43 | B164: 2015-12-29 | D164: Vinati Organics Ltd | E164: Accu | F164: 465.00 | H164: 540 | I164: 540.00 | J164: Target Achieved | K164: 75.00 | L164: =K164/F164 -> 16.13% | M164: Successful | N164: 2016-06-09
A165: 44 | B165: 2016-01-11 | D165: GSFC | E165: Buy | F165: 81.00 | H165: 110 | I165: 110.00 | J165: Target Achieved | K165: 29.00 | L165: 35.80% | M165: Successful | N165: 2017-01-10
A166: 45 | B166: 2016-01-13 | D166: SSWL | E166: Buy | F166: 417.50 | H166: 547 | I166: 535.00 | J166: Target Achieved | K166: 129.50 | L166: 31.02% | M166: Successful | N166: 2016-07-27
A167: 46 | B167: 2016-02-08 | D167: Persistent System Ltd | E167: Accu | F167: 650.00 | H167: 800 | I167: 800.00 | J167: Target Achieved | K167: 150.00 | L167: 23.08% | M167: Successful | N167: 2018-02-23
A168: 47 | B168: 2016-03-04 | D168: UPL | E168: Accu | F168: 437.50 | H168: 504.5 | I168: 522.00 | J168: Profit of Rs.67/- | K168: 67.00 | L168: 15.31% | M168: Successful | N168: 2016-04-20
A169: 48 | B169: 2016-03-09 | D169: Ashoka Buildcon Ltd | E169: Accu | F169: 189.50 | H169: 218 | I169: 218.00 | J169: Target Achieved | K169: 28.50 | L169: 15.04% | M169: Successful | N169: 2017-10-26
A170: 49 | B170: 2016-04-11 | D170: PTC INDIA FIN SERV LTD | E170: Accu | F170: 36-37 | I170: 60.00 | J170: Open
A171: 50 | B171: 2016-04-12 | D171: CAMLINFINE $ | E171: Accu | F171: 93.00 | H171: 149 | I171: 140.00 | J171: Profit of Rs 56/- | K171: 56.00 | L171: =K171/F171 -> 60.22% | M171: Successful | N171: 2017-01-05
A172: 51 | B172: 2016-04-12 | D172: Greaves Cotton Ltd. | E172: Accu | F172: 130.00 | H172: 150 | I172: 150-155 | J172: Target Achieved | K172: 20.00 | L172: 15.38% | M172: Successful | N172: 2016-07-13
A173: 52 | B173: 2016-04-13 | D173: DHFL | E173: Accu | F173: 196.00 | H173: 299 | I173: 299.00 | J173: Target Achieved | K173: 103.00 | L173: 52.55% | M173: Successful | N173: 2016-09-07
A174: 53 | B174: 2016-04-13 | D174: Magma | E174: Accu | F174: 88.00 | H174: 103 | I174: 103.00 | J174: Target Achieved | K174: 15.00 | L174: 17.05% | M174: Successful | N174: 2016-06-09
A175: 54 | B175: 2016-05-02 | D175: KEC International ltd $ | E175: Accu | F175: 127.50 | H175: 148 | I175: 148-150 | J175: Target Achieved | K175: 20.50 | L175: 16.08% | M175: Successful | N175: 2016-07-13
A176: 55 | B176: 2016-05-03 | D176: Mindtree | E176: Accu | F176: 675.00 | H176: 815 | I176: 790-800 | J176: Target Achieved | K176: 140.00 | L176: 20.74% | M176: Successful | N176: 2018-02-23
A177: 56 | B177: 2016-06-01 | D177: Atulauto | E177: Accu | F177: 495-505 | I177: 565-570 | J177: Open
A178: 57 | B178: 2016-06-06 | D178: TRITURBINE | E178: Accu | F178: 110.00 | H178: 126.5 | I178: 125.00 | J178: Profit of Rs.16.50/- | K178: 16.50 | L178: =K178/F178 -> 15.00% | M178: Successful | N178: 2016-07-01
A179: 58 | B179: 2016-06-17 | D179: Pennar Industries Ltd | E179: Accu | F179: 44.00 | H179: 69.5 | I179: 69.50 | J179: Profit of Rs.25.50/- | K179: 25.50 | L179: =K179/F179 -> 57.95% | M179: Successful | N179: 2017-08-30
A180: 59 | B180: 2016-06-28 | D180: EVEREADY INDS. IND. LTD. | E180: Accu | F180: 262.50 | H180: 340 | I180: 333.00 | J180: Profit of Rs.77.50/- | K180: 77.50 | L180: =K180/F180 -> 29.52% | M180: Successful | N180: 2017-10-09
A181: 60 | B181: 2016-06-28 | D181: FIEM INDUSTRIES LIMITED | E181: Accu | F181: 840.00 | H181: 1230 | I181: 1230.00 | J181: Target Achieved | K181: 390.00 | L181: =K181/F181 -> 46.43% | M181: Successful | N181: 2016-10-06
A182: 61 | B182: 2016-07-05 | D182: Bajaj Corp Ltd | E182: Accu | F182: 395 | H182: 468.50 | I182: 510.00 | J182: Part profit of Rs.73.50/- | K182: 73.50 | L182: =K182/F182 -> 19% | M182: Successful | N182: 2017-08-30
A183: 62 | B183: 2016-08-02 | D183: GPPL $ | E183: Buy | F183: 167-172 | I183: 198-200 | J183: Open
A184: 63 | B184: 2016-08-04 | D184: WONDERLA HOLIDAYS LTD | E184: Accu | F184: 395-405 | I184: 475.00 | J184: Open
A185: 64 | B185: 2016-08-11 | D185: CAMLINFINE | E185: Accu | F185: 86.50 | H185: 130 | I185: 130.00 | J185: Profit of Rs.43.50/- | K185: =H185-F185 -> 43.50 | L185: =K185/F185 -> 50.29% | M185: Successful | N185: 2017-12-22
A186: 65 | B186: 2016-08-18 | D186: GRANULES | E186: Accu | F186: 133.5 | H186: 126.50 | I186: 178.00 | J186: Exit | K186: -7.00 | L186: -5.24% | M186: Unsuccessful | N186: 2016-09-02
A187: 66 | B187: 2016-08-31 | D187: VA TECH WABAG | E187: Accu | F187: 560.00 | H187: 725 | I187: 725.00 | J187: Target Achieved | K187: 165.00 | L187: 29.46% | M187: Successful | N187: 2016-03-27
A188: 67 | B188: 2016-09-01 | D188: SKIPPER LIMITED | E188: Accu | F188: 160.50 | H188: 210 | I188: 210.00 | J188: Target Achieved | K188: 49.50 | L188: 30.84% | M188: Successful | N188: 2017-05-16
A189: 68 | B189: 2016-10-03 | D189: IFB Industries | E189: Accu | F189: 430.00 | H189: 596 | I189: 575.00 | J189: Profit of Rs.166/- | K189: 166.00 | L189: 38.60% | M189: Successful | N189: 2017-02-03
A190: 69 | B190: 2016-10-14 | D190: ASIANTILES | E190: Accu | F190: 280.00 | H190: 345 | I190: 345.00 | J190: Target Achieved | K190: 65.00 | L190: 23.21% | M190: Successful | N190: 2017-03-20
A191: 70 | B191: 2016-10-14 | D191: DEEPIND | E191: Accu | F191: 245.00 | H191: 325.5 | I191: 330.00 | J191: Profit of Rs.80.5/- | K191: 80.50 | L191: 32.86% | M191: Successful | N191: 2017-02-03
A192: 71 | B192: 2016-10-17 | D192: DCBBANK | E192: Accu | F192: 125.00 | H192: 160 | I192: 160.00 | J192: Target Achieved | K192: 35.00 | L192: 28.00% | M192: Successful | N192: 2017-03-09
A193: 72 | B193: 2016-10-17 | D193: ORIENTREF | E193: Accu | F193: 114.00 | H193: 145 | I193: 145.00 | J193: Target Achieved | K193: 31.00 | L193: =K193/F193 -> 27.19% | M193: Successful | N193: 2017-05-04
A194: 73 | B194: 2016-10-17 | D194: GANECOS | E194: Accu | F194: 212.00 | H194: 280 | I194: 276.00 | J194: Profit of Rs.68/- | K194: 68.00 | L194: =K194/F194 -> 32.08% | M194: Successful | N194: 2017-05-03
A195: 74 | B195: 2016-11-04 | D195: NBCC | E195: Accu | F195: 155.00 | H195: 210 | I195: 210.00 | J195: Profit of Rs.55/- | K195: 55.00 | L195: =K195/F195 -> 35.48% | M195: Successful | N195: 2017-07-28
A196: 75 | B196: 2016-12-06 | D196: PRECAM | E196: Accu | F196: 150.5 | H196: 72.50 | I196: 174.00 | J196: Loss of Rs.78/- | K196: -78.00 | L196: =K196/F196 -> -51.83% | M196: Unsuccessful | N196: 2018-08-21
A197: 76 | B197: 2016-12-08 | D197: INFRATEL | E197: Accu | F197: 380.00 | H197: 478 | I197: 468.00 | J197: Target Achieved | K197: 98.00 | L197: =K197/F197 -> 25.79% | M197: Successful | N197: 2017-10-17
A198: 77 | B198: 2016-12-30 | D198: GODREJPROP | E198: Accu | F198: 305.00 | H198: 375 | I198: 375.00 | J198: Target Achieved | K198: 70.00 | L198: 22.95% | M198: Successful | N198: 2017-02-02
A199: 78 | B199: 2017-01-04 | D199: DEEPAKNTR | E199: Accu | F199: 99.50 | H199: 158 | I199: 158.00 | J199: Target Achieved | K199: 58.50 | L199: 58.79% | M199: Successful | N199: 2017-06-12
A200: 79 | B200: 2017-02-20 | D200: SUBROS | E200: Accu | F200: 202.50 | H200: 234 | I200: 234.00 | J200: Target Achieved | K200: 31.50 | L200: 15.56% | M200: Successful | N200: 2017-04-11
A201: 80 | B201: 2017-02-20 | D201: RECLTD | E201: Accu | F201: 140.50 | H201: 220 | I201: 220.00 | J201: Target Achieved | K201: 79.50 | L201: 56.58% | M201: Successful | N201: 2017-05-09
A202: 81 | B202: 2017-03-24 | D202: VRLLOG | E202: Accu | F202: 300.50 | H202: 417.5 | I202: 420.00 | J202: Profit of Rs.117/- | K202: 117.00 | L202: 38.94% | M202: Successful | N202: 2017-12-01
A203: 82 | B203: 2017-03-24 | D203: FIEMIND | E203: Accu | F203: 850.00 | H203: 1042.5 | I203: 1023.00 | J203: Profit of Rs 192.50/- | K203: 192.50 | L203: 22.65% | M203: Successful | N203: 2017-04-05
A204: 83 | B204: 2017-04-05 | D204: RATNAMANI | E204: Accu | F204: 785.00 | H204: 930 | I204: 920.00 | J204: Profit of Rs.145/- | K204: 145.00 | L204: 18.47% | M204: Successful | N204: 2017-08-29
A205: 84 | B205: 2017-04-06 | D205: ZEEMEDIA | E205: Accu | F205: 39-41 | I205: 60.00 | J205: Open
A206: 85 | B206: 2017-04-12 | D206: DABUR | E206: Accu | F206: 289.50 | H206: 354 | I206: 360.00 | J206: Profit of Rs.64.5/- | K206: 64.50 | L206: =K206/F206 -> 22.28% | M206: Successful | N206: 2017-11-01
A207: 86 | B207: 2017-04-20 | D207: KPRMILL | E207: Accu | F207: 700.00 | H207: 840 | I207: 840.00 | J207: Profit of Rs.140/- | K207: 140.00 | L207: =K207/F207 -> 20.00% | M207: Successful | N207: 2017-06-07
A208: 87 | B208: 2017-05-22 | D208: GREAVESCOT | E208: Accu | F208: 153-158 | I208: 190.00 | J208: Open
A209: 88 | B209: 2017-06-01 | D209: ESSELPACK | E209: Accu | F209: 260 | H209: 311.00 | I209: 340.00 | J209: Part profit of Rs.51/- | K209: =H209-F209 -> 51.00 | L209: =K209/F209 -> 20% | M209: Successful | N209: 2017-11-17
A210: 89 | B210: 2017-06-15 | D210: KEI | E210: Accu | F210: 214.50 | H210: 262 | I210: 262.00 | J210: Profit of Rs.47.5/- | K210: =H210-F210 -> 47.50 | L210: 22.14% | M210: Successful | N210: 2017-08-30
A211: 90 | B211: 2017-07-17 | D211: MAYURUNIQ | E211: Accu | F211: 370.00 | H211: 447.5 | I211: 450.00 | J211: Target Achieved | K211: 77.50 | L211: 20.95% | M211: Successful | N211: 2017-10-27
A212: 91 | B212: 2017-07-27 | D212: RAMCOCEM | E212: Accu | F212: 657.50 | H212: 825 | I212: 820.00 | J212: Target Achieved | K212: 167.50 | L212: 25.48% | M212: Successful | N212: 2017-12-21
A213: 92 | B213: 2017-08-17 | D213: FINPIPE | E213: Accu | F213: 605.00 | H213: 750 | I213: 750.00 | J213: Profit of Rs.145/- | K213: 145.00 | L213: 23.97% | M213: Successful | N213: 2017-10-19
A214: 93 | B214: 2017-09-01 | D214: SHK | E214: Accu | F214: 255 | H214: 307.50 | I214: 320.00 | J214: Part profit of Rs.52.5/- | K214: 52.50 | L214: 21% | M214: Successful | N214: 2017-12-29
A215: 94 | B215: 2017-09-19 | D215: SKIPPER | E215: Accu | F215: 215.00 | H215: 258 | I215: 258.00 | J215: Target Achieved | K215: 43.00 | L215: 20.00% | M215: Successful | N215: 2017-11-01
A216: 95 | B216: 2017-09-20 | D216: CAMLINFINE | E216: Accu | F216: 75.00 | H216: 90 | I216: 90.00 | J216: Profit of Rs.15.00/- | K216: 15.00 | L216: 20.00% | M216: Successful | N216: 2017-10-11
A217: 96 | B217: 2017-10-03 | D217: GNA | E217: Accu | F217: 315.00 | H217: 392 | I217: 384.00 | J217: Profit of Rs.77/- | K217: 77.00 | L217: 24.44% | M217: Successful | N217: 2017-10-09
A218: 97 | B218: 2017-10-05 | D218: NOCIL | E218: Accu | F218: 145.00 | H218: 179 | I218: 180.00 | J218: Profit of Rs.34/- | K218: 34.00 | L218: 23.45% | M218: Successful | N218: 2017-10-17
A219: 98 | B219: 2017-10-06 | D219: CENTURYPLY | E219: Accu | F219: 256.00 | H219: 323 | I219: 320.00 | J219: Target Achieved | K219: 67.00 | L219: 26.17% | M219: Successful | N219: 2017-11-28
A220: 99 | B220: 2017-10-09 | D220: RECLTD | E220: Accu | F220: 152.5 | H220: 183.50 | I220: 210.00 | J220: Part Profit of Rs.31/- | K220: 31.00 | L220: 20% | M220: Successful | N220: 2017-11-03
A221: 100 | B221: 2017-10-09 | D221: EIHOTEL | E221: Accu | F221: 137.50 | H221: 184 | I221: 183.00 | J221: Profit of Rs.46.5/- | K221: 46.50 | L221: 33.82% | M221: Successful | N221: 2018-01-08
A222: 101 | B222: 2017-10-10 | D222: BOROSIL | E222: Accu | F222: 895.00 | H222: 1122.5 | I222: 1078.00 | J222: Profit of Rs.227.5/- | K222: 227.50 | L222: 25.42% | M222: Successful | N222: 2018-01-17
A223: 102 | B223: 2017-10-10 | D223: NRBBEARING | E223: Accu | F223: 125.50 | H223: 158 | I223: 155.00 | J223: Profit of Rs.32.5/- | K223: 32.50 | L223: 25.90% | M223: Successful | N223: 2017-11-28
A224: 103 | B224: 2017-10-12 | D224: CYIENT | E224: Accu | F224: 525.00 | H224: 629 | I224: 629.00 | J224: Target Achieved | K224: 104.00 | L224: 19.81% | M224: Successful | N224: 2018-01-19
A225: 104 | B225: 2017-11-07 | D225: HATSUN | E225: Accu | F225: 740.00 | H225: 892.5 | I225: 900.00 | J225: Profit of Rs.152.5/- | K225: 152.50 | L225: 20.61% | M225: Successful | N225: 2017-11-13
A226: 105 | B226: 2017-12-04 | D226: SANGHIIND | E226: Accu | F226: 118.50 | H226: 143.5 | I226: 145.00 | J226: Profit of Rs.25/- | K226: 25.00 | L226: 21.10% | M226: Successful | N226: 2017-12-28
A227: 106 | B227: 2017-12-05 | D227: ALLCARGO | E227: Accu | F227: 177.5 | H227: 215.00 | I227: 230.00 | J227: Part Profit of Rs.37.5/- | K227: 37.50 | L227: 21% | M227: Successful | N227: 2017-12-27
A228: 107 | B228: 2017-12-21 | D228: KAJARIACER | E228: Accu | F228: 710-720 | I228: 872.00 | J228: Open
A229: 108 | B229: 2017-12-29 | D229: GNA | E229: Accu | F229: 435.00 | H229: 542.5 | I229: 539.00 | J229: Target Achieved | K229: =H229-F229 -> 107.50 | L229: =K229/F229 -> 24.71% | M229: Successful | N229: 2018-04-16
A230: 109 | B230: 2017-12-29 | D230: ZENSARTECH | E230: Accu | F230: 885.00 | H230: 1090 | I230: 1084.00 | J230: Target Achieved | K230: 205.00 | L230: =K230/F230 -> 23.16% | M230: Successful | N230: 2018-04-23
A231: 110 | B231: 2018-02-07 | D231: GREAVESCOT | E231: Accu | F231: 130-132 | I231: 190.00 | J231: Open
A232: 111 | B232: 2018-02-27 | D232: MOLDTKPAC | E232: Accu | F232: 320-330 | I232: 398.00 | J232: Open
A233: 112 | B233: 2018-03-05 | D233: LICHSGFIN | E233: Accu | F233: 505-515 | I233: 672.00 | J233: Open
A234: 113 | B234: 2018-04-02 | D234: EVERESTIND | E234: Accu | F234: 492.5 | H234: 589.00 | I234: 613.00 | J234: Part Profit of Rs.37.5/- | K234: =H234-F234 -> 96.50 | L234: =K234/F234 -> 20% | M234: Successful | N234: 2018-08-21
A235: 114 | B235: 2018-04-04 | D235: GPPL | E235: Accu | F235: 140-143 | I235: 180.00 | J235: Open
A236: 115 | B236: 2018-04-19 | D236: MANPASAND | E236: Accu | F236: 430 | H236: 220.00 | I236: 537.00 | J236: Loss of Rs.210/- | K236: =H236-F236 -> -210.00 | L236: =K236/F236 -> -48.84% | M236: Unsuccessful | N236: 2018-06-01
A237: 116 | B237: 2018-04-30 | D237: HEIDELBERG | E237: Accu | F237: 154-158 | I237: 196.00 | J237: Open
A238: 117 | B238: 2018-05-17 | D238: PHILIPCARB | E238: Accu | F238: 230-240 | I238: 348.00 | J238: Open
A239: 118 | B239: 2018-06-07 | D239: KEC | E239: Accu | F239: 340-345 | I239: 439.00 | J239: Open
A240: 119 | B240: 2018-07-04 | D240: ASHOKLEY | E240: Accu | F240: 125-130 | I240: 170.00 | J240: Open
A241: 120 | B241: 2018-07-13 | D241: FCONSUMER | E241: Accu | F241: 46-47 | I241: 59.00 | J241: Open
A242: 121 | B242: 2018-07-25 | D242: ZEEMEDIA | E242: Accu | F242: 27-28 | I242: 44.00 | J242: Open
A243: 122 | B243: 2018-08-06 | D243: GABRIEL | E243: Accu | F243: 148-152 | I243: 182.00 | J243: Open
A244: 123 | B244: 2018-08-23 | D244: INDIANHUME | E244: Accu | F244: 280-290 | I244: 364.00 | J244: Open
A245: 124 | B245: 2018-08-29 | D245: GRINDWELL | E245: Accu | F245: 520-530 | I245: 635.00 | J245: Open
A246: 125 | B246: 2018-10-22 | D246: FINPIPE | E246: Accu | F246: 475.00 | H246: 574 | I246: 570.00 | J246: Target Achieved | K246: =H246-F246 -> 99.00 | L246: =K246/F246 -> 20.84% | M246: Successful | N246: 2018-10-30
A247: 126 | B247: 2018-10-23 | D247: JKPAPER | E247: Accu | F247: 158-162 | I247: 191.00 | J247: Open
A248: 127 | B248: 2018-10-24 | D248: GULFOILLUB | E248: Accu | F248: 700-715 | I248: 872.00 | J248: Open
A249: 128 | B249: 2018-10-25 | D249: GODREJCP | E249: Accu | F249: 700-715 | I249: 890.00 | J249: Open
A250: 129 | B250: 2018-10-25 | D250: DBCORP | E250: Accu | F250: 161-167 | I250: 209.00 | J250: Open
A251: 130 | B251: 2018-10-26 | D251: RITES | E251: Accu | F251: 237-243 | I251: 297.00 | J251: Open
F254: Reinitiated $
A256: Disclaimer:
A257: This document has been prepared by the Retail Research Desk of Asit C Mehta
A258: Investment Intermediates Ltd. and is meant for use of the recipient only
A259: and is not for circulation. This document is not to be reported or
A260: copied or made available to others. It should not be considered to be
A261: taken as an offer to sell or a solicitation to buy any security. The
A262: information contained herein is from sources believed reliable. We do
A263: not represent that it is accurate or complete and it should not be
A264: relied upon as such. We may from time to time have positions in and buy
A265: and sell securities referred to herein

Sheet Sheet2 (hidden)
A1: SYMBOL | B1: SERIES | C1: OPEN | D1: HIGH | E1: LOW | F1: CLOSE | G1: LAST | H1: PREVCLOSE | I1: TOTTRDQTY | J1: TOTTRDVAL | K1: TIMESTAMP | L1: TOTALTRADES | M1: ISIN | N1: ISIN
A2: 20MICRONS | B2: EQ | C2: 40 | D2: 42 | E2: 40 | F2: 41.45 | G2: 41.65 | H2: 40.6 | I2: 38261 | J2: 1590680.95 | K2: 2018-10-30 | L2: 469 | M2: INE144J01027
A3: 21STCENMGM | B3: EQ | C3: 23.15 | D3: 23.15 | E3: 23.15 | F3: 23.15 | G3: 23.15 | H3: 23.6 | I3: 367 | J3: 8496.05 | K3: 2018-10-30 | L3: 9 | M3: INE253B01015
A4: 3IINFOTECH | B4: EQ | C4: 3.15 | D4: 3.55 | E4: 3.1 | F4: 3.4 | G4: 3.4 | H4: 3.1 | I4: 5086512 | J4: 17066358.4 | K4: 2018-10-30 | L4: 1658 | M4: INE748C01020
A5: 3MINDIA | B5: EQ | C5: 19895.6 | D5: 20453.45 | E5: 19802.75 | F5: 20271.75 | G5: 20401 | H5: 19772.05 | I5: 1894 | J5: 38233807.95 | K5: 2018-10-30 | L5: 807 | M5: INE470A01017
A6: 3PLAND | B6: BE | C6: 11.45 | D6: 11.5 | E6: 11.45 | F6: 11.5 | G6: 11.5 | H6: 11.5 | I6: 1686 | J6: 19339 | K6: 2018-10-30 | L6: 5 | M6: INE105C01023
A7: 5PAISA | B7: EQ | C7: 186.8 | D7: 186.8 | E7: 175.1 | F7: 177.4 | G7: 175.1 | H7: 179.9 | I7: 4522 | J7: 813901.15 | K7: 2018-10-30 | L7: 375 | M7: INE618L01018
A8: 63MOONS | B8: EQ | C8: 75.6 | D8: 77 | E8: 74.8 | F8: 75.3 | G8: 75.5 | H8: 75.85 | I8: 115437 | J8: 8769862.95 | K8: 2018-10-30 | L8: 1780 | M8: INE111B01023
A9: 8KMILES | B9: EQ | C9: 75.85 | D9: 75.85 | E9: 75.85 | F9: 75.85 | G9: 75.85 | H9: 79.8 | I9: 258606 | J9: 19615265.1 | K9: 2018-10-30 | L9: 479 | M9: INE650K01021
A10: A2ZINFRA | B10: EQ | C10: 11.9 | D10: 11.9 | E10: 11.3 | F10: 11.65 | G10: 11.7 | H10: 11.35 | I10: 377563 | J10: 4420493.1 | K10: 2018-10-30 | L10: 768 | M10: INE619I01012
A11: AARTIDRUGS | B11: EQ | C11: 584 | D11: 592.4 | E11: 559.7 | F11: 572.8 | G11: 575 | H11: 581.2 | I11: 24081 | J11: 13922329.25 | K11: 2018-10-30 | L11: 1976 | M11: INE767A01016
A12: AARTIIND | B12: EQ | C12: 1260 | D12: 1275 | E12: 1250 | F12: 1260.2 | G12: 1270.1 | H12: 1254.55 | I12: 62352 | J12: 78542962.1 | K12: 2018-10-30 | L12: 2058 | M12: INE769A01020
A13: AARVEEDEN | B13: EQ | C13: 24.55 | D13: 24.55 | E13: 23.5 | F13: 23.65 | G13: 23.85 | H13: 24.05 | I13: 3873 | J13: 91705.35 | K13: 2018-10-30 | L13: 69 | M13: INE273D01019
A14: AAVAS | B14: EQ | C14: 630 | D14: 648 | E14: 627.95 | F14: 645.5 | G14: 645 | H14: 635.4 | I14: 30058 | J14: 19231172 | K14: 2018-10-30 | L14: 1631 | M14: INE216P01012
A15: ABAN | B15: EQ | C15: 73.25 | D15: 75.35 | E15: 72.5 | F15: 73.75 | G15: 73.7 | H15: 73.25 | I15: 379551 | J15: 28047125.85 | K15: 2018-10-30 | L15: 4822 | M15: INE421A01028
A16: ABB | B16: EQ | C16: 1239.1 | D16: 1265 | E16: 1190 | F16: 1208.2 | G16: 1215 | H16: 1230.75 | I16: 370386 | J16: 454382001.5 | K16: 2018-10-30 | L16: 31622 | M16: INE117A01022
A17: ABBOTINDIA | B17: EQ | C17: 7141.35 | D17: 7226.3 | E17: 7010.6 | F17: 7141.7 | G17: 7116 | H17: 7110.05 | I17: 1857 | J17: 13257923.2 | K17: 2018-10-30 | L17: 687 | M17: INE358A01014
A18: ABCAPITAL | B18: EQ | C18: 100.7 | D18: 104 | E18: 100.1 | F18: 100.85 | G18: 100.8 | H18: 101.15 | I18: 1288058 | J18: 131361472.7 | K18: 2018-10-30 | L18: 14259 | M18: INE674K01013
A19: ABFRL | B19: EQ | C19: 178.2 | D19: 184.4 | E19: 178.2 | F19: 180.25 | G19: 180.05 | H19: 179.55 | I19: 315475 | J19: 57332255.4 | K19: 2018-10-30 | L19: 6890 | M19: INE647O01011
A20: ACC | B20: EQ | C20: 1356.25 | D20: 1366 | E20: 1336.2 | F20: 1344.9 | G20: 1345 | H20: 1350.4 | I20: 627050 | J20: 849067672.5 | K20: 2018-10-30 | L20: 17489 | M20: INE012A01025
A21: ACCELYA | B21: EQ | C21: 951 | D21: 975 | E21: 950.3 | F21: 969.45 | G21: 964.7 | H21: 953.35 | I21: 12698 | J21: 12266011.35 | K21: 2018-10-30 | L21: 811 | M21: INE793A01012
A22: ACE | B22: EQ | C22: 97.95 | D22: 101.65 | E22: 92 | F22: 95.2 | G22: 95 | H22: 99.35 | I22: 352066 | J22: 34279826.5 | K22: 2018-10-30 | L22: 7757 | M22: INE731H01025
A23: ADANIENT | B23: EQ | C23: 172.5 | D23: 174 | E23: 168.1 | F23: 169.05 | G23: 168.6 | H23: 171.75 | I23: 3885243 | J23: 664047762.8 | K23: 2018-10-30 | L23: 24838 | M23: INE423A01024
A24: ADANIGREEN | B24: EQ | C24: 39.9 | D24: 39.9 | E24: 38.45 | F24: 39.3 | G24: 38.95 | H24: 38 | I24: 3882939 | J24: 154226494.9 | K24: 2018-10-30 | L24: 6292 | M24: INE364U01010
A25: ADANIPORTS | B25: EQ | C25: 324 | D25: 335.4 | E25: 320 | F25: 322.6 | G25: 322.4 | H25: 326.4 | I25: 4301781 | J25: 1406072936 | K25: 2018-10-30 | L25: 62907 | M25: INE742F01042
A26: ADANIPOWER | B26: EQ | C26: 41.95 | D26: 45.6 | E26: 41.6 | F26: 44.75 | G26: 44.8 | H26: 42.3 | I26: 52394875 | J26: 2283084249 | K26: 2018-10-30 | L26: 83379 | M26: INE814H01011
A27: ADANITRANS | B27: EQ | C27: 167.5 | D27: 174 | E27: 162 | F27: 162.6 | G27: 162.5 | H27: 163.4 | I27: 313079 | J27: 52198599.25 | K27: 2018-10-30 | L27: 2973 | M27: INE931S01010
A28: ADFFOODS | B28: EQ | C28: 202.9 | D28: 205 | E28: 199 | F28: 200.1 | G28: 200 | H28: 202.3 | I28: 12078 | J28: 2435348.6 | K28: 2018-10-30 | L28: 403 | M28: INE982B01019
A29: ADHUNIK | B29: EQ | C29: 2.7 | D29: 2.8 | E29: 2.7 | F29: 2.8 | G29: 2.8 | H29: 2.7 | I29: 25627 | J29: 71289.65 | K29: 2018-10-30 | L29: 51 | M29: INE400H01019
A30: ADHUNIKIND | B30: EQ | C30: 46.15 | D30: 46.2 | E30: 40.3 | F30: 42.8 | G30: 42.65 | H30: 45.7 | I30: 28139 | J30: 1187305.6 | K30: 2018-10-30 | L30: 337 | M30: INE452L01012
A31: ADLABS | B31: EQ | C31: 12 | D31: 12.15 | E31: 11.45 | F31: 12.15 | G31: 12.15 | H31: 11.6 | I31: 272743 | J31: 3231226.15 | K31: 2018-10-30 | L31: 811 | M31: INE172N01012
A32: ADORWELD | B32: EQ | C32: 360.15 | D32: 365.65 | E32: 356 | F32: 360.05 | G32: 360 | H32: 360.55 | I32: 10802 | J32: 3904640.7 | K32: 2018-10-30 | L32: 342 | M32: INE045A01017
A33: ADROITINFO | B33: EQ | C33: 19.05 | D33: 20.5 | E33: 19 | F33: 20.5 | G33: 20.5 | H33: 19.8 | I33: 797 | J33: 15145 | K33: 2018-10-30 | L33: 9 | M33: INE737B01033
A34: ADSL | B34: EQ | C34: 13.2 | D34: 14.35 | E34: 12.65 | F34: 13.05 | G34: 13 | H34: 12.8 | I34: 13542 | J34: 178797.7 | K34: 2018-10-30 | L34: 81 | M34: INE102I01027
A35: ADVANIHOTR | B35: EQ | C35: 57 | D35: 59 | E35: 54.2 | F35: 55.15 | G35: 55 | H35: 58.4 | I35: 22537 | J35: 1276946.95 | K35: 2018-10-30 | L35: 256 | M35: INE199C01026
A36: ADVENZYMES | B36: EQ | C36: 179.5 | D36: 182 | E36: 176.55 | F36: 177.4 | G36: 178.9 | H36: 179.6 | I36: 89900 | J36: 16164419.8 | K36: 2018-10-30 | L36: 3519 | M36: INE837H01020
A37: AEGISCHEM | B37: EQ | C37: 230.55 | D37: 230.55 | E37: 224.45 | F37: 226.2 | G37: 225.75 | H37: 228.7 | I37: 116264 | J37: 26376482.2 | K37: 2018-10-30 | L37: 9046 | M37: INE208C01025
A38: AGARIND | B38: EQ | C38: 203.35 | D38: 203.35 | E38: 186.05 | F38: 189.8 | G38: 186.7 | H38: 185.8 | I38: 241 | J38: 45838.3 | K38: 2018-10-30 | L38: 20 | M38: INE204E01012
A39: AGCNET | B39: EQ | C39: 56.5 | D39: 56.5 | E39: 53.5 | F39: 54.75 | G39: 54.5 | H39: 53.5 | I39: 10195 | J39: 558441.2 | K39: 2018-10-30 | L39: 109 | M39: INE676A01019
A40: AGLSL | B40: EQ | C40: 77.2 | D40: 79.5 | E40: 75.5 | F40: 79.1 | G40: 79.5 | H40: 76.2 | I40: 902 | J40: 69370 | K40: 2018-10-30 | L40: 13 | M40: INE517U01013
A41: AGRITECH | B41: EQ | C41: 54.05 | D41: 56.55 | E41: 52 | F41: 53.65 | G41: 53.9 | H41: 55.25 | I41: 12018 | J41: 656689.2 | K41: 2018-10-30 | L41: 385 | M41: INE449G01018
A42: AHLEAST | B42: EQ | C42: 238 | D42: 240 | E42: 234.05 | F42: 240 | G42: 240 | H42: 238.7 | I42: 73 | J42: 17459.9 | K42: 2018-10-30 | L42: 9 | M42: INE926K01017
A43: AHLUCONT | B43: EQ | C43: 264.3 | D43: 284 | E43: 264.3 | F43: 281.9 | G43: 281.3 | H43: 264.2 | I43: 1825 | J43: 509172.75 | K43: 2018-10-30 | L43: 206 | M43: INE758C01029
A44: AIAENG | B44: EQ | C44: 1692.9 | D44: 1774.8 | E44: 1692.85 | F44: 1731.1 | G44: 1740 | H44: 1708.65 | I44: 32163 | J44: 55957696.95 | K44: 2018-10-30 | L44: 5345 | M44: INE212H01026
A45: AIFL | B45: EQ | C45: 88.05 | D45: 88.05 | E45: 88.05 | F45: 88.05 | G45: 88.05 | H45: 92.65 | I45: 610 | J45: 53710.5 | K45: 2018-10-30 | L45: 25 | M45: INE428O01016
A46: AIONJSW | B46: BE | C46: 31.5 | D46: 31.65 | E46: 29.75 | F46: 30.45 | G46: 30.05 | H46: 30.2 | I46: 44513 | J46: 1361431.35 | K46: 2018-10-30 | L46: 191 | M46: INE743C01021
A47: AJANTPHARM | B47: EQ | C47: 1024.7 | D47: 1037.65 | E47: 1005.6 | F47: 1010 | G47: 1012 | H47: 1016.3 | I47: 256601 | J47: 262822192.3 | K47: 2018-10-30 | L47: 10389 | M47: INE031B01049
A48: AJMERA | B48: EQ | C48: 147.95 | D48: 156.7 | E48: 145.45 | F48: 152.55 | G48: 152.5 | H48: 146.65 | I48: 32278 | J48: 4892432.85 | K48: 2018-10-30 | L48: 1057 | M48: INE298G01027
A49: AKSHARCHEM | B49: EQ | C49: 480.45 | D49: 499 | E49: 455.6 | F49: 461.55 | G49: 465.9 | H49: 480.45 | I49: 13281 | J49: 6280114.05 | K49: 2018-10-30 | L49: 865 | M49: INE542B01011
A50: AKSHOPTFBR | B50: EQ | C50: 27.35 | D50: 28.4 | E50: 27.05 | F50: 27.5 | G50: 27.45 | H50: 27.2 | I50: 2146767 | J50: 59685343.75 | K50: 2018-10-30 | L50: 5379 | M50: INE523B01011
A51: AKZOINDIA | B51: EQ | C51: 1539 | D51: 1544 | E51: 1479.5 | F51: 1502.3 | G51: 1527 | H51: 1539.3 | I51: 13226 | J51: 19964463.05 | K51: 2018-10-30 | L51: 1399 | M51: INE133A01011
A52: ALANKIT | B52: EQ | C52: 20.25 | D52: 20.6 | E52: 18.55 | F52: 19.8 | G52: 19.55 | H52: 20.35 | I52: 474540 | J52: 9520882.7 | K52: 2018-10-30 | L52: 856 | M52: INE914E01040
A53: ALBERTDAVD | B53: EQ | C53: 524 | D53: 528.95 | E53: 515 | F53: 519.35 | G53: 521.9 | H53: 510 | I53: 9441 | J53: 4927978.8 | K53: 2018-10-30 | L53: 435 | M53: INE155C01010
A54: ALBK | B54: EQ | C54: 40.5 | D54: 43.45 | E54: 40.15 | F54: 41.75 | G54: 41.75 | H54: 40.65 | I54: 8225585 | J54: 346041555.1 | K54: 2018-10-30 | L54: 19510 | M54: INE428A01015
A55: ALCHEM | B55: BE | C55: 3.55 | D55: 3.7 | E55: 3.4 | F55: 3.6 | G55: 3.55 | H55: 3.55 | I55: 6961 | J55: 24815.45 | K55: 2018-10-30 | L55: 42 | M55: INE964B01033
A56: ALEMBICLTD | B56: EQ | C56: 40.5 | D56: 43.2 | E56: 40.15 | F56: 42.8 | G56: 42.55 | H56: 40.45 | I56: 549078 | J56: 23038596.5 | K56: 2018-10-30 | L56: 3577 | M56: INE426A01027
A57: ALICON | B57: EQ | C57: 604 | D57: 633.8 | E57: 595 | F57: 600.95 | G57: 608 | H57: 599.5 | I57: 841 | J57: 504447.5 | K57: 2018-10-30 | L57: 74 | M57: INE062D01024
A58: ALKALI | B58: EQ | C58: 62.85 | D58: 65.55 | E58: 59 | F58: 60.6 | G58: 59.65 | H58: 61.45 | I58: 60580 | J58: 3817900.75 | K58: 2018-10-30 | L58: 597 | M58: INE773I01017
A59: ALKEM | B59: EQ | C59: 1925 | D59: 1943.3 | E59: 1901 | F59: 1918.6 | G59: 1919.95 | H59: 1924.6 | I59: 27349 | J59: 52446176.4 | K59: 2018-10-30 | L59: 3926 | M59: INE540L01014
A60: ALKYLAMINE | B60: EQ | C60: 586.95 | D60: 600 | E60: 575.3 | F60: 592.3 | G60: 592 | H60: 586.95 | I60: 1697 | J60: 1008182.8 | K60: 2018-10-30 | L60: 82 | M60: INE150B01021
A61: ALLCARGO | B61: EQ | C61: 100.9 | D61: 102.9 | E61: 99.75 | F61: 101.35 | G61: 101.25 | H61: 100.9 | I61: 100141 | J61: 10147022.85 | K61: 2018-10-30 | L61: 1174 | M61: INE418H01029
A62: ALLSEC | B62: EQ | C62: 235.1 | D62: 245 | E62: 229.75 | F62: 242.25 | G62: 244 | H62: 238.05 | I62: 4966 | J62: 1193547.75 | K62: 2018-10-30 | L62: 272 | M62: INE835G01018
A63: ALMONDZ | B63: EQ | C63: 21.1 | D63: 22.15 | E63: 21.1 | F63: 22.05 | G63: 21.55 | H63: 21.1 | I63: 1052 | J63: 23200.05 | K63: 2018-10-30 | L63: 20 | M63: INE326B01027
A64: ALOKTEXT | B64: EQ | C64: 3.25 | D64: 3.25 | E64: 3.05 | F64: 3.05 | G64: 3.1 | H64: 3.2 | I64: 3196532 | J64: 10057383.35 | K64: 2018-10-30 | L64: 1536 | M64: INE270A01011
A65: ALPA | B65: EQ | C65: 25.4 | D65: 26.4 | E65: 25.15 | F65: 26.25 | G65: 26.15 | H65: 25.95 | I65: 33140 | J65: 868371.8 | K65: 2018-10-30 | L65: 98 | M65: INE385I01010
A66: ALPHAGEO | B66: EQ | C66: 482.95 | D66: 490 | E66: 481.2 | F66: 489.5 | G66: 490 | H66: 480.7 | I66: 3814 | J66: 1863695.15 | K66: 2018-10-30 | L66: 203 | M66: INE137C01018
A67: ALPSINDUS | B67: BE | C67: 2.8 | D67: 2.8 | E67: 2.6 | F67: 2.6 | G67: 2.6 | H67: 2.7 | I67: 10906 | J67: 28975.25 | K67: 2018-10-30 | L67: 12 | M67: INE093B01015
A68: AMARAJABAT | B68: EQ | C68: 760.05 | D68: 772.5 | E68: 748.45 | F68: 753.2 | G68: 753 | H68: 764.25 | I68: 275795 | J68: 208879907.6 | K68: 2018-10-30 | L68: 9300 | M68: INE885A01032
A69: AMBER | B69: EQ | C69: 854.85 | D69: 867.05 | E69: 847.25 | F69: 860.45 | G69: 863 | H69: 845.2 | I69: 2298 | J69: 1976144.3 | K69: 2018-10-30 | L69: 315 | M69: INE371P01015
A70: AMBIKCO | B70: EQ | C70: 1138 | D70: 1166 | E70: 1138 | F70: 1148.2 | G70: 1143 | H70: 1137.15 | I70: 1120 | J70: 1286005.65 | K70: 2018-10-30 | L70: 121 | M70: INE540G01014
A71: AMBUJACEM | B71: EQ | C71: 193.1 | D71: 197.1 | E71: 192.05 | F71: 192.45 | G71: 192.35 | H71: 193.1 | I71: 3981871 | J71: 774513959.2 | K71: 2018-10-30 | L71: 34031 | M71: INE079A01024
A72: AMDIND | B72: EQ | C72: 20.45 | D72: 21.3 | E72: 20.1 | F72: 20.8 | G72: 20.35 | H72: 19.4 | I72: 17232 | J72: 359583.05 | K72: 2018-10-30 | L72: 76 | M72: INE005I01014
A73: AMJLAND | B73: EQ | C73: 21.3 | D73: 21.65 | E73: 21.25 | F73: 21.6 | G73: 21.6 | H73: 21.5 | I73: 10501 | J73: 225516.3 | K73: 2018-10-30 | L73: 69 | M73: INE606A01024
A74: AMRUTANJAN | B74: EQ | C74: 246.65 | D74: 293 | E74: 246.65 | F74: 268.25 | G74: 267.2 | H74: 244.45 | I74: 223517 | J74: 62262619.15 | K74: 2018-10-30 | L74: 10028 | M74: INE098F01031
A75: ANANTRAJ | B75: EQ | C75: 35.5 | D75: 35.7 | E75: 34.4 | F75: 34.95 | G75: 35 | H75: 35.3 | I75: 350143 | J75: 12271685.25 | K75: 2018-10-30 | L75: 2427 | M75: INE242C01024
A76: ANDHRABANK | B76: EQ | C76: 26.6 | D76: 28.35 | E76: 26.45 | F76: 27.8 | G76: 27.75 | H76: 26.55 | I76: 3781560 | J76: 104676793.2 | K76: 2018-10-30 | L76: 8640 | M76: INE434A01013
A77: ANDHRACEMT | B77: EQ | C77: 6.1 | D77: 6.35 | E77: 6.1 | F77: 6.25 | G77: 6.2 | H77: 6.05 | I77: 240438 | J77: 1506069.55 | K77: 2018-10-30 | L77: 158 | M77: INE666E01012
A78: ANDHRSUGAR | B78: EQ | C78: 344.65 | D78: 371.8 | E78: 339.05 | F78: 361.95 | G78: 362 | H78: 340.05 | I78: 144472 | J78: 52169043.65 | K78: 2018-10-30 | L78: 4299 | M78: INE715B01013
A79: ANGIND | B79: BE | C79: 1.45 | D79: 1.45 | E79: 1.45 | F79: 1.45 | G79: 1.45 | H79: 1.5 | I79: 3654 | J79: 5298.3 | K79: 2018-10-30 | L79: 19 | M79: INE017D01010
A80: ANIKINDS | B80: EQ | C80: 25.2 | D80: 27.8 | E80: 25.2 | F80: 26.8 | G80: 27 | H80: 26.05 | I80: 1361 | J80: 36019 | K80: 2018-10-30 | L80: 28 | M80: INE087B01017
A81: ANKITMETAL | B81: BE | C81: 0.45 | D81: 0.5 | E81: 0.45 | F81: 0.5 | G81: 0.5 | H81: 0.5 | I81: 5000 | J81: 2260 | K81: 2018-10-30 | L81: 5 | M81: INE106I01010
A82: ANSALAPI | B82: EQ | C82: 10.8 | D82: 11.25 | E82: 10.65 | F82: 10.75 | G82: 10.75 | H82: 10.95 | I82: 72956 | J82: 795222 | K82: 2018-10-30 | L82: 127 | M82: INE436A01026
A83: ANSALHSG | B83: EQ | C83: 10.5 | D83: 10.5 | E83: 10.05 | F83: 10.25 | G83: 10.25 | H83: 10.3 | I83: 4297 | J83: 43967.65 | K83: 2018-10-30 | L83: 70 | M83: INE880B01015
A84: ANTGRAPHIC | B84: BE | C84: 0.5 | D84: 0.55 | E84: 0.5 | F84: 0.55 | G84: 0.55 | H84: 0.55 | I84: 6311 | J84: 3159.35 | K84: 2018-10-30 | L84: 9 | M84: INE414B01021
A85: APARINDS | B85: EQ | C85: 550.45 | D85: 561.45 | E85: 550.45 | F85: 560.8 | G85: 557.1 | H85: 555 | I85: 6963 | J85: 3883566.65 | K85: 2018-10-30 | L85: 330 | M85: INE372A01015
A86: APCL | B86: EQ | C86: 115 | D86: 120.2 | E86: 112 | F86: 118.75 | G86: 119.95 | H86: 118.05 | I86: 1229 | J86: 146245.2 | K86: 2018-10-30 | L86: 108 | M86: INE071F01012
A87: APCOTEXIND | B87: EQ | C87: 520.05 | D87: 542.45 | E87: 520 | F87: 534.15 | G87: 540 | H87: 522.95 | I87: 8371 | J87: 4444667.55 | K87: 2018-10-30 | L87: 448 | M87: INE116A01024
A88: APEX | B88: EQ | C88: 378 | D88: 392.8 | E88: 372 | F88: 388.45 | G88: 387 | H88: 357.1 | I88: 422216 | J88: 163491546.4 | K88: 2018-10-30 | L88: 8856 | M88: INE346W01013
A89: APLAPOLLO | B89: EQ | C89: 1219.05 | D89: 1224.9 | E89: 1198 | F89: 1208.8 | G89: 1210 | H89: 1216.95 | I89: 27775 | J89: 33546039.85 | K89: 2018-10-30 | L89: 2220 | M89: INE702C01019
A90: APLLTD | B90: EQ | C90: 580 | D90: 614 | E90: 580 | F90: 593.55 | G90: 599.4 | H90: 580.35 | I90: 89020 | J90: 53520331.05 | K90: 2018-10-30 | L90: 5905 | M90: INE901L01018
A91: APOLLO | B91: EQ | C91: 119.35 | D91: 123.85 | E91: 118.45 | F91: 121.75 | G91: 122 | H91: 120 | I91: 22010 | J91: 2690749.9 | K91: 2018-10-30 | L91: 729 | M91: INE713T01010
A92: APOLLOHOSP | B92: EQ | C92: 1134.15 | D92: 1176 | E92: 1130 | F92: 1166.6 | G92: 1164 | H92: 1142.85 | I92: 617733 | J92: 711713761 | K92: 2018-10-30 | L92: 31628 | M92: INE437A01024
A93: APOLLOTYRE | B93: EQ | C93: 215.2 | D93: 219.7 | E93: 213.6 | F93: 215.05 | G93: 215 | H93: 214.95 | I93: 2383136 | J93: 516311575.8 | K93: 2018-10-30 | L93: 21585 | M93: INE438A01022
A94: APOLSINHOT | B94: EQ | C94: 610 | D94: 630 | E94: 608 | F94: 615.45 | G94: 615.3 | H94: 618.7 | I94: 402 | J94: 247234.1 | K94: 2018-10-30 | L94: 34 | M94: INE451F01024
A95: APTECHT | B95: EQ | C95: 149.2 | D95: 155.6 | E95: 147.45 | F95: 150.25 | G95: 149.85 | H95: 149.4 | I95: 319504 | J95: 48563424.85 | K95: 2018-10-30 | L95: 5859 | M95: INE266F01018
A96: ARCHIDPLY | B96: EQ | C96: 43.2 | D96: 43.2 | E96: 40.75 | F96: 41.2 | G96: 41.1 | H96: 43.45 | I96: 31696 | J96: 1327800.1 | K96: 2018-10-30 | L96: 349 | M96: INE877I01016
A97: ARCHIES | B97: EQ | C97: 24.95 | D97: 25.9 | E97: 24.55 | F97: 25.4 | G97: 25.25 | H97: 24.95 | I97: 35400 | J97: 904085.55 | K97: 2018-10-30 | L97: 229 | M97: INE731A01020
A98: ARCOTECH | B98: BE | C98: 5.65 | D98: 5.75 | E98: 5.3 | F98: 5.75 | G98: 5.75 | H98: 5.5 | I98: 191916 | J98: 1096671.7 | K98: 2018-10-30 | L98: 223 | M98: INE574I01035
A99: ARIES | B99: EQ | C99: 96.15 | D99: 97 | E99: 94.95 | F99: 95.75 | G99: 95.5 | H99: 94.6 | I99: 19787 | J99: 1899128.85 | K99: 2018-10-30 | L99: 269 | M99: INE298I01015
A100: ARIHANT | B100: EQ | C100: 28.1 | D100: 28.45 | E100: 22.45 | F100: 25 | G100: 24.8 | H100: 25.3 | I100: 2119 | J100: 54511.95 | K100: 2018-10-30 | L100: 43 | M100: INE413D01011
A101: ARIHANTSUP | B101: EQ | C101: 53.4 | D101: 54.95 | E101: 52.15 | F101: 52.85 | G101: 53 | H101: 53.45 | I101: 49974 | J101: 2630928.35 | K101: 2018-10-30 | L101: 218 | M101: INE643K01018
A102: ARMANFIN | B102: EQ | C102: 314.9 | D102: 328 | E102: 301 | F102: 325.05 | G102: 328 | H102: 302.15 | I102: 1579 | J102: 499929.2 | K102: 2018-10-30 | L102: 58 | M102: INE109C01017
A103: AROGRANITE | B103: EQ | C103: 53.7 | D103: 53.7 | E103: 51.5 | F103: 52 | G103: 52.5 | H103: 51.6 | I103: 6487 | J103: 338245.7 | K103: 2018-10-30 | L103: 100 | M103: INE210C01013
A104: ARROWGREEN | B104: EQ | C104: 113.4 | D104: 113.4 | E104: 102.6 | F104: 106.65 | G104: 107.05 | H104: 108 | I104: 19342 | J104: 2081602.45 | K104: 2018-10-30 | L104: 328 | M104: INE570D01018
A105: ARROWTEX | B105: EQ | C105: 25.75 | D105: 25.75 | E105: 24.05 | F105: 24.85 | G105: 24.95 | H105: 24.1 | I105: 6200 | J105: 151240.85 | K105: 2018-10-30 | L105: 50 | M105: INE933J01015
A106: ARSHIYA | B106: EQ | C106: 34.7 | D106: 36.9 | E106: 33.35 | F106: 34 | G106: 34 | H106: 34.65 | I106: 177343 | J106: 6138766.9 | K106: 2018-10-30 | L106: 499 | M106: INE968D01022
A107: ARSSINFRA | B107: EQ | C107: 23.2 | D107: 23.95 | E107: 22.7 | F107: 23 | G107: 23 | H107: 23.55 | I107: 5056 | J107: 116760.2 | K107: 2018-10-30 | L107: 44 | M107: INE267I01010
A108: ARVIND | B108: EQ | C108: 334.25 | D108: 347.9 | E108: 330.6 | F108: 345.85 | G108: 347.5 | H108: 334.2 | I108: 2354790 | J108: 803181940.8 | K108: 2018-10-30 | L108: 32873 | M108: INE034A01011
A109: ARVSMART | B109: EQ | C109: 111.95 | D109: 117.6 | E109: 110.05 | F109: 113.2 | G109: 113 | H109: 110.3 | I109: 34656 | J109: 3987639.55 | K109: 2018-10-30 | L109: 560 | M109: INE034S01021
A110: ASAHIINDIA | B110: EQ | C110: 290.95 | D110: 290.95 | E110: 276.9 | F110: 285.85 | G110: 287 | H110: 288.85 | I110: 89286 | J110: 25272738 | K110: 2018-10-30 | L110: 1749 | M110: INE439A01020
A111: ASAHISONG | B111: EQ | C111: 246.25 | D111: 255 | E111: 241 | F111: 247.35 | G111: 248 | H111: 241.45 | I111: 1443 | J111: 356877.5 | K111: 2018-10-30 | L111: 174 | M111: INE228I01012
A112: ASAL | B112: EQ | C112: 55.7 | D112: 57.75 | E112: 50.65 | F112: 52.45 | G112: 52.55 | H112: 50.4 | I112: 230319 | J112: 12541002.4 | K112: 2018-10-30 | L112: 3007 | M112: INE900C01027
A113: ASHAPURMIN | B113: EQ | C113: 27.9 | D113: 28.9 | E113: 27.3 | F113: 28.4 | G113: 28.2 | H113: 27.65 | I113: 39133 | J113: 1098545.35 | K113: 2018-10-30 | L113: 461 | M113: INE348A01023
A114: ASHIANA | B114: EQ | C114: 121.3 | D114: 128 | E114: 121.3 | F114: 125.5 | G114: 125 | H114: 121.1 | I114: 63590 | J114: 7946188.75 | K114: 2018-10-30 | L114: 1274 | M114: INE365D01021
A115: ASHIMASYN | B115: EQ | C115: 15.3 | D115: 15.4 | E115: 14.6 | F115: 14.7 | G115: 14.6 | H115: 15.15 | I115: 31075 | J115: 465775.9 | K115: 2018-10-30 | L115: 296 | M115: INE440A01010
A116: ASHOKA | B116: EQ | C116: 107 | D116: 112.5 | E116: 106.5 | F116: 110.7 | G116: 110 | H116: 107.9 | I116: 100230 | J116: 10995042.2 | K116: 2018-10-30 | L116: 2130 | M116: INE442H01029
A117: ASHOKLEY | B117: EQ | C117: 114.5 | D117: 116.75 | E117: 114.2 | F117: 115 | G117: 115 | H117: 115.25 | I117: 13868396 | J117: 1602170768 | K117: 2018-10-30 | L117: 58657 | M117: INE208A01029
A118: ASIANHOTNR | B118: EQ | C118: 156.8 | D118: 163.95 | E118: 146.35 | F118: 149.8 | G118: 149.85 | H118: 154.05 | I118: 8956 | J118: 1381607.65 | K118: 2018-10-30 | L118: 91 | M118: INE363A01022
A119: ASIANPAINT | B119: EQ | C119: 1194.8 | D119: 1208 | E119: 1175.55 | F119: 1196.3 | G119: 1197.5 | H119: 1196.05 | I119: 1075337 | J119: 1289002088 | K119: 2018-10-30 | L119: 55316 | M119: INE021A01026
A120: ASIANTILES | B120: EQ | C120: 176.9 | D120: 182 | E120: 174.75 | F120: 178.45 | G120: 178 | H120: 176.9 | I120: 59360 | J120: 10661657.95 | K120: 2018-10-30 | L120: 1730 | M120: INE022I01019
A121: ASPINWALL | B121: EQ | C121: 181 | D121: 190.2 | E121: 181 | F121: 181.05 | G121: 181 | H121: 185 | I121: 1879 | J121: 349177.1 | K121: 2018-10-30 | L121: 38 | M121: INE991I01015
A122: ASSAMCO | B122: BE | C122: 2.35 | D122: 2.35 | E122: 2.35 | F122: 2.35 | G122: 2.35 | H122: 2.45 | I122: 18718 | J122: 43987.3 | K122: 2018-10-30 | L122: 33 | M122: INE442A01024
A123: ASTEC | B123: EQ | C123: 536.05 | D123: 547 | E123: 528.6 | F123: 531.55 | G123: 530.65 | H123: 535.8 | I123: 14258 | J123: 7638597.9 | K123: 2018-10-30 | L123: 922 | M123: INE563J01010
A124: ASTERDM | B124: EQ | C124: 159.05 | D124: 161.35 | E124: 155.1 | F124: 156.95 | G124: 156.15 | H124: 159.6 | I124: 48448 | J124: 7693373.1 | K124: 2018-10-30 | L124: 3713 | M124: INE914M01019
A125: ASTRAL | B125: EQ | C125: 874.35 | D125: 917.95 | E125: 862.25 | F125: 909.2 | G125: 901 | H125: 869.95 | I125: 119956 | J125: 105218036.8 | K125: 2018-10-30 | L125: 7778 | M125: INE006I01046
A126: ASTRAMICRO | B126: EQ | C126: 79.95 | D126: 80.2 | E126: 76.7 | F126: 78.2 | G126: 77.7 | H126: 79.35 | I126: 622507 | J126: 48756316.2 | K126: 2018-10-30 | L126: 5367 | M126: INE386C01029
A127: ASTRAZEN | B127: EQ | C127: 1690.45 | D127: 1700 | E127: 1672.85 | F127: 1684.4 | G127: 1688.75 | H127: 1698.9 | I127: 22286 | J127: 37568223.55 | K127: 2018-10-30 | L127: 1317 | M127: INE203A01020
A128: ASTRON | B128: EQ | C128: 113.15 | D128: 114 | E128: 111.8 | F128: 112.6 | G128: 111.8 | H128: 113.15 | I128: 51422 | J128: 5821081.3 | K128: 2018-10-30 | L128: 708 | M128: INE646X01014
A129: ATFL | B129: EQ | C129: 533 | D129: 533 | E129: 501.25 | F129: 504.05 | G129: 503.1 | H129: 529.2 | I129: 14440 | J129: 7406520.15 | K129: 2018-10-30 | L129: 896 | M129: INE209A01019
A130: ATLANTA | B130: EQ | C130: 29.1 | D130: 29.1 | E130: 27.6 | F130: 27.85 | G130: 27.8 | H130: 29.05 | I130: 38598 | J130: 1072432.95 | K130: 2018-10-30 | L130: 342 | M130: INE285H01022
A131: ATNINTER | B131: BE | C131: 0.3 | D131: 0.3 | E131: 0.25 | F131: 0.3 | G131: 0.3 | H131: 0.25 | I131: 82351 | J131: 24680.25 | K131: 2018-10-30 | L131: 50 | M131: INE803A01027
A132: ATUL | B132: EQ | C132: 3309 | D132: 3309 | E132: 3221 | F132: 3260.2 | G132: 3280 | H132: 3284.6 | I132: 10664 | J132: 34794236.5 | K132: 2018-10-30 | L132: 1419 | M132: INE100A01010
A133: ATULAUTO | B133: EQ | C133: 331.05 | D133: 336.55 | E133: 327.95 | F133: 331.1 | G133: 331.15 | H133: 331.05 | I133: 6508 | J133: 2159429.85 | K133: 2018-10-30 | L133: 458 | M133: INE951D01028
A134: AUBANK | B134: EQ | C134: 524.3 | D134: 549.95 | E134: 524 | F134: 546.1 | G134: 544.75 | H134: 528.7 | I134: 409842 | J134: 221359823.6 | K134: 2018-10-30 | L134: 20025 | M134: INE949L01017
A135: AURIONPRO | B135: EQ | C135: 154.85 | D135: 154.9 | E135: 151.05 | F135: 151.8 | G135: 151.75 | H135: 153.3 | I135: 9542 | J135: 1455544.4 | K135: 2018-10-30 | L135: 180 | M135: INE132H01018
A136: AUROPHARMA | B136: EQ | C136: 771.15 | D136: 776.5 | E136: 760.7 | F136: 770.5 | G136: 771.95 | H136: 773.05 | I136: 1669833 | J136: 1282555187 | K136: 2018-10-30 | L136: 55523 | M136: INE406A01037
A137: AUSOMENT | B137: EQ | C137: 50.55 | D137: 52.35 | E137: 48.5 | F137: 49.05 | G137: 48.5 | H137: 51.55 | I137: 11227 | J137: 557947.25 | K137: 2018-10-30 | L137: 269 | M137: INE218C01016
A138: AUTOAXLES | B138: EQ | C138: 1076.9 | D138: 1125 | E138: 1071 | F138: 1109.75 | G138: 1118 | H138: 1076.9 | I138: 19540 | J138: 21383489.45 | K138: 2018-10-30 | L138: 2796 | M138: INE449A01011
A139: AUTOIND | B139: EQ | C139: 57.85 | D139: 58.8 | E139: 57.4 | F139: 57.75 | G139: 57.45 | H139: 57.35 | I139: 10508 | J139: 610616.3 | K139: 2018-10-30 | L139: 143 | M139: INE718H01014
A140: AUTOLITIND | B140: EQ | C140: 40.2 | D140: 42.65 | E140: 38.05 | F140: 41.75 | G140: 41.5 | H140: 40.25 | I140: 6875 | J140: 283639.75 | K140: 2018-10-30 | L140: 175 | M140: INE448A01013
A141: AVADHSUGAR | B141: EQ | C141: 508 | D141: 517.45 | E141: 486.4 | F141: 494.25 | G141: 492 | H141: 497.2 | I141: 70046 | J141: 35439446.8 | K141: 2018-10-30 | L141: 2904 | M141: INE349W01017
A142: AVANTIFEED | B142: EQ | C142: 392.9 | D142: 405.2 | E142: 391.25 | F142: 397.45 | G142: 395.9 | H142: 390.8 | I142: 390803 | J142: 156332412.6 | K142: 2018-10-30 | L142: 12270 | M142: INE871C01038
A143: AVTNPL | B143: EQ | C143: 26.05 | D143: 27.2 | E143: 26 | F143: 26.85 | G143: 26.95 | H143: 26.5 | I143: 15606 | J143: 419312.75 | K143: 2018-10-30 | L143: 116 | M143: INE488D01021
A144: AXISBANK | B144: EQ | C144: 564.85 | D144: 571.75 | E144: 559 | F144: 562.7 | G144: 564.4 | H144: 566.7 | I144: 8522604 | J144: 4811497766 | K144: 2018-10-30 | L144: 121646 | M144: INE238A01034
A145: AXISCADES | B145: EQ | C145: 67.4 | D145: 73.4 | E145: 66.75 | F145: 72.75 | G145: 72.6 | H145: 67.35 | I145: 103358 | J145: 7337310 | K145: 2018-10-30 | L145: 1518 | M145: INE555B01013
A146: AXISGOLD | B146: EQ | C146: 2844 | D146: 2844 | E146: 2796 | F146: 2823 | G146: 2822.9 | H146: 2800.1 | I146: 63 | J146: 177405.65 | K146: 2018-10-30 | L146: 14 | M146: INF846K01347
A147: AXISNIFTY | B147: EQ | C147: 1048 | D147: 1050.48 | E147: 1037.08 | F147: 1042.55 | G147: 1042.55 | H147: 1072 | I147: 87 | J147: 90805.37 | K147: 2018-10-30 | L147: 14 | M147: INF846K01ZL0
A148: AYMSYNTEX | B148: EQ | C148: 42.75 | D148: 42.75 | E148: 40.6 | F148: 41 | G148: 41 | H148: 42 | I148: 19455 | J148: 801116.1 | K148: 2018-10-30 | L148: 100 | M148: INE193B01039
A149: BAFNAPHARM | B149: EQ | C149: 13.9 | D149: 14.45 | E149: 13.65 | F149: 14.25 | G149: 14.25 | H149: 13.85 | I149: 3146 | J149: 44897.35 | K149: 2018-10-30 | L149: 38 | M149: INE878I01014
A150: BAGFILMS | B150: EQ | C150: 4.65 | D150: 4.65 | E150: 4.5 | F150: 4.55 | G150: 4.55 | H150: 4.6 | I150: 50085 | J150: 228660.45 | K150: 2018-10-30 | L150: 110 | M150: INE116D01028
A151: BAJAJ-AUTO | B151: EQ | C151: 2554 | D151: 2583 | E151: 2532.9 | F151: 2556.25 | G151: 2546.25 | H151: 2549.1 | I151: 270336 | J151: 692557774.1 | K151: 2018-10-30 | L151: 26944 | M151: INE917I01010
A152: BAJAJCORP | B152: EQ | C152: 358.95 | D152: 360.1 | E152: 350 | F152: 354 | G152: 350.8 | H152: 359.6 | I152: 69615 | J152: 24678795.15 | K152: 2018-10-30 | L152: 951 | M152: INE933K01021
A153: BAJAJELEC | B153: EQ | C153: 470 | D153: 476.95 | E153: 463.55 | F153: 472.5 | G153: 474 | H153: 462.75 | I153: 127139 | J153: 59983427.3 | K153: 2018-10-30 | L153: 3795 | M153: INE193E01025
A154: BAJAJFINSV | B154: EQ | C154: 5420 | D154: 5455 | E154: 5322.55 | F154: 5391.15 | G154: 5378 | H154: 5409.85 | I154: 291037 | J154: 1569923922 | K154: 2018-10-30 | L154: 21953 | M154: INE918I01018
A155: BAJAJHIND | B155: EQ | C155: 10.6 | D155: 10.85 | E155: 10.35 | F155: 10.45 | G155: 10.5 | H155: 10.5 | I155: 3470595 | J155: 36937153.45 | K155: 2018-10-30 | L155: 5031 | M155: INE306A01021
A156: BAJAJHLDNG | B156: EQ | C156: 2675.15 | D156: 2749 | E156: 2660 | F156: 2734.4 | G156: 2740 | H156: 2698.4 | I156: 6168 | J156: 16761684.1 | K156: 2018-10-30 | L156: 1032 | M156: INE118A01012
A157: BAJFINANCE | B157: EQ | C157: 2395 | D157: 2423.9 | E157: 2350.35 | F157: 2356.35 | G157: 2356.35 | H157: 2380.45 | I157: 2202230 | J157: 5257910982 | K157: 2018-10-30 | L157: 101049 | M157: INE296A01024
A158: BALAJITELE | B158: EQ | C158: 96.25 | D158: 99.65 | E158: 95.75 | F158: 96.4 | G158: 96.1 | H158: 96.25 | I158: 26353 | J158: 2557895.9 | K158: 2018-10-30 | L158: 423 | M158: INE794B01026
A159: BALAMINES | B159: EQ | C159: 453.85 | D159: 461.85 | E159: 442.2 | F159: 452.6 | G159: 455 | H159: 453.85 | I159: 12161 | J159: 5535602.55 | K159: 2018-10-30 | L159: 718 | M159: INE050E01027
A160: BALKRISHNA | B160: EQ | C160: 52.95 | D160: 54 | E160: 50.6 | F160: 52.75 | G160: 53 | H160: 51.25 | I160: 31488 | J160: 1637927.65 | K160: 2018-10-30 | L160: 479 | M160: INE875R01011
A161: BALKRISIND | B161: EQ | C161: 1064 | D161: 1114.9 | E161: 1060.85 | F161: 1069.25 | G161: 1068.1 | H161: 1065.55 | I161: 920161 | J161: 1003131846 | K161: 2018-10-30 | L161: 31703 | M161: INE787D01026
A162: BALLARPUR | B162: EQ | C162: 6.5 | D162: 6.6 | E162: 6.15 | F162: 6.2 | G162: 6.25 | H162: 6.5 | I162: 564244 | J162: 3607669.1 | K162: 2018-10-30 | L162: 595 | M162: INE294A01037
A163: BALMLAWRIE | B163: EQ | C163: 190.85 | D163: 200.2 | E163: 190.05 | F163: 196.3 | G163: 197.75 | H163: 189.9 | I163: 72658 | J163: 14091956.4 | K163: 2018-10-30 | L163: 1576 | M163: INE164A01016
A164: BALPHARMA | B164: EQ | C164: 80.75 | D164: 83 | E164: 80.1 | F164: 81.05 | G164: 81 | H164: 81.3 | I164: 13819 | J164: 1126592.35 | K164: 2018-10-30 | L164: 301 | M164: INE083D01012
A165: BALRAMCHIN | B165: EQ | C165: 108.8 | D165: 113.35 | E165: 108.2 | F165: 109.95 | G165: 110.1 | H165: 107.9 | I165: 6553926 | J165: 724844251.4 | K165: 2018-10-30 | L165: 46796 | M165: INE119A01028
A166: BANARBEADS | B166: EQ | C166: 49.35 | D166: 49.35 | E166: 49 | F166: 49.15 | G166: 49.05 | H166: 49.1 | I166: 452 | J166: 22225.5 | K166: 2018-10-30 | L166: 6 | M166: INE655B01011
A167: BANARISUG | B167: EQ | C167: 1800 | D167: 1800 | E167: 1754.25 | F167: 1764.1 | G167: 1762 | H167: 1792.95 | I167: 367 | J167: 654051.75 | K167: 2018-10-30 | L167: 104 | M167: INE459A01010
A168: BANCOINDIA | B168: EQ | C168: 179 | D168: 180 | E168: 171.8 | F168: 172.6 | G168: 172.2 | H168: 178.45 | I168: 109476 | J168: 19301317.15 | K168: 2018-10-30 | L168: 1728 | M168: INE213C01025
A169: BANDHANBNK | B169: EQ | C169: 399.8 | D169: 399.8 | E169: 383 | F169: 384.6 | G169: 383.5 | H169: 398.7 | I169: 1355884 | J169: 528336557.3 | K169: 2018-10-30 | L169: 47248 | M169: INE545U01014
A170: BANG | B170: EQ | C170: 48.95 | D170: 49.65 | E170: 47.5 | F170: 47.9 | G170: 47.9 | H170: 47.8 | I170: 13805 | J170: 665594.25 | K170: 2018-10-30 | L170: 216 | M170: INE863I01016
A171: BANKBARODA | B171: EQ | C171: 107.7 | D171: 113.7 | E171: 105.85 | F171: 110 | G171: 111.2 | H171: 107.1 | I171: 51240583 | J171: 5649461934 | K171: 2018-10-30 | L171: 204670 | M171: INE028A01039
A172: BANKBEES | B172: EQ | C172: 2520 | D172: 2556.9 | E172: 2480 | F172: 2525.33 | G172: 2529.7 | H172: 2542.73 | I172: 1146 | J172: 2904249.5 | K172: 2018-10-30 | L172: 187 | M172: INF732E01078
A173: BANKINDIA | B173: EQ | C173: 80.75 | D173: 88 | E173: 80.25 | F173: 84.35 | G173: 84.7 | H173: 81.1 | I173: 13718542 | J173: 1170112955 | K173: 2018-10-30 | L173: 43886 | M173: INE084A01016
A174: BANSWRAS | B174: EQ | C174: 68.8 | D174: 69 | E174: 66.6 | F174: 67.8 | G174: 67.3 | H174: 66.55 | I174: 863 | J174: 58929.1 | K174: 2018-10-30 | L174: 27 | M174: INE629D01012
A175: BARTRONICS | B175: EQ | C175: 7.3 | D175: 7.3 | E175: 7 | F175: 7.05 | G175: 7.05 | H175: 7.05 | I175: 17828 | J175: 127156.65 | K175: 2018-10-30 | L175: 54 | M175: INE855F01034
A176: BASF | B176: EQ | C176: 1655 | D176: 1725 | E176: 1590.1 | F176: 1656 | G176: 1717.6 | H176: 1642.75 | I176: 51782 | J176: 85965168.95 | K176: 2018-10-30 | L176: 4642 | M176: INE373A01013
A177: BASML | B177: EQ | C177: 190.1 | D177: 205.5 | E177: 190.1 | F177: 197 | G177: 196 | H177: 192.05 | I177: 1660 | J177: 333458.9 | K177: 2018-10-30 | L177: 52 | M177: INE186H01014
A178: BATAINDIA | B178: EQ | C178: 935.7 | D178: 954.55 | E178: 921.85 | F178: 939.55 | G178: 940 | H178: 935.4 | I178: 917806 | J178: 862476918.4 | K178: 2018-10-30 | L178: 22264 | M178: INE176A01028
A179: BAYERCROP | B179: EQ | C179: 3811.75 | D179: 3935.1 | E179: 3775 | F179: 3899.15 | G179: 3883 | H179: 3811.75 | I179: 10479 | J179: 40775903.95 | K179: 2018-10-30 | L179: 3061 | M179: INE462A01022
A180: BBL | B180: EQ | C180: 1124.05 | D180: 1160.55 | E180: 1122.95 | F180: 1152.6 | G180: 1156.8 | H180: 1123.35 | I180: 4820 | J180: 5532157.1 | K180: 2018-10-30 | L180: 675 | M180: INE464A01028
A181: BBTC | B181: EQ | C181: 1208 | D181: 1223.55 | E181: 1185.1 | F181: 1204.05 | G181: 1202.9 | H181: 1195.25 | I181: 145393 | J181: 175280201.6 | K181: 2018-10-30 | L181: 13161 | M181: INE050A01025
A182: BCG | B182: EQ | C182: 3.7 | D182: 3.85 | E182: 3.55 | F182: 3.8 | G182: 3.85 | H182: 3.6 | I182: 317224 | J182: 1172600.75 | K182: 2018-10-30 | L182: 288 | M182: INE425B01027
A183: BDL | B183: EQ | C183: 279.95 | D183: 282.7 | E183: 278.45 | F183: 281.45 | G183: 280.15 | H183: 279.9 | I183: 10515 | J183: 2950343.6 | K183: 2018-10-30 | L183: 749 | M183: INE171Z01018
A184: BEARDSELL | B184: EQ | C184: 24.7 | D184: 24.9 | E184: 23.8 | F184: 24.9 | G184: 24.9 | H184: 23.25 | I184: 4232 | J184: 103143.25 | K184: 2018-10-30 | L184: 27 | M184: INE520H01022
A185: BEDMUTHA | B185: BE | C185: 19 | D185: 19.8 | E185: 19 | F185: 19.2 | G185: 19.15 | H185: 19.65 | I185: 5247 | J185: 101521.8 | K185: 2018-10-30 | L185: 32 | M185: INE844K01012
A186: BEL | B186: EQ | C186: 86.4 | D186: 91 | E186: 86.4 | F186: 89.85 | G186: 90.35 | H186: 86.4 | I186: 17845565 | J186: 1596825301 | K186: 2018-10-30 | L186: 69748 | M186: INE263A01024
A187: BEML | B187: EQ | C187: 557.15 | D187: 594.55 | E187: 555.5 | F187: 585.65 | G187: 585 | H187: 561.15 | I187: 1101102 | J187: 640014856.6 | K187: 2018-10-30 | L187: 28252 | M187: INE258A01016
A188: BEPL | B188: EQ | C188: 94.7 | D188: 94.9 | E188: 91 | F188: 91.85 | G188: 91.9 | H188: 93.9 | I188: 320237 | J188: 29573377.35 | K188: 2018-10-30 | L188: 2964 | M188: INE922A01025
A189: BERGEPAINT | B189: EQ | C189: 286.4 | D189: 287.75 | E189: 283.5 | F189: 285 | G189: 285.5 | H189: 285.4 | I189: 383406 | J189: 109434302.6 | K189: 2018-10-30 | L189: 6450 | M189: INE463A01038
A190: BFINVEST | B190: EQ | C190: 232 | D190: 234.8 | E190: 224.85 | F190: 226.75 | G190: 226.25 | H190: 231.55 | I190: 98214 | J190: 22617338.05 | K190: 2018-10-30 | L190: 3065 | M190: INE878K01010
A191: BFUTILITIE | B191: EQ | C191: 207 | D191: 208.5 | E191: 199.3 | F191: 200.3 | G191: 200 | H191: 206 | I191: 241889 | J191: 49228801.75 | K191: 2018-10-30 | L191: 6449 | M191: INE243D01012
A192: BGLOBAL | B192: BE | C192: 2.55 | D192: 2.55 | E192: 2.4 | F192: 2.4 | G192: 2.4 | H192: 2.45 | I192: 11853 | J192: 29417.9 | K192: 2018-10-30 | L192: 17 | M192: INE224M01013
A193: BGRENERGY | B193: EQ | C193: 54.25 | D193: 56.7 | E193: 54 | F193: 55.8 | G193: 56 | H193: 54.15 | I193: 84750 | J193: 4725710.35 | K193: 2018-10-30 | L193: 1114 | M193: INE661I01014
A194: BHAGERIA | B194: EQ | C194: 304.4 | D194: 314 | E194: 298 | F194: 301.7 | G194: 303.9 | H194: 298.7 | I194: 37722 | J194: 11526678.8 | K194: 2018-10-30 | L194: 951 | M194: INE354C01027
A195: BHAGYANGR | B195: EQ | C195: 30.6 | D195: 31.6 | E195: 30 | F195: 31.15 | G195: 31.2 | H195: 30.5 | I195: 8700 | J195: 269970.4 | K195: 2018-10-30 | L195: 94 | M195: INE458B01036
A196: BHAGYAPROP | B196: EQ | C196: 22.5 | D196: 25.4 | E196: 21.35 | F196: 24.5 | G196: 24.5 | H196: 23.7 | I196: 2910 | J196: 69018.05 | K196: 2018-10-30 | L196: 18 | M196: INE363W01018
A197: BHANDARI | B197: EQ | C197: 1.95 | D197: 2 | E197: 1.85 | F197: 2 | G197: 2 | H197: 1.95 | I197: 138934 | J197: 268455.55 | K197: 2018-10-30 | L197: 122 | M197: INE474E01029
A198: BHARATFIN | B198: EQ | C198: 857.4 | D198: 860.9 | E198: 830.55 | F198: 839.9 | G198: 832 | H198: 860.25 | I198: 757033 | J198: 640837571.4 | K198: 2018-10-30 | L198: 39528 | M198: INE180K01011
A199: BHARATFORG | B199: EQ | C199: 556 | D199: 574.2 | E199: 553.5 | F199: 569.5 | G199: 569.35 | H199: 556.9 | I199: 952329 | J199: 541638088.5 | K199: 2018-10-30 | L199: 36104 | M199: INE465A01025
A200: BHARATGEAR | B200: EQ | C200: 169.85 | D200: 185 | E200: 169.85 | F200: 180.35 | G200: 182.25 | H200: 168.05 | I200: 130628 | J200: 23443142.95 | K200: 2018-10-30 | L200: 3505 | M200: INE561C01019
... 1438 more rows
